Workbook

Sheet AER only (hidden)
B1: Data in these columns used for data validation and database purposes.
B2: Date last modified: | C2: 2017-01-16 | D2: added (Albury and Victora) for AGN
C3: 2016-10-17 | D3: updated TransGrid's correct legal name, corrected TasNetworks (T) to June financial year
C4: 2017-02-01 | D4: inserted Power and Water, added NRs (dms_FeederCat_1 and dms_FeederCat_2)
C5: 2017-03-03 | D5: inserted AEMO as a business | AC5: FOR ELECTRICITY BUSINESSES ONLY
AC6: Feeder Types | AG6: TasNetworks (D) | AH6: MAIFI flag | AI6: Feeder Names
AC7: CBD | AD7: Urban | AE7: Short rural | AF7: long rural | AG7: EXTRA
B8: dms_TradingName_List | C8: dms_TradingNameFull_List | D8: dms_ABN_List | E8: dms_JurisdictionList | F8: dms_Sector_List | G8: dms_Segment_List | H8: dms_FormControl_List | I8: dms_RPT_List | J8: dms_RPTMonth_List | K8: dms_CRCPlength_List | L8: dms_FRCPlength_List | M8: dms_663_List | N8: dms_DeterminationRef_List | O8: dms_Addr1_List | P8: dms_Addr2_List | Q8: dms_Suburb_List | R8: dms_State_List | S8: dms_PostCode_List | T8: dms_PAddr1_List | U8: dms_PAddr2_List | V8: dms_PSuburb_List | W8: dms_PState_List | X8: dms_PPostCode_List | Y8: dms_ContactName1_List | Z8: dms_ContactPh1_List | AA8: dms_ContactEmail_List | AB8: Column1 | AC8: dms_CBD_flag | AD8: dms_Urban_flag | AE8: dms_ShortRural_flag | AF8: dms_LongRural_flag | AG8: dms_FeederType_5_flag | AH8: dms_MAIFI_flag_List | AI8: dms_FeederName_1 | AJ8: dms_FeederName_2 | AK8: dms_FeederName_3 | AL8: dms_FeederName_4 | AM8: dms_FeederName_5
B9: ActewAGL Distribution | C9: ActewAGL Distribution | D9: 76670568688 | E9: ACT | F9: Electricity | G9: Distribution | H9: Revenue cap | I9: Financial | J9: June | K9: 5 | L9: 5 | M9: 5 | N9: 2014-19 Distribution Determination | O9: 40 Bunda Street | Q9: CANBERRA | R9: ACT | S9: 2600 | T9: GPO BOX 366 | V9: CANBERRA | W9: ACT | X9: 2601 | Y9: Robert Walker | Z9: 02 6248 3847 | AA9: robert.walker@actewagle.com.au | AC9: NO | AD9: YES | AE9: YES | AF9: NO | AG9: NO | AI9: CBD | AJ9: Urban | AK9: Short rural | AL9: Long rural | AN9: ActewAGL Distribution
B10: ActewAGL Distribution (Tx Assets) | C10: ActewAGL Distribution (Tx Assets) | D10: 76670568688 | E10: ACT | F10: Electricity | G10: Distribution | H10: Revenue cap | I10: Financial | J10: June | K10: 5 | L10: 5 | M10: 5 | N10: distribution determination | O10: 40 Bunda Street | Q10: CANBERRA | R10: ACT | S10: 2600 | T10: GPO BOX 366 | V10: CANBERRA | W10: ACT | X10: 2601 | Y10: Robert Walker | Z10: 02 6248 3847 | AA10: robert.walker@actewagle.com.au | AI10: CBD | AJ10: Urban | AK10: Short rural | AL10: Long rural | AN10: ActewAGL Distribution (Tx Assets)
B11: ActewAGL Gas | C11: ActewAGL Gas | D11: 76670568688 | E11: ACT | F11: Gas | G11: Distribution | H11: Weighted average price cap | I11: Financial | J11: June | K11: 5 | L11: 5 | M11: x | O11: 40 Bunda Street | Q11: CANBERRA | R11: ACT | S11: 2600 | T11: GPO BOX 366 | V11: CANBERRA | W11: ACT | X11: 2601 | Y11: Philip Deamer | Z11: 02 6248 3438 | AA11: GasAAReview@actewagl.com.au | AN11: ActewAGL Gas
B12: AEMO | C12: Australian Energy Market Operator Ltd | D12: 94072010327 | E12: Vic | F12: Electricity | G12: Transmission | H12: - | I12: Financial | J12: March | K12: 5 | L12: 5 | M12: x | N12: - | O12: Level 22 | P12: 530 Collins Street | Q12: MELBOURNE | R12: VIC | S12: 3000 | T12: GPO Box 2008 | V12: MELBOURNE | W12: VIC | X12: 3001 | AN12: AEMO
B13: AGN (Albury and Victoria) | C13: Australian Gas Networks Limited (reporting data for Albury and Victoria) | D13: 19078551685 | E13: Vic | F13: Gas | G13: Distribution | H13: Weighted average price cap | I13: Calendar | J13: December | K13: 5 | L13: 5 | M13: x | O13: Level 6 | P13: 400 King William Street | Q13: ADELAIDE | R13: SA | S13: 5000 | T13: PO Box 6468 | U13: Halifax Street | V13: ADELAIDE | W13: SA | X13: 5000 | Y13: Craig de Laine | Z13: 08 8418 1129 | AA13: craig.delaine@agn.com.au | AI13: CBD | AJ13: Urban | AK13: Short rural | AL13: Long rural | AN13: AGN (Albury)
B14: AGN (Albury) | C14: Australian Gas Networks Limited (reporting data for Albury) | D14: 19078551685 | E14: Vic | F14: Gas | G14: Distribution | H14: Weighted average price cap | I14: Calendar | J14: December | K14: 5 | L14: 5 | M14: x | O14: Level 6 | P14: 400 King William Street | Q14: ADELAIDE | R14: SA | S14: 5000 | T14: PO Box 6468 | U14: Halifax Street | V14: ADELAIDE | W14: SA | X14: 5000 | Y14: Craig de Laine | Z14: 08 8418 1129 | AA14: craig.delaine@agn.com.au | AI14: CBD | AJ14: Urban | AK14: Short rural | AL14: Long rural
B15: AGN (SA) | C15: Australian Gas Networks Limited (reporting data for SA) | D15: 19078551685 | E15: SA | F15: Gas | G15: Distribution | H15: Weighted average price cap | I15: Financial | J15: June | K15: 5 | L15: 5 | M15: 5 | N15: distribution determination | O15: Level 6 | P15: 400 King William Street | Q15: ADELAIDE | R15: SA | S15: 5000 | T15: PO Box 6468 | U15: Halifax Street | V15: ADELAIDE | W15: SA | X15: 5000 | Y15: Craig de Laine | Z15: 08 8418 1129 | AA15: craig.delaine@agn.com.au | AN15: AGN (SA)
B16: AGN (Victoria) | C16: Australian Gas Networks Limited (reporting data for Victoria) | D16: 19078551685 | E16: Vic | F16: Gas | G16: Distribution | H16: Weighted average price cap | I16: Calendar | J16: December | K16: 5 | L16: 5 | M16: x | AN16: AGN (Victoria)
B17: Amadeus | C17: APT Pipelines (NT) Pty Ltd | D17: 39009737393 | E17: NT | F17: Gas | G17: Transmission | H17: Weighted average price cap | I17: Financial | J17: June | K17: 5 | L17: 5 | M17: x | N17: n/a | O17: Level 19, HSBC Building | P17: 580 George Street | Q17: SYDNEY | R17: NSW | S17: 2000 | T17: Level 19, HSBC Building | U17: 580 George Street | V17: SYDNEY | W17: NSW | X17: 2000 | Y17: Alexandra Curran | Z17: 02 9275 0020 | AA17: alexandra.curran@apa.com.au | AN17: Amadeus
B18: APA GasNet | C18: APA GasNet Australia (Operations) Pty Ltd | D18: 065083009 | E18: Vic | F18: Gas | G18: Transmission | H18: Weighted average price cap | I18: Calendar | J18: December | K18: 5 | L18: 5 | M18: x | O18: Level 19, HSBC Building | P18: 580 George Street | Q18: SYDNEY | R18: NSW | S18: 2000 | T18: PO Box R41 | V18: ROYAL EXCHANGE | W18: NSW | X18: 1225 | Z18: 02 9693 0000 | AN18: APA GasNet
B19: Ausgrid | C19: Ausgrid | D19: 78508211731 | E19: NSW | F19: Electricity | G19: Distribution | H19: Revenue cap | I19: Financial | J19: June | K19: 5 | L19: 5 | M19: 5 | N19: 2014-19 Distribution Determination | O19: 570 George St | Q19: SYDNEY | R19: NSW | S19: 2000 | T19: GPO Box 4009 | V19: SYDNEY | W19: NSW | X19: 2001 | Y19: John Thomson | Z19: (02) 9269 2312 | AA19: john.thomson@ausgrid.com.au | AC19: YES | AD19: YES | AE19: YES | AF19: YES | AG19: NO | AI19: CBD | AJ19: Urban | AK19: Short rural | AL19: Long rural | AN19: Ausgrid
B20: Ausgrid (Tx Assets) | C20: Ausgrid (Tx Assets) | D20: 67505337385 | E20: NSW | F20: Electricity | G20: Distribution | H20: Revenue cap | I20: Financial | J20: June | K20: 5 | L20: 5 | M20: 5 | N20: distribution determination | R20: NSW | AI20: CBD | AJ20: Urban | AK20: Short rural | AL20: Long rural | AN20: Ausgrid (Tx Assets)
B21: AusNet (D) | C21: AusNet Electricity Services Pty Ltd | D21: 91064651118 | E21: Vic | F21: Electricity | G21: Distribution | H21: Revenue cap | I21: Calendar | J21: December | K21: 5 | L21: 5 | M21: 2 | N21: 2016-20 Distribution Determination | O21: Level 32 | P21: 2 Southbank Boulevard | Q21: SOUTHBANK | R21: Vic | S21: 3006 | T21: Locked Bag 14051 | V21: MELBOURNE CITY MAIL CENTRE | W21: VIC | X21: 8001 | Y21: Hannah Williams | Z21: 03 9683 4088 | AA21: hwilliams@powercor.com.au | AD21: YES | AE21: YES | AF21: YES | AG21: NO | AI21: CBD | AJ21: Urban | AK21: Short rural | AL21: Long rural | AN21: AusNet (D)
B22: AusNet (Gas) | C22: AusNet Gas Services | D22: 086015036 | E22: Vic | F22: Gas | G22: Distribution | H22: Weighted average price cap | I22: Calendar | J22: December | K22: 5 | L22: 5 | M22: X | AN22: AusNet (Gas)
B23: AusNet (T) | C23: Ausnet Services (Transmission) Ltd | D23: 48116124362 | E23: Vic | F23: Electricity | G23: Transmission | H23: Revenue cap | I23: Financial | J23: March | K23: 5 | L23: 5 | M23: 2 | N23: transmission determination | O23: Level 32 | P23: 2 Southbank Boulevard | Q23: SOUTHBANK | R23: Vic | S23: 3006 | T23: Locked Bag 14051 | V23: MELBOURNE CITY MAIL CENTRE | W23: Vic | X23: 8001 | Y23: Clare Thompson | Z23: 03 9695 6670 | AA23: clare.e.thompson@ausnetservices.com.au | AI23: CBD | AJ23: Urban | AK23: Short rural | AL23: Long rural | AN23: AusNet (T)
B24: Australian Distribution Co. | C24: Australian Distribution Co. | D24: 11222333444 | E24: - | F24: Electricity | G24: Distribution | H24: Revenue cap | I24: Financial | J24: June | K24: 5 | L24: 5 | M24: 2 | N24: distribution determination | O24: 123 Straight Street | Q24: SYDNEY | R24: NSW | S24: 2000 | T24: PO Box 123 | V24: SYDNEY | W24: NSW | X24: 2000 | Y24: Bob Smith | Z24: 02 1234 5678 | AA24: bob@auselec.net.au | AI24: CBD | AJ24: Urban | AK24: Short rural | AL24: Long rural | AN24: Australian Distribution Co.
B25: Australian Distribution Co. (Vic) | C25: Australian Distribution Co. (Victoria) | D25: 11222333444 | E25: Vic | F25: Electricity | G25: Distribution | H25: Revenue cap | I25: Calendar | J25: December | K25: 5 | L25: 5 | M25: 2 | N25: distribution determination | O25: 123 Straight Street | Q25: MELBOURNE | R25: Vic | S25: 3000 | T25: PO Box 123 | V25: MELBOURNE | W25: VIC | X25: 3000 | Y25: Bob Smith | Z25: 02 1234 5678 | AA25: bob@auselec.net.au | AI25: CBD | AJ25: Urban | AK25: Short rural | AL25: Long rural | AN25: Australian Distribution Co. (Vic)
B26: Australian Transmission Co. | C26: Australian Transmission Co. | D26: 11222333444 | E26: - | F26: Electricity | G26: Transmission | H26: Revenue cap | I26: Financial | J26: June | K26: 5 | L26: 5 | M26: 5 | N26: transmission determination | O26: 123 Straight Street | Q26: SYDNEY | R26: NSW | S26: 2000 | T26: PO Box 123 | V26: SYDNEY | W26: NSW | X26: 2000 | Y26: Bob Smith | Z26: 02 1234 5678 | AA26: bob@auselec.net.au | AI26: CBD | AJ26: Urban | AK26: Short rural | AL26: Long rural | AN26: Australian Transmission Co.
B27: CitiPower | C27: CitiPower | D27: 76064651056 | E27: Vic | F27: Electricity | G27: Distribution | H27: Revenue cap | I27: Calendar | J27: December | K27: 5 | L27: 5 | M27: 2 | N27: 2016-20 Distribution Determination | O27: 40 Market Street | Q27: MELBOURNE | R27: Vic | S27: 3000 | T27: Locked Bag 14090 | V27: MELBOURNE | W27: VIC | X27: 8001 | Y27: Hannah Williams | Z27: 03 9683 4088 | AA27: hwilliams@powercor.com.au | AC27: YES | AD27: YES | AE27: NO | AF27: NO | AG27: NO | AI27: CBD | AJ27: Urban | AK27: Short rural | AL27: Long rural | AN27: CitiPower
B28: Directlink | C28: Directlink | D28: 16779340889 | E28: Qld | F28: Electricity | G28: Transmission | H28: Revenue cap | I28: Financial | J28: June | K28: 9 | L28: 5 | M28: 5 | N28: transmission determination | O28: Level 19, HSBC Building | P28: 580 George Street | Q28: SYDNEY | R28: NSW | S28: 2000 | T28: PO Box R41 | V28: ROYAL EXCHANGE | W28: NSW | X28: 1225 | Y28: Scott Young | Z28: 02 9275 0031 | AA28: scott.young@apa.com.au | AI28: CBD | AJ28: Urban | AK28: Short rural | AL28: Long rural | AN28: Directlink
B29: ElectraNet | C29: ElectraNet | D29: 41094482416 | E29: SA | F29: Electricity | G29: Transmission | H29: Revenue cap | I29: Financial | J29: June | K29: 5 | L29: 5 | M29: 5 | N29: transmission determination | O29: 52-55 East Terrace | P29: Rymill Park | Q29: ADELAIDE | R29: SA | S29: 5000 | T29: PO Box 7096 | U29: Hutt Street Post Office | V29: ADELAIDE | W29: SA | X29: 5000 | Y29: Bill Jackson | Z29: 08 8404 7969 | AA29: jackson.bill@electranet.com.au | AI29: CBD | AJ29: Urban | AK29: Short rural | AL29: Long rural | AN29: ElectraNet
B30: Endeavour Energy | C30: Endeavour Energy | D30: 59253130878 | E30: NSW | F30: Electricity | G30: Distribution | H30: Revenue cap | I30: Financial | J30: June | K30: 5 | L30: 5 | M30: 5 | N30: 2014-19 Distribution Determination | O30: 51 Huntingwood Drive | Q30: HUNTINGWOOD | R30: NSW | S30: 2148 | T30: PO Box 811 | V30: SEVEN HILLS | W30: NSW | X30: 1730 | Y30: Jon Hocking | Z30: 02 9853 4386 / 0407 348 156 | AA30: Jon.Hocking@Endeavourenergy.com.au | AC30: NO | AD30: YES | AE30: YES | AF30: YES | AG30: NO | AI30: CBD | AJ30: Urban | AK30: Short rural | AL30: Long rural | AN30: Endeavour Energy
B31: Energex | C31: Energex | D31: 40078849055 | E31: Qld | F31: Electricity | G31: Distribution | H31: Revenue cap | I31: Financial | J31: June | K31: 5 | L31: 5 | M31: 5 | N31: 2015-20 Distribution Determination | O31: 26 Reddacliff Street | Q31: NEWSTEAD | R31: Qld | S31: 4006 | T31: 26 Reddacliff Street | V31: NEWSTEAD | W31: QLD | X31: 4006 | Y31: Nicola Roscoe | Z31: 07 3664 5891 | AA31: nicolaroscoe@energex.com.au | AC31: YES | AD31: YES | AE31: YES | AF31: NO | AG31: NO | AI31: CBD | AJ31: Urban | AK31: Short rural | AL31: Long rural | AN31: Energex
B32: Ergon Energy | C32: Ergon Energy | D32: 50087646062 | E32: Qld | F32: Electricity | G32: Distribution | H32: Revenue cap | I32: Financial | J32: June | K32: 5 | L32: 5 | M32: 5 | N32: 2015-20 Distribution Determination | O32: 22 Walker Street | Q32: TOWNSVILLE | R32: Qld | S32: 4810 | T32: Po Box 264 | V32: FORTITUDE VALLEY | W32: QLD | X32: 4006 | Y32: Jenny Doyle, Group Manager Regulatory Affairs | Z32: (07) 3851 6416 | AA32: jenny.doyle@ergon.com.au | AC32: NO | AD32: YES | AE32: YES | AF32: YES | AG32: NO | AI32: CBD | AJ32: Urban | AK32: Short rural | AL32: Long rural | AN32: Ergon Energy
B33: Essential Energy | C33: Essential Energy | D33: 37428185226 | E33: NSW | F33: Electricity | G33: Distribution | H33: Revenue cap | I33: Financial | J33: June | K33: 5 | L33: 5 | M33: 5 | N33: 2014-19 Distribution Determination | O33: 8 Buller Street | Q33: PORT MACQUARIE | R33: NSW | S33: 2444 | T33: PO Box 5730 | V33: PORT MACQUARIE | W33: NSW | X33: 2444 | Y33: Catherine Waddell | Z33: 02 6338 3553 | AA33: catherine.waddell@essentialenergy.com.au | AE33: YES | AF33: YES | AG33: NO | AI33: CBD | AJ33: Urban | AK33: Short rural | AL33: Long rural | AN33: Essential Energy
B34: Jemena Electricity | C34: Jemena Electricity | D34: 82064651083 | E34: Vic | F34: Electricity | G34: Distribution | H34: Revenue cap | I34: Calendar | J34: December | K34: 5 | L34: 5 | M34: 2 | N34: 2016-20 Distribution Determination | O34: Level 16 | P34: 567 Collins Street | Q34: MELBOURNE | R34: VIC | S34: 3000 | T34: PO Box 16182 | V34: MELBOURNE | W34: VIC | X34: 8001 | Y34: Matthew Serpell | Z34: 03 9173 8231 | AA34: matthew.serpell@jemena.com.au | AE34: YES | AF34: NO | AG34: NO | AI34: CBD | AJ34: Urban | AK34: Short rural | AL34: Long rural | AN34: Jemena Electricity
B35: JGN | C35: Jemena Gas Networks (NSW) Ltd | D35: 003 004 322 | E35: NSW | F35: Gas | G35: Distribution | H35: Weighted average price cap | I35: Financial | J35: June | K35: 5 | L35: 5 | AN35: JGN
B36: Multinet Gas | C36: Multinet Gas (DB No.1) Pty Ltd (ACN 086 026 986), Multinet Gas (DB No.2) Pty Ltd (ACN 086 230 122) | D36: 086026986 | E36: Vic | F36: Gas | G36: Distribution | H36: Weighted average price cap | I36: Calendar | J36: December | K36: 5 | L36: 5 | M36: x | O36: 6 Nexus Court | Q36: MULGRAVE | R36: Vic | S36: 3149 | Y36: Stephanie McDougall | Z36: 03 8846 9538 | AA36: Stephanie.McDougall@ue.com.au | AN36: Multinet Gas
B37: Murraylink | C37: Murraylink | D37: 79181207909 | E37: SA | F37: Electricity | G37: Transmission | H37: Revenue cap | I37: Financial | J37: June | K37: 5 | L37: 5 | M37: 5 | N37: transmission determination | AI37: CBD | AJ37: Urban | AK37: Short rural | AL37: Long rural | AN37: Murraylink
B38: Power and Water | C38: Power and Water Corporation | D38: 15947352360 | E38: NT | F38: Electricity | G38: Distribution | H38: Revenue cap | I38: Financial | J38: June | K38: 5 | L38: 5 | M38: x | N38: distribution determination | O38: GPO Box 1921 | Q38: DARWIN | R38: NT | S38: 0801 | T38: GPO Box 1921 | V38: DARWIN | W38: NT | X38: 0801 | Y38: Lucy Moon | Z38: 08 8924 5822 | AA38: Lucy.Moon@powerwater.com.au | AC38: YES | AD38: YES | AE38: YES | AF38: YES | AG38: NO
B39: Powercor Australia | C39: Powercor Australia | D39: 89064651109 | E39: Vic | F39: Electricity | G39: Distribution | H39: Revenue cap | I39: Calendar | J39: December | K39: 5 | L39: 5 | M39: 2 | N39: 2016-20 Distribution Determination | O39: 40 Market Street | Q39: MELBOURNE | R39: Vic | S39: 3000 | T39: Locked bag 14090 | V39: MELBOURNE | W39: VIC | X39: 8001 | Y39: Hannah Williams | Z39: 03 9683 4088 | AA39: hwilliams@powercor.com.au | AE39: YES | AF39: YES | AG39: NO | AI39: CBD | AJ39: Urban | AK39: Short rural | AL39: Long rural | AN39: Powercor Australia
B40: Powerlink | C40: Queensland Electricity Transmission Corporation Limited trading as Powerlink Queensland | D40: 82078849233 | E40: Qld | F40: Electricity | G40: Transmission | H40: Revenue cap | I40: Financial | J40: June | K40: 5 | L40: 5 | M40: 5 | N40: transmission determination | O40: 33 Harold St | Q40: VIRGINIA | R40: Qld | S40: 4014 | T40: PO Box 1193 | V40: VIRGINIA | W40: QLD | X40: 4014 | Y40: Jennifer Harris | Z40: 07 3860 2667 | AA40: jharris@powerlink.com.au | AI40: CBD | AJ40: Urban | AK40: Short rural | AL40: Long rural | AN40: Powerlink
B41: Roma to Brisbane Pipeline | C41: APT Petroleum Pipelines Limited t/a Roma to Brisbane Pipeline | D41: 009 737 393 | E41: Qld | F41: Gas | G41: Transmission | H41: Weighted average price cap | I41: Financial | J41: June | K41: 5 | L41: 5 | M41: x | N41: n/a | O41: 580 George Street | Q41: SYDNEY | R41: NSW | S41: 2000 | T41: PO Box R41 | V41: ROYAL EXCHANGE | W41: NSW | X41: 1225 | Y41: Mark Allen | Z41: 02 9275 0010 | AA41: mark.allen@apa.com.au | AI41: CBD | AJ41: Urban | AK41: Short rural | AL41: Long rural | AN41: Roma to Brisbane Pipeline
B42: SA Power Networks | C42: SA Power Networks | D42: 13332330749 | E42: SA | F42: Electricity | G42: Distribution | H42: Revenue cap | I42: Financial | J42: June | K42: 5 | L42: 5 | M42: 5 | N42: 2015-20 Distribution Determination | O42: 1 Anzac Highway | Q42: KESWICK | R42: SA | S42: 5035 | T42: GPO Box 77 | V42: ADELAIDE | W42: SA | X42: 5000 | Y42: Richard Sibly | Z42: 08 8404 5613 | AA42: richard.sibly@sapowernetworks.com.au | AE42: YES | AF42: YES | AG42: NO | AI42: CBD | AJ42: Urban | AK42: Short rural | AL42: Long rural | AN42: SA Power Networks
B43: TasNetworks (D) | C43: TasNetworks (D) | D43: 24167357299 | E43: Tas | F43: Electricity | G43: Distribution | H43: Revenue cap | I43: Financial | J43: June | K43: 5 | L43: 5 | M43: 5 | N43: distribution determination | O43: 1-7 Maria Street | Q43: LENAH VALLEY | R43: Tas | S43: 7008 | T43: PO Box 606 | V43: MOONAH | W43: Tas | X43: 7009 | Y43: John Sayers | Z43: 03 6271 6469 | AA43: john.sayers@tasnetworks.com.au | AE43: YES | AF43: YES | AG43: YES | AI43: Critical Infrastructure | AJ43: High density commercial | AK43: Urban | AL43: High density rural | AM43: Low density rural | AN43: TasNetworks (D)
B44: TasNetworks (T) | C44: TasNetworks (T) | D44: 24167357299 | E44: Tas | F44: Electricity | G44: Transmission | H44: Revenue cap | I44: Financial | J44: June | K44: 5 | L44: 5 | M44: 5 | N44: transmission determination | O44: 1-7 Maria Street | Q44: LENAH VALLEY | R44: Tas | S44: 7008 | T44: PO Box 606 | V44: MOONAH | W44: Tas | X44: 7009 | Y44: John Sayers | Z44: 03 6271 6469 | AA44: john.sayers@tasnetworks.com.au | AI44: CBD | AJ44: Urban | AK44: Short rural | AL44: Long rural | AN44: TasNetworks (T)
B45: TransGrid | C45: NSW Electricity Networks Operations Pty Ltd trading as TransGrid | D45: 609169959 | E45: NSW | F45: Electricity | G45: Transmission | H45: Revenue cap | I45: Financial | J45: June | K45: 5 | L45: 4 | M45: 5 | N45: transmission determination | O45: 180 Thomas Street | Q45: SYDNEY | R45: NSW | S45: 2000 | T45: PO Box A1000 | V45: SYDNEY SOUTH | W45: NSW | X45: 1235 | Y45: Garrie Chubb | Z45: 0408 210 221 | AA45: garrie.chubb@transgrid.com.au | AI45: CBD | AJ45: Urban | AK45: Short rural | AL45: Long rural | AN45: TransGrid
B46: United Energy | C46: United Energy | D46: 70064651029 | E46: Vic | F46: Electricity | G46: Distribution | H46: Revenue cap | I46: Calendar | J46: December | K46: 5 | L46: 5 | M46: 2 | N46: 2016-20 Distribution Determination | O46: Level 3 | P46: 6 Nexus Court | Q46: MULGRAVE | R46: Vic | S46: 3149 | T46: PO Box 449 | V46: MOUNT WAVERLEY | W46: VIC | X46: 3170 | Y46: Mathew Abraham | Z46: 03 8846 9758 | AA46: mathew.abraham@ue.com.au | AE46: YES | AF46: NO | AG46: NO | AI46: CBD | AJ46: Urban | AK46: Short rural | AL46: Long rural | AN46: United Energy
B47: Western Power (D) | C47: Western Power (D) | D47: 18540492861 | E47: WA | F47: Electricity | G47: Distribution | H47: Revenue cap | I47: Financial | J47: June | K47: 12 | L47: 4 | M47: x | N47: distribution determination | O47: 363 Wellington Street | Q47: PERTH | R47: WA | S47: 6000 | T47: GPO Box L921 | V47: PERTH | W47: WA | X47: 6842 | Y47: Judy Hunter | Z47: 08 9326 6239 | AA47: judy.hunter@westernpower.com.au | AE47: YES | AF47: YES | AG47: NO | AH47: NO | AI47: CBD | AJ47: Urban | AK47: Short rural | AL47: Long rural | AN47: Western Power (D)
B48: Western Power (T) | C48: Western Power (T) | D48: 18540492861 | E48: WA | F48: Electricity | G48: Transmission | H48: Revenue cap | I48: Financial | J48: June | K48: 12 | L48: 4 | M48: x | N48: transmission determination | O48: 363 Wellington Street | Q48: PERTH | R48: WA | S48: 6000 | T48: GPO Box L921 | V48: PERTH | W48: WA | X48: 6842 | Y48: Judy Hunter | Z48: 08 9326 6239 | AA48: judy.hunter@westernpower.com.au | AE48: YES | AF48: YES | AG48: NO | AI48: CBD | AJ48: Urban | AK48: Short rural | AL48: Long rural | AN48: Western Power (T)
W51: For EB & Reset RINs only | AC51: For AARs only
B52: The Reg Year Ending (dms_RYE) must be set to the last year of the regulatory period. For forecast data is is usually (FRCP_y5) for actual it is a single year (CRY). For historical actual data the RYE will need to be set manually in the business details sheet by setting the dms_Multiyear_flag to 1 and putting the correct value in 'dms_Specified_FinalYear. See cells C67:C68 | G52: =IF(dms_RPT="financial",VALUE(LEFT(CRCP_y1,4)-1)&"-"&TEXT(VALUE(RIGHT(CRCP_y1,2)-1),"00"),VALUE(LEFT(CRCP_y1,4)-1)) -> 2011-12 | N52: Drop down selector box for CA & Reset RINs. | O52: For CA & Reset RINs only | W52: for DNSP only | AC52: For DNSPs only | AI52: Reason for interruption | AJ52: dms_Reason_Interruption_Detailed | AK52: dms_Reason_Interruption
B53: dms_Model_List | C53: DELETE NR 'CRY' IF NOT AN ANNUAL RIN (EB, CA , ARR) | E53: dms_RYE_Formula_Result | N53: dms_0203_ProjectType | O53: dms_020303_01_UOM | P53: dms_020501_01_UOM | Q53: dms_020501_02_UOM | R53: dms_020501_03_UOM | S53: dms_020501_04_UOM | T53: dms_020603_01_UOM | U53: dms_040102_01_UOM | V53: dms_040102_04_UOM | W53: dms_030601_01_UOM | X53: dms_030601_02_UOM | Y53: dms_030701_01_UOM | Z53: dms_030702_01_UOM | AA53: dms_030703_01_UOM | AC53: dms_030605_UOM | AD53: dms_03060703_UOM | AI53: Animal | AJ53: Animal impact | AK53: Animal
B54: ARR | C54: ANNUAL REPORTING STATEMENT | E54: =LEFT(dms_SingleYear_FinalYear_Result,2)&RIGHT(dms_SingleYear_FinalYear_Result,2) -> 2017 | F54: =LEFT(dms_SingleYear_FinalYear_Result,2)&RIGHT(dms_SingleYear_FinalYear_Result,2) | H54: Formula errors are OK | N54: New line on new route - single circuit | O54: Circuit line length in km | P54: 0's | Q54: 0's | R54: 0's | S54: 0's | T54: 0's | U54: 0's | V54: days | W54: minutes/customer | X54: minutes/customer | Y54: Customer / km | Z54: % | AA54: km | AC54: number | AD54: number | AJ54: Animal nesting/burrowing, etc and other | AK54: Asset failure
B55: CA | C55: CATEGORY ANALYSIS | E55: =LEFT(dms_SingleYear_FinalYear_Result,2)&RIGHT(dms_SingleYear_FinalYear_Result,2) -> 2017 | F55: =LEFT(dms_SingleYear_FinalYear_Result,2)&RIGHT(dms_SingleYear_FinalYear_Result,2) | H55: Formula errors are OK | N55: New line on new route - dual circuit | O55: Circuit line length in km | P55: 0's | Q55: 0's | R55: 0's | S55: 0's | T55: 0's | U55: 0's | V55: 0's | W55: minutes/customer | X55: minutes/customer | Y55: MWh/customer | Z55: Number of spans | AC55: number | AD55: number | AJ55: Other | AK55: Other
B56: CPI | C56: CPI | N56: New line on new route - other | O56: Circuit line length in km | P56: MVA added | Q56: MVA added | R56: MVA added | S56: MVA added | T56: 0's | U56: 0's | V56: $0s | W56: interruptions/customer | X56: interruptions/customer | Y56: kVA / customer | Z56: Number of spans | AC56: number | AD56: number | AI56: Asset failure | AJ56: LV | AK56: Overloads
B57: EB | C57: ECONOMIC BENCHMARKING | E57: =LEFT(dms_SingleYear_FinalYear_Result,2)&RIGHT(dms_SingleYear_FinalYear_Result,2) -> 2017 | F57: =LEFT(dms_SingleYear_FinalYear_Result,2)&RIGHT(dms_SingleYear_FinalYear_Result,2) | H57: Formula errors are OK | N57: Line rebuild over existing route - single circuit | O57: Circuit line length in km | P57: 0's | Q57: 0's | R57: 0's | S57: 0's | T57: 0's | U57: $0s | V57: 0's | W57: interruptions/customer | X57: interruptions/customer | Z57: Number of spans | AC57: number | AD57: number | AJ57: Distribution substation | AK57: Planned
B58: PTRM | C58: POST TAX REVENUE MODEL | E58: =LEFT(dms_MultiYear_FinalYear_Result,2)&RIGHT(dms_MultiYear_FinalYear_Result,2) -> 2022 | F58: =LEFT(dms_MultiYear_FinalYear_Result,2)&RIGHT(dms_MultiYear_FinalYear_Result,2) | N58: Line rebuild over existing route - dual circuit | O58: Number | P58: total spend $0s | Q58: total spend $0s | R58: total spend $0s | S58: total spend $0s | T58: (per cent) | Z58: Number of spans | AC58: number | AD58: (per cent) | AJ58: HV | AK58: Network business
B59: Reset | C59: REGULATORY REPORTING STATEMENT | E59: =LEFT(dms_MultiYear_FinalYear_Result,2)&RIGHT(dms_MultiYear_FinalYear_Result,2) -> 2022 | F59: =LEFT(dms_MultiYear_FinalYear_Result,2)&RIGHT(dms_MultiYear_FinalYear_Result,2) | H59: Formula errors are OK | N59: Reconductor - Single circuit | O59: Number | P59: net circuit km added | Q59: net circuit km added | R59: net circuit km added | S59: net circuit km added | Z59: Years | AC59: number | AJ59: Zone substation | AK59: Third party
B60: RFM | C60: ROLL FORWARD MODEL | E60: =LEFT(dms_CRCP_FinalYear_Result,2)&RIGHT(dms_CRCP_FinalYear_Result,2) -> 2017 | F60: =LEFT(dms_CRCP_FinalYear_Result,2)&RIGHT(dms_CRCP_FinalYear_Result,2) | N60: Reconductor - Dual circuit | O60: Number | P60: total spend $0s | Q60: total spend $0s | R60: total spend $0s | S60: total spend $0s | Z60: Years | AC60: number | AJ60: Subtransmission | AK60: Unknown
B61: WACC | C61: WEIGHTED AVERAGE COST OF CAPITAL | E61: =LEFT(dms_MultiYear_FinalYear_Result,2)&RIGHT(dms_MultiYear_FinalYear_Result,2) -> 2022 | F61: =LEFT(dms_MultiYear_FinalYear_Result,2)&RIGHT(dms_MultiYear_FinalYear_Result,2) | N61: Other | P61: net circuit km added | Q61: net circuit km added | R61: net circuit km added | S61: net circuit km added | Z61: Trees | AC61: number | AI61: Other | AJ61: insert description of 'other' | AK61: Vegetation
P62: total spend $0s | Q62: total spend $0s | R62: total spend $0s | S62: total spend $0s | Z62: Trees | AC62: number | AI62: Overloads | AJ62: - | AK62: Weather
B63: dms_DataQuality_List | P63: 0's | R63: $0s | Z63: Defects | AC63: number | AI63: Planned | AJ63: - | AK63: 2 - STPIS Exclusion (3.3)(a)
B64: Actual | P64: 0's | Z64: Defects | AC64: number | AI64: Network business | AJ64: Network error | AK64: 3 - STPIS Exclusion (3.3)(a)
B65: Estimate | P65: 0's | Z65: Spans | AC65: number | AJ65: Switching and protection error | AK65: 4 - STPIS Exclusion (3.3)(a)
B66: Consolidated | P66: $0s | Z66: km | AC66: (per cent) | AI66: Third party | AJ66: Fire | AK66: 5 - STPIS Exclusion (3.3)(a)
B67: Recast | Z67: Spans | AC67: (per cent) | AJ67: Other | AK67: 6 - STPIS Exclusion (3.3)(a)
B68: Public | AJ68: Dig-in | AK68: 7 - STPIS Exclusion (3.3)(a)
AJ69: Unauthorised access
B70: For all files either AER or business needs to be able to specify the type of submission | C70: For PTRM & RFM templates we must provide a choice in case they change their form of control - otherwise it is drawn from the business specific lookup table above. | O70: For PTRM files - this field set the text for the named range "DMS_Xfactor" which in all cases is simply the text "x factors" - this saves putting in each old gas PTRM file | W70: for TNSP only | AJ70: Vehicle impact
B71: dms_SourceList | C71: dms_FormControl_Choices | O71: DMS_Xfactor | W71: dms_030601_01_UOM | Y71: dms_030701_01_UOM | Z71: dms_030702_01_UOM | AI71: Unknown | AJ71: Unknown
B72: After appeal | C72: Revenue cap | O72: x factors | W72: % | Y72: Number of spans | Z72: km | AI72: Vegetation | AJ72: Blow-in/Fall-in - NSP responsibility
B73: Draft decision | C73: Revenue yield | W73: number | Y73: Years | Z73: % | AJ73: Grow-in - NSP responsibility
B74: Final decision | C74: Weighted average price cap | W74: number | Y74: Trees | Z74: km | AJ74: Blow-in/Fall-in - Other responsible party
B75: PTRM update 1 | W75: % | Y75: Defects | Z75: number | AJ75: Grow-in - Other responsible party
B76: PTRM update 2 | W76: number | Y76: Number of spans | AI76: Weather
B77: PTRM update 3 | W77: number | Y77: km | AI77: 2 - STPIS Exclusion (3.3)(a)
B78: PTRM update 4 | W78: % | Y78: km | AI78: 3 - STPIS Exclusion (3.3)(a)
B79: PTRM update 5 | W79: number | Y79: Number of spans | AI79: 4 - STPIS Exclusion (3.3)(a)
B80: PTRM update 6 | W80: number | AI80: 5 - STPIS Exclusion (3.3)(a)
B81: PTRM update 7 | W81: % | AI81: 6 - STPIS Exclusion (3.3)(a)
B82: Regulatory proposal | W82: number | AI82: 7 - STPIS Exclusion (3.3)(a)
B83: Reporting | W83: %
B84: Revised regulatory proposal | W84: number
W85: %
W86: number
B90: These are indeces and lookup values for various dates. All step from the value placed in FRCP_y1 on the business and other details worksheet | L90: These date tables are currently used in the Recast templates to provide column headings and conditional formatting
B91: dms_FRCPlength_Num_List | C91: dms_FinalYear_List | D91: dms_CRCPlength_Num_List | E91: dms_CFinalYear_List | F91: dms_FRCP_years | H91: dms_CRCP_years | J91: dms_CRCP_index | L91: CRY from input cell on business sheet | M91: CRY - financial | N91: dms_FinYears | O91: CRY calendar | P91: dms_CalYears
B92: 1 | C92: dms_FRCP_y1 | D92: 1 | E92: CRCP_y1 | F92: =FRCP_y1 -> 2017-18 | G92: dms_FRCP_y1 | H92: =IF(dms_RPT="financial",VALUE(LEFT(dms_FRCP_y1,4)-1)&"-"&TEXT(VALUE(MID(dms_FRCP_y1,3,2)),"00"),VALUE(LEFT(dms_FRCP_y1,4)-1)) -> 2016-17 | I92: dms_CRCP_yZ | J92: 1 | L92: =CRY -> 2016-17 | M92: =VALUE(LEFT(CRY,4))&"-"&TEXT(MID(CRY,3,2)+1,"00") -> 2016-17 | N92: dms_CRYf_y1 | O92: =VALUE(LEFT(CRY,4)+1) -> 2017 | P92: dms_CRYc_y1
B93: 2 | C93: dms_FRCP_y2 | D93: 2 | E93: CRCP_y2 | F93: =IF(dms_RPT="financial",VALUE(LEFT(dms_FRCP_y1,4)+1)&"-"&TEXT(VALUE(RIGHT(dms_FRCP_y1,2)+1),"00"),VALUE(LEFT(dms_FRCP_y1,4)+1)) -> 2018-19 | G93: dms_FRCP_y2 | H93: =IF(dms_RPT="financial",VALUE(LEFT(dms_CRCP_yZ,4)-1)&"-"&TEXT(VALUE(MID(dms_CRCP_yZ,3,2)),"00"),VALUE(LEFT(dms_CRCP_yZ,4)-1)) -> 2015-16 | I93: dms_CRCP_yY | J93: 2 | M93: =VALUE(LEFT(dms_CRYf_y1,4)+1)&"-"&TEXT(MID(dms_CRYf_y1,3,2)+2,"00") -> 2017-18 | N93: dms_CRYf_y2 | O93: =VALUE(LEFT(dms_CRYc_y1,4)+1) -> 2018 | P93: dms_CRYc_y2
B94: 3 | C94: dms_FRCP_y3 | D94: 3 | E94: CRCP_y3 | F94: =IF(dms_RPT="financial",VALUE(LEFT(dms_FRCP_y2,4)+1)&"-"&TEXT(VALUE(RIGHT(dms_FRCP_y2,2)+1),"00"),VALUE(LEFT(dms_FRCP_y2,4)+1)) -> 2019-20 | G94: dms_FRCP_y3 | H94: =IF(dms_RPT="financial",VALUE(LEFT(dms_CRCP_yY,4)-1)&"-"&TEXT(VALUE(MID(dms_CRCP_yY,3,2)),"00"),VALUE(LEFT(dms_CRCP_yY,4)-1)) -> 2014-15 | I94: dms_CRCP_yX | J94: 3 | M94: =VALUE(LEFT(dms_CRYf_y2,4)+1)&"-"&TEXT(MID(dms_CRYf_y2,3,2)+2,"00") -> 2018-19 | N94: dms_CRYf_y3 | O94: =VALUE(LEFT(dms_CRYc_y2,4)+1) -> 2019 | P94: dms_CRYc_y3
B95: 4 | C95: dms_FRCP_y4 | D95: 4 | E95: CRCP_y4 | F95: =IF(dms_RPT="financial",VALUE(LEFT(dms_FRCP_y3,4)+1)&"-"&TEXT(VALUE(RIGHT(dms_FRCP_y3,2)+1),"00"),VALUE(LEFT(dms_FRCP_y3,4)+1)) -> 2020-21 | G95: dms_FRCP_y4 | H95: =IF(dms_RPT="financial",VALUE(LEFT(dms_CRCP_yX,4)-1)&"-"&TEXT(VALUE(MID(dms_CRCP_yX,3,2)),"00"),VALUE(LEFT(dms_CRCP_yX,4)-1)) -> 2013-14 | I95: dms_CRCP_yW | J95: 4 | M95: =VALUE(LEFT(dms_CRYf_y3,4)+1)&"-"&TEXT(MID(dms_CRYf_y3,3,2)+2,"00") -> 2019-20 | N95: dms_CRYf_y4 | O95: =VALUE(LEFT(dms_CRYc_y3,4)+1) -> 2020 | P95: dms_CRYc_y4
B96: 5 | C96: dms_FRCP_y5 | D96: 5 | E96: CRCP_y5 | F96: =IF(dms_RPT="financial",VALUE(LEFT(dms_FRCP_y4,4)+1)&"-"&TEXT(VALUE(RIGHT(dms_FRCP_y4,2)+1),"00"),VALUE(LEFT(dms_FRCP_y4,4)+1)) -> 2021-22 | G96: dms_FRCP_y5 | H96: =IF(dms_RPT="financial",VALUE(LEFT(dms_CRCP_yW,4)-1)&"-"&TEXT(VALUE(MID(dms_CRCP_yW,3,2)),"00"),VALUE(LEFT(dms_CRCP_yW,4)-1)) -> 2012-13 | I96: dms_CRCP_yV | J96: 5 | M96: =VALUE(LEFT(dms_CRYf_y4,4)+1)&"-"&TEXT(MID(dms_CRYf_y4,3,2)+2,"00") -> 2020-21 | N96: dms_CRYf_y5 | O96: =VALUE(LEFT(dms_CRYc_y4,4)+1) -> 2021 | P96: dms_CRYc_y5
B97: 6 | C97: dms_FRCP_y6 | D97: 6 | E97: CRCP_y6 | F97: =IF(dms_RPT="financial",VALUE(LEFT(dms_FRCP_y5,4)+1)&"-"&TEXT(VALUE(RIGHT(dms_FRCP_y5,2)+1),"00"),VALUE(LEFT(dms_FRCP_y5,4)+1)) -> 2022-23 | G97: dms_FRCP_y6 | H97: =IF(dms_RPT="financial",VALUE(LEFT(dms_CRCP_yV,4)-1)&"-"&TEXT(VALUE(MID(dms_CRCP_yV,3,2)),"00"),VALUE(LEFT(dms_CRCP_yV,4)-1)) -> 2011-12 | I97: dms_CRCP_yU | J97: 6 | M97: =VALUE(LEFT(dms_CRYf_y5,4)+1)&"-"&TEXT(MID(dms_CRYf_y5,3,2)+2,"00") -> 2021-22 | N97: dms_CRYf_y6 | O97: =VALUE(LEFT(dms_CRYc_y5,4)+1) -> 2022 | P97: dms_CRYc_y6
B98: 7 | C98: dms_FRCP_y7 | D98: 7 | E98: CRCP_y7 | F98: =IF(dms_RPT="financial",VALUE(LEFT(dms_FRCP_y6,4)+1)&"-"&TEXT(VALUE(RIGHT(dms_FRCP_y6,2)+1),"00"),VALUE(LEFT(dms_FRCP_y6,4)+1)) -> 2023-24 | G98: dms_FRCP_y7 | H98: =IF(dms_RPT="financial",VALUE(LEFT(dms_CRCP_yU,4)-1)&"-"&TEXT(VALUE(MID(dms_CRCP_yU,3,2)),"00"),VALUE(LEFT(dms_CRCP_yU,4)-1)) -> 2010-11 | I98: dms_CRCP_yT | J98: 7 | M98: =VALUE(LEFT(dms_CRYf_y6,4)+1)&"-"&TEXT(MID(dms_CRYf_y6,3,2)+2,"00") -> 2022-23 | N98: dms_CRYf_y7 | O98: =VALUE(LEFT(dms_CRYc_y6,4)+1) -> 2023 | P98: dms_CRYc_y7
B99: 8 | C99: dms_FRCP_y8 | D99: 8 | E99: CRCP_y8 | F99: =IF(dms_RPT="financial",VALUE(LEFT(dms_FRCP_y7,4)+1)&"-"&TEXT(VALUE(RIGHT(dms_FRCP_y7,2)+1),"00"),VALUE(LEFT(dms_FRCP_y7,4)+1)) -> 2024-25 | G99: dms_FRCP_y8 | H99: =IF(dms_RPT="financial",VALUE(LEFT(dms_CRCP_yT,4)-1)&"-"&TEXT(VALUE(MID(dms_CRCP_yT,3,2)),"00"),VALUE(LEFT(dms_CRCP_yT,4)-1)) -> 2009-10 | I99: dms_CRCP_yS | J99: 8 | M99: =VALUE(LEFT(dms_CRYf_y7,4)+1)&"-"&TEXT(MID(dms_CRYf_y7,3,2)+2,"00") -> 2023-24 | N99: dms_CRYf_y8 | O99: =VALUE(LEFT(dms_CRYc_y7,4)+1) -> 2024 | P99: dms_CRYc_y8
B100: 9 | C100: dms_FRCP_y9 | D100: 9 | E100: CRCP_y9 | F100: =IF(dms_RPT="financial",VALUE(LEFT(dms_FRCP_y8,4)+1)&"-"&TEXT(VALUE(RIGHT(dms_FRCP_y8,2)+1),"00"),VALUE(LEFT(dms_FRCP_y8,4)+1)) -> 2025-26 | G100: dms_FRCP_y9 | H100: =IF(dms_RPT="financial",VALUE(LEFT(dms_CRCP_yS,4)-1)&"-"&TEXT(VALUE(MID(dms_CRCP_yS,3,2)),"00"),VALUE(LEFT(dms_CRCP_yS,4)-1)) -> 2008-09 | I100: dms_CRCP_yR | J100: 9 | M100: =VALUE(LEFT(dms_CRYf_y8,4)+1)&"-"&TEXT(MID(dms_CRYf_y8,3,2)+2,"00") -> 2024-25 | N100: dms_CRYf_y9 | O100: =VALUE(LEFT(dms_CRYc_y8,4)+1) -> 2025 | P100: dms_CRYc_y9
B101: 10 | C101: dms_FRCP_y10 | D101: 10 | E101: CRCP_y10 | F101: =IF(dms_RPT="financial",VALUE(LEFT(dms_FRCP_y9,4)+1)&"-"&TEXT(VALUE(RIGHT(dms_FRCP_y9,2)+1),"00"),VALUE(LEFT(dms_FRCP_y9,4)+1)) -> 2026-27 | G101: dms_FRCP_y10 | H101: =IF(dms_RPT="financial",VALUE(LEFT(dms_CRCP_yR,4)-1)&"-"&TEXT(VALUE(MID(dms_CRCP_yR,3,2)),"00"),VALUE(LEFT(dms_CRCP_yR,4)-1)) -> 2007-08 | I101: dms_CRCP_yQ | J101: 10 | M101: =VALUE(LEFT(dms_CRYf_y9,4)+1)&"-"&TEXT(MID(dms_CRYf_y9,3,2)+2,"00") -> 2025-26 | N101: dms_CRYf_y10 | O101: =VALUE(LEFT(dms_CRYc_y9,4)+1) -> 2026 | P101: dms_CRYc_y10
B102: 11 | C102: dms_FRCP_y11 | D102: 11 | E102: CRCP_y11 | F102: =IF(dms_RPT="financial",VALUE(LEFT(dms_FRCP_y10,4)+1)&"-"&TEXT(VALUE(RIGHT(dms_FRCP_y10,2)+1),"00"),VALUE(LEFT(dms_FRCP_y10,4)+1)) -> 2027-28 | G102: dms_FRCP_y11 | H102: =IF(dms_RPT="financial",VALUE(LEFT(dms_CRCP_yQ,4)-1)&"-"&TEXT(VALUE(MID(dms_CRCP_yQ,3,2)),"00"),VALUE(LEFT(dms_CRCP_yQ,4)-1)) -> 2006-07 | I102: dms_CRCP_yP | J102: 11 | M102: =VALUE(LEFT(dms_CRYf_y10,4)+1)&"-"&TEXT(MID(dms_CRYf_y10,3,2)+2,"00") -> 2026-27 | N102: dms_CRYf_y11 | O102: =VALUE(LEFT(dms_CRYc_y10,4)+1) -> 2027 | P102: dms_CRYc_y11
B103: 12 | C103: dms_FRCP_y12 | D103: 12 | E103: CRCP_y12 | F103: =IF(dms_RPT="financial",VALUE(LEFT(dms_FRCP_y11,4)+1)&"-"&TEXT(VALUE(RIGHT(dms_FRCP_y11,2)+1),"00"),VALUE(LEFT(dms_FRCP_y11,4)+1)) -> 2028-29 | G103: dms_FRCP_y12 | H103: =IF(dms_RPT="financial",VALUE(LEFT(dms_CRCP_yP,4)-1)&"-"&TEXT(VALUE(MID(dms_CRCP_yP,3,2)),"00"),VALUE(LEFT(dms_CRCP_yP,4)-1)) -> 2005-06 | I103: dms_CRCP_yO | J103: 12 | M103: =VALUE(LEFT(dms_CRYf_y11,4)+1)&"-"&TEXT(MID(dms_CRYf_y11,3,2)+2,"00") -> 2027-28 | N103: dms_CRYf_y12 | O103: =VALUE(LEFT(dms_CRYc_y11,4)+1) -> 2028 | P103: dms_CRYc_y12
B104: 13 | C104: dms_FRCP_y13 | D104: 13 | E104: CRCP_y13 | F104: =IF(dms_RPT="financial",VALUE(LEFT(dms_FRCP_y12,4)+1)&"-"&TEXT(VALUE(RIGHT(dms_FRCP_y12,2)+1),"00"),VALUE(LEFT(dms_FRCP_y12,4)+1)) -> 2029-30 | G104: dms_FRCP_y13 | H104: =IF(dms_RPT="financial",VALUE(LEFT(dms_CRCP_yO,4)-1)&"-"&TEXT(VALUE(MID(dms_CRCP_yO,3,2)),"00"),VALUE(LEFT(dms_CRCP_yO,4)-1)) -> 2004-05 | I104: dms_CRCP_yN | J104: 13 | M104: =VALUE(LEFT(dms_CRYf_y12,4)+1)&"-"&TEXT(MID(dms_CRYf_y12,3,2)+2,"00") -> 2028-29 | N104: dms_CRYf_y13 | O104: =VALUE(LEFT(dms_CRYc_y12,4)+1) -> 2029 | P104: dms_CRYc_y13
B105: 14 | C105: dms_FRCP_y14 | D105: 14 | E105: CRCP_y14 | F105: =IF(dms_RPT="financial",VALUE(LEFT(dms_FRCP_y13,4)+1)&"-"&TEXT(VALUE(RIGHT(dms_FRCP_y13,2)+1),"00"),VALUE(LEFT(dms_FRCP_y13,4)+1)) -> 2030-31 | G105: dms_FRCP_y14 | H105: =IF(dms_RPT="financial",VALUE(LEFT(dms_CRCP_yN,4)-1)&"-"&TEXT(VALUE(MID(dms_CRCP_yN,3,2)),"00"),VALUE(LEFT(dms_CRCP_yN,4)-1)) -> 2003-04 | I105: dms_CRCP_yM | J105: 14 | M105: =VALUE(LEFT(dms_CRYf_y13,4)+1)&"-"&TEXT(MID(dms_CRYf_y13,3,2)+2,"00") -> 2029-30 | N105: dms_CRYf_y14 | O105: =VALUE(LEFT(dms_CRYc_y13,4)+1) -> 2030 | P105: dms_CRYc_y14
B106: 15 | C106: dms_FRCP_y15 | D106: 15 | E106: CRCP_y15 | F106: =IF(dms_RPT="financial",VALUE(LEFT(dms_FRCP_y14,4)+1)&"-"&TEXT(VALUE(RIGHT(dms_FRCP_y14,2)+1),"00"),VALUE(LEFT(dms_FRCP_y14,4)+1)) -> 2031-32 | G106: dms_FRCP_y15 | H106: =IF(dms_RPT="financial",VALUE(LEFT(dms_CRCP_yM,4)-1)&"-"&TEXT(VALUE(MID(dms_CRCP_yM,3,2)),"00"),VALUE(LEFT(dms_CRCP_yM,4)-1)) -> 2002-03 | I106: dms_CRCP_yL | J106: 15 | M106: =VALUE(LEFT(dms_CRYf_y14,4)+1)&"-"&TEXT(MID(dms_CRYf_y14,3,2)+2,"00") -> 2030-31 | N106: dms_CRYf_y15 | O106: =VALUE(LEFT(dms_CRYc_y14,4)+1) -> 2031 | P106: dms_CRYc_y15
M107: =VALUE(LEFT(dms_CRYf_y15,4)+1)&"-"&TEXT(MID(dms_CRYf_y15,3,2)+2,"00") -> 2031-32 | N107: dms_CRYf_y16 | O107: =VALUE(LEFT(dms_CRYc_y15,4)+1) -> 2032 | P107: dms_CRYc_y16
B108: These are drop down lists for businesses to select the correct FRCP_y1 on the business and other details worksheet. This also populates the column headings in the worksheets | M108: =VALUE(LEFT(dms_CRYf_y16,4)+1)&"-"&TEXT(MID(dms_CRYf_y16,3,2)+2,"00") -> 2032-33 | N108: dms_CRYf_y17 | O108: =VALUE(LEFT(dms_CRYc_y16,4)+1) -> 2033 | P108: dms_CRYc_y17
B109: dms_RCP_fyear_list | C109: dms_CRY_ListF | D109: dms_CRY_ListC | E109: dms_RCP_cyear_list | F109: dms_FRCP_fyear_list | G109: dms_FRCP_ListF | H109: dms_FRCP_ListC | I109: dms_FRCP_cyear_list | M109: =VALUE(LEFT(dms_CRYf_y17,4)+1)&"-"&TEXT(MID(dms_CRYf_y17,3,2)+2,"00") -> 2033-34 | N109: dms_CRYf_y18 | O109: =VALUE(LEFT(dms_CRYc_y17,4)+1) -> 2034 | P109: dms_CRYc_y18
B110: dms_fy1 | C110: 2006-07 | D110: 2007 | E110: dms_cy1 | F110: dms_frcp_fy1 | G110: 2015-16 | H110: 2016 | I110: dms_crcp_cy1 | M110: =VALUE(LEFT(dms_CRYf_y18,4)+1)&"-"&TEXT(MID(dms_CRYf_y18,3,2)+2,"00") -> 2034-35 | N110: dms_CRYf_y19 | O110: =VALUE(LEFT(dms_CRYc_y18,4)+1) -> 2035 | P110: dms_CRYc_y19
B111: dms_fy2 | C111: 2007-08 | D111: 2008 | E111: dms_cy2 | F111: dms_frcp_fy2 | G111: 2016-17 | H111: 2017 | I111: dms_crcp_cy2 | M111: =VALUE(LEFT(dms_CRYf_y19,4)+1)&"-"&TEXT(MID(dms_CRYf_y19,3,2)+2,"00") -> 2035-36 | N111: dms_CRYf_y20 | O111: =VALUE(LEFT(dms_CRYc_y19,4)+1) -> 2036 | P111: dms_CRYc_y20
B112: dms_fy3 | C112: 2008-09 | D112: 2009 | E112: dms_cy3 | F112: dms_frcp_fy3 | G112: 2017-18 | H112: 2018 | I112: dms_crcp_cy3
B113: dms_fy4 | C113: 2009-10 | D113: 2010 | E113: dms_cy4 | F113: dms_frcp_fy4 | G113: 2018-19 | H113: 2019 | I113: dms_crcp_cy4
B114: dms_fy5 | C114: 2010-11 | D114: 2011 | E114: dms_cy5 | F114: dms_frcp_fy5 | G114: 2019-20 | H114: 2020 | I114: dms_crcp_cy5
B115: dms_fy6 | C115: 2011-12 | D115: 2012 | E115: dms_cy6 | F115: dms_frcp_fy6 | G115: 2020-21 | H115: 2021 | I115: dms_crcp_cy6
B116: dms_fy7 | C116: 2012-13 | D116: 2013 | E116: dms_cy7 | F116: dms_frcp_fy7 | G116: 2021-22 | H116: 2022 | I116: dms_crcp_cy7
B117: dms_fy8 | C117: 2013-14 | D117: 2014 | E117: dms_cy8 | F117: dms_frcp_fy8 | G117: 2022-23 | H117: 2023 | I117: dms_crcp_cy8 | L117: 2005-06 | M117: 2006
B118: dms_fy9 | C118: 2014-15 | D118: 2015 | E118: dms_cy9 | F118: dms_frcp_fy9 | G118: 2023-24 | H118: 2024 | I118: dms_crcp_cy9 | L118: 2006-07 | M118: 2007
B119: dms_fy10 | C119: 2015-16 | D119: 2016 | E119: dms_cy10 | F119: dms_frcp_fy10 | G119: 2024-25 | H119: 2025 | I119: dms_crcp_cy10 | L119: 2007-08 | M119: 2008
B120: dms_fy11 | C120: 2016-17 | D120: 2017 | E120: dms_cy11 | F120: dms_frcp_fy11 | G120: 2025-26 | H120: 2026 | I120: dms_crcp_cy11 | L120: 2008-09 | M120: 2009
B121: dms_fy12 | C121: 2017-18 | D121: 2018 | E121: dms_cy12 | F121: dms_frcp_fy12 | G121: 2026-27 | H121: 2027 | I121: dms_crcp_cy12 | L121: 2009-10 | M121: 2010
B122: dms_fy13 | C122: 2018-19 | D122: 2019 | E122: dms_cy13 | F122: dms_frcp_fy13 | G122: 2027-28 | H122: 2028 | I122: dms_crcp_cy13 | L122: 2010-11 | M122: 2011
B123: dms_fy14 | C123: 2019-20 | D123: 2020 | E123: dms_cy14 | F123: dms_frcp_fy14 | G123: 2028-29 | H123: 2029 | I123: dms_crcp_cy14 | L123: 2011-12 | M123: 2012
B124: dms_fy15 | C124: 2019-20 | D124: 2020 | E124: dms_cy15 | F124: dms_frcp_fy15 | G124: 2029-30 | H124: 2030 | I124: dms_crcp_cy15 | L124: 2012-13 | M124: 2013
B125: dms_fy16 | C125: 2020-21 | D125: 2021 | E125: dms_cy16 | L125: 2013-14 | M125: 2014
B126: dms_fy17 | C126: 2021-22 | D126: 2022 | E126: dms_cy17 | L126: 2014-15 | M126: 2015
B127: dms_fy18 | C127: 2022-23 | D127: 2023 | E127: dms_cy18 | L127: 2015-16 | M127: 2016
B128: dms_fy19 | C128: 2023-24 | D128: 2024 | E128: dms_cy19 | L128: 2016-17 | M128: 2017
B129: dms_fy20 | C129: 2024-25 | D129: 2025 | E129: dms_cy20 | L129: 2017-18 | M129: 2018
L130: 2018-19 | M130: 2019
L131: 2019-20 | M131: 2020
L132: 2020-21 | M132: 2021
L133: 2021-22 | M133: 2022
L134: 2022-23 | M134: 2023
L135: 2023-24 | M135: 2024
L136: 2024-25 | M136: 2025
L137: 2025-26 | M137: 2026
L138: 2026-27 | M138: 2027
L139: 2027-28 | M139: 2028
L140: 2028-29 | M140: 2029
L141: 2029-30 | M141: 2030
L142: 2030-31 | M142: 2031
L143: 2031-32 | M143: 2032
L144: 2032-33 | M144: 2033
L145: 2033-34 | M145: 2034
L146: 2034-35 | M146: 2035
L147: 2035-36 | M147: 2036

Sheet Instructions
B2: =CONCATENATE(dms_Segment," Network Service Provider") -> Distribution Network Service Provider
B3: Annual Reporting RIN Template
C4: =CONCATENATE("This template is to be used by ",dms_TradingName," to fulfil its reporting obligations to the AER.") -> This template is to be used by Energex to fulfil its reporting obligations to the AER.
C5: INSTRUCTIONS
C6: Complete the Business & other details worksheet before entering data or values in any other worksheets. The Business & other details worksheet is linked to other worksheets within the workbook and automatically generates certain column headings and conditional formatting.
C8: Identifying CONFIDENTIAL INFORMATION: Please use the macro at the top of each worksheet to identify confidential information.
C9: -Do this by selecting the cell or cells that contain confidential information and then run the Mark selection as CONFIDENTIAL macro. This will format the cells a specific colour that is identified by the AER's database which in turn marks that information as confidential. -To reverse this, select the cell or cells and run the Return selection to NON-CONFIDENTIAL macro
C11: UNITS OF MEASURE All amounts are to be unrounded and reported in nominal terms on a one for one basis: that is 1000 is to be entered as '1000'.
C13: COLOUR CODING OF INPUT / NON-INPUT CELLS:
D14: Yellow = Input cell (mandatory)
D15: Darker yellow = input cell (mandatory)
D16: Orange = input cell (if data available)
D17: Grey = Not applicable/No inputs required
D18: Leave coloured cells blank if no information exists. PLEASE DO NOT ENTER TEXT into cells that are to contain numeric data.
C21: WORKSHEET NAVIGATION Many tables in the worksheets have been "grouped" to allow for easy navigation. To ungroup or group data use the outline symbols in the left margin of excel (for Row groupings) or above the columns (for column groupings).
C23: RETURNING COMPLETED RESPONSES Please return four (4) files to the AER: 1. A confidential version which must contain a complete set of all responses with confidential information marked using the Mark selected cells CONFIDENTIAL macro and which has been completed using the locked template file provided by the AER. 2. An actual and an estimate version with confidential information marked using the Mark selected cells CONFIDENTIAL macro and which has been completed using the locked template file provided by the AER. 3. A public version with confidential information either removed completely or aggregated in some form together with writtten consent to disclose the public version of the response. Use the drop down box on the Business and other details worksheet to identify the file as either confidential ('consolidated') or public.
C25: SUBMITTING AMENDED DATA TO THE AER If an NSP wishes to correct data previously submitted to the AER it should resubmit that data using the original completed submission as the starting point. Please make any necessary changes to the data. Data that is not being amended should be left unchanged. NSPs must identify the reason for the amendments in the Amendment Reason box on the Business and other details worksheet. NSPs may provide further details regarding any amendments in the Amendments worksheet. .
C26: NSP may use Amended Data macro to highlight cells that contain amended data. NB: if data is also CONFIDENTIAL, re-apply the Confidentiality macro after applying the Amended macro
C27: Please resubmit two (2) files - a confidential version and a public version of the amended submission to the AER

Sheet Contents
B1: REGULATORY REPORTING STATEMENT
B2: =INDEX(dms_TradingNameFull_List,MATCH(dms_TradingName,dms_TradingName_List)) -> Energex
B3: =CONCATENATE((LOOKUP(dms_Model,dms_Model_List,dms_Worksheet_List))&" "&CRY) -> CATEGORY ANALYSIS 2016-17
B4: CONTENTS
E7: 1. Business details | L7: 2. Expenditure
E27: 4. Alternative control services | L27: 5. Network information | S27: 6. Service & quality

Sheet Business & other details
B1: =IF(dms_DataQuality="backcast",INDEX(dms_Worksheet_List,MATCH(dms_Model,dms_Model_List))&" BACKCAST",INDEX(dms_Worksheet_List,MATCH(dms_Model,dms_Model_List))) -> CATEGORY ANALYSIS
B2: =INDEX(dms_TradingNameFull_List,MATCH(dms_TradingName,dms_TradingName_List)) -> Energex
B3: =CONCATENATE((LOOKUP(dms_Model,dms_Model_List,dms_Worksheet_List))&" "&CRY) -> CATEGORY ANALYSIS 2016-17
B4: BUSINESS & OTHER DETAILS
B7: Instructions
B8: Complete the following business details regulatory template before entering data or values in any other regulatory template. This regulatory template is linked to other cells within the spreadsheet and automatically generates column headings and conditional formatting to distinguish business specific input and non-input cells.
B10: SUBMISSION PARTICULARS INPUT SHEETS
B12: ENTITY DETAILS
B14: Short name | C14: Energex | F14: Select business name from drop down list first
B15: ACN / ABN | C15: =INDEX(dms_ABN_List,MATCH(dms_TradingName,dms_TradingName_List)) -> 40078849055
B18: Business address | C18: Address 1 | E18: =INDEX(dms_Addr1_List,MATCH(dms_TradingName,dms_TradingName_List)) -> 26 Reddacliff Street
D19: Address 2 | E19: =IF(ISBLANK(INDEX(dms_Addr2_List,MATCH(dms_TradingName,dms_TradingName_List))),"",INDEX(dms_Addr2_List,MATCH(dms_TradingName,dms_TradingName_List))) -> 
C20: Suburb | E20: =INDEX(dms_Suburb_List,MATCH(dms_TradingName,dms_TradingName_List)) -> NEWSTEAD
D21: State | E21: =INDEX(dms_State_List,MATCH(dms_TradingName,dms_TradingName_List)) -> Qld | F21: p/code | G21: =INDEX(dms_PostCode_List,MATCH(dms_TradingName,dms_TradingName_List)) -> 4006
B23: Postal address | C23: Address 1 | E23: =INDEX(dms_PAddr1_List,MATCH(dms_TradingName,dms_TradingName_List)) -> 26 Reddacliff Street
D24: Address 2 | E24: =IF(ISBLANK(INDEX(dms_PAddr2_List,MATCH(dms_TradingName,dms_TradingName_List))),"",INDEX(dms_PAddr2_List,MATCH(dms_TradingName,dms_TradingName_List))) -> 
C25: Suburb | E25: =INDEX(dms_PSuburb_List,MATCH(dms_TradingName,dms_TradingName_List)) -> NEWSTEAD
D26: State | E26: =INDEX(dms_PState_List,MATCH(dms_TradingName,dms_TradingName_List)) -> QLD | F26: p/code | G26: =INDEX(dms_PPostCode_List,MATCH(dms_TradingName,dms_TradingName_List)) -> 4006
B29: Contact name/s | C29: Jenny Doyle | F29: Kim Casey
B30: Contact phone/s | C30: 0427 156 897 | F30: 0428 197 012
B31: Contact email address/s | C31: jenny.doyle@energyq.com.au | F31: kim.casey@energyq.com.au
B33: REGULATORY CONTROL PERIODS
B35: Forthcoming regulatory control period | C35: 2017-18 | D35: =dms_FRCP_y2 -> 2018-19 | E35: =dms_FRCP_y3 -> 2019-20 | F35: =dms_FRCP_y4 -> 2020-21 | G35: =dms_FRCP_y5 -> 2021-22 | H35: =dms_FRCP_y6 -> 2022-23 | I35: =dms_FRCP_y7 -> 2023-24 | J35: =dms_FRCP_y8 -> 2024-25 | K35: =dms_FRCP_y9 -> 2025-26 | L35: =dms_FRCP_y10 -> 2026-27
B38: Current regulatory control period | C38: =dms_CRCP_FirstYear_Result -> 2012-13 | D38: =IF(dms_RPT="financial",VALUE(LEFT(CRCP_y1,4)+1)&"-"&TEXT(MID(CRCP_y1,3,2)+2,"00"),VALUE(LEFT(CRCP_y1,4)+1)) -> 2013-14 | E38: =IF(dms_RPT="financial",VALUE(LEFT(CRCP_y2,4)+1)&"-"&TEXT(VALUE(MID(CRCP_y2,3,2)+2),"00"),VALUE(LEFT(CRCP_y2,4)+1)) -> 2014-15 | F38: =IF(dms_RPT="financial",VALUE(LEFT(CRCP_y3,4)+1)&"-"&TEXT(VALUE(MID(CRCP_y3,3,2)+2),"00"),VALUE(LEFT(CRCP_y3,4)+1)) -> 2015-16 | G38: =IF(dms_RPT="financial",VALUE(LEFT(CRCP_y4,4)+1)&"-"&TEXT(VALUE(MID(CRCP_y4,3,2)+2),"00"),VALUE(LEFT(CRCP_y4,4)+1)) -> 2016-17 | H38: =IF(dms_RPT="financial",VALUE(LEFT(CRCP_y5,4)+1)&"-"&TEXT(VALUE(MID(CRCP_y5,3,2)+2),"00"),VALUE(LEFT(CRCP_y5,4)+1)) -> 2017-18 | I38: =IF(dms_RPT="financial",VALUE(LEFT(CRCP_y6,4)+1)&"-"&TEXT(VALUE(MID(CRCP_y6,3,2)+2),"00"),VALUE(LEFT(CRCP_y6,4)+1)) -> 2018-19 | J38: =IF(dms_RPT="financial",VALUE(LEFT(CRCP_y7,4)+1)&"-"&TEXT(VALUE(MID(CRCP_y7,3,2)+2),"00"),VALUE(LEFT(CRCP_y7,4)+1)) -> 2019-20 | K38: =IF(dms_RPT="financial",VALUE(LEFT(CRCP_y8,4)+1)&"-"&TEXT(VALUE(MID(CRCP_y8,3,2)+2),"00"),VALUE(LEFT(CRCP_y8,4)+1)) -> 2020-21 | L38: =IF(dms_RPT="financial",VALUE(LEFT(CRCP_y9,4)+1)&"-"&TEXT(VALUE(MID(CRCP_y9,3,2)+2),"00"),VALUE(LEFT(CRCP_y9,4)+1)) -> 2021-22
B41: Previous regulatory control period | C41: =IF(dms_RPT="financial",VALUE(LEFT(PRCP_y2,4)-1)&"-"&TEXT(VALUE(MID(PRCP_y2,3,2)),"00"),VALUE(LEFT(PRCP_y2,4)-1)) -> 2007-08 | D41: =IF(dms_RPT="financial",VALUE(LEFT(PRCP_y3,4)-1)&"-"&TEXT(VALUE(MID(PRCP_y3,3,2)),"00"),VALUE(LEFT(PRCP_y3,4)-1)) -> 2008-09 | E41: =IF(dms_RPT="financial",VALUE(LEFT(PRCP_y4,4)-1)&"-"&TEXT(VALUE(MID(PRCP_y4,3,2)),"00"),VALUE(LEFT(PRCP_y4,4)-1)) -> 2009-10 | F41: =IF(dms_RPT="financial",VALUE(LEFT(PRCP_y5,4)-1)&"-"&TEXT(VALUE(RIGHT(PRCP_y5,2)-1),"00"),VALUE(LEFT(PRCP_y5,4)-1)) -> 2010-11 | G41: =IF(dms_RPT="financial",VALUE(LEFT(CRCP_y1,4)-1)&"-"&TEXT(VALUE(RIGHT(CRCP_y1,2)-1),"00"),VALUE(LEFT(CRCP_y1,4)-1)) -> 2011-12
B44: Commencing regulatory year | C44: 2016-17 | D44: CRY
B46: Last completed regulatory year | C46: 2021-22 | D46: dms_FinalYear
C49: DELETE NR 'CRY' IF NOT AN ANNUAL RIN (EB, CA , ARR)
C50: APPLY NR 'CRY' IF AN ANNUAL RIN (EB, CA , ARR) - including multi year annual RINs eg. Recast CA. EB
B52: Source | C52: Reporting | E52: Please select the correct submission type from the dropdown list.
B53: Data quality (actual, estimate, public, consolidated) | C53: Public
B54: Amended RIN submission - amendment reason
B55: Submission Date | C55: 2017-10-31 | D55: dms_SubmissionDate | E55: Please enter date this file submitted to AER (dd/mm/yyyy)
B56: EBSS - First application of scheme in forthcoming period? | C56: No
B57: Sector | C57: =INDEX(dms_Sector_List,MATCH(dms_TradingName,dms_TradingName_List)) -> Electricity | D57: dms_Sector | E57: =INDEX(dms_Sector_List,MATCH(dms_TradingName,dms_TradingName_List))
B58: Segment | C58: =INDEX(dms_Segment_List,MATCH(dms_TradingName,dms_TradingName_List)) -> Distribution | D58: dms_Segment | E58: =INDEX(dms_Segment_List,MATCH(dms_TradingName,dms_TradingName_List))
B59: Regulatory Year Ending | C59: =IF(dms_MultiYear_Flag=1,LEFT(dms_Specified_FinalYear,2)&RIGHT(dms_Specified_FinalYear,2),INDEX(dms_RYE_Formula_Result,MATCH(dms_Model,dms_Model_List))) -> 2017 | D59: dms_RYE | E59: =IF(dms_MultiYear_Flag=1,LEFT(dms_Specified_FinalYear,2)&RIGHT(dms_Specified_FinalYear,2),INDEX(dms_RYE_Formula_Result,MATCH(dms_Model,dms_Model_List)))
B60: Reporting Period Type | C60: =INDEX(dms_RPT_List,MATCH(dms_TradingName,dms_TradingName_List)) -> Financial | D60: dms_RPT | E60: =INDEX(dms_RPT_List,MATCH(dms_TradingName,dms_TradingName_List))
B61: Model or RIN Type | C61: CA | D61: dms_Model | E61: Drop down selection
B62: Security Classification | C62: Public | D62: dms_Classification | E62: Always Public
B63: Template - version no. | C63: 5 | D63: dms_TemplateNumber
B64: Dollar $ real month | C64: =INDEX(dms_RPTMonth_List,MATCH(dms_TradingName,dms_TradingName_List)) -> June | D64: dms_RPTMonth | E64: =INDEX(dms_RPTMonth_List,MATCH(dms_TradingName,dms_TradingName_List))
B65: Dollar $ real (the last month before the FRCP_y1) | C65: =CONCATENATE(dms_RPTMonth)&" "&VALUE((LEFT(dms_CRCP_FinalYear_Result,2)&RIGHT(dms_CRCP_FinalYear_Result,2))) -> June 2017 | D65: dms_DollarReal | E65: =IF(SUM(dms_SingleYear_Model)>0,CONCATENATE(dms_RPTMonth)&" "&VALUE((LEFT(CRY,2))&RIGHT(CRY,2)),CONCATENATE(dms_RPTMonth)&" "&VALUE((LEFT(dms_CRCP_FinalYear_Result,2)&RIGHT(dms_CRCP_FinalYear_Result,2))))
B66: Form of control | C66: =INDEX(dms_FormControl_List,MATCH(dms_TradingName,dms_TradingName_List)) -> Revenue cap | D66: dms_FormControl | E66: =INDEX(dms_FormControl_List,MATCH(dms_TradingName,dms_TradingName_List))
B67: RIN response - version no. | C67: 1 | D67: dms_RINversion
B68: Jurisdiction | C68: =INDEX(dms_JurisdictionList,MATCH(dms_TradingName,dms_TradingName_List)) -> Qld | D68: dms_Jurisdiction | E68: =INDEX(dms_JurisdictionList,MATCH(dms_TradingName,dms_TradingName_List))
B69: Backcast Multiyear EB, CA or ARR? | C69: 0 | D69: dms_MultiYear_Flag | E69: 1=y, 0-n
C70: 2013 | D70: dms_Specified_FinalYear | E70: The result here is returned to dms_CRCP_FinalYear_Result if dms_MultiYear_Flag is set to 1
B71: Single Year Model T/F | C71: =IF(dms_Model="EB",1,0) -> 0 | D71: dms_EB
C72: =IF(dms_Model="CA",1,0) -> 1 | D72: dms_CA | E72: =dms_SingleYear_Model
C73: =IF(dms_Model="ARR",1,0) -> 0 | D73: dms_ARR
B74: Single Year Final Year Reference | C74: CRY | D74: dms_SingleYear_FinalYear_Ref | E74: This is the reference for EB, CA & ARR RINs
B75: Single Year Final Year Result | C75: =INDIRECT(dms_SingleYear_FinalYear_Ref) -> 2016-17 | D75: dms_SingleYear_FinalYear_Result | E75: =INDIRECT(dms_SingleYear_FinalYear_Ref) | I75: Formula errors OK
B76: FRCP length in years | C76: =INDEX(dms_FRCPlength_List,MATCH(dms_TradingName,dms_TradingName_List)) -> 5 | D76: dms_FRCPlength_Num | E76: =INDEX(dms_FRCPlength_List,MATCH(dms_TradingName,dms_TradingName_List))
B77: Multi Year Final Year Reference | C77: =INDEX(dms_FinalYear_List,MATCH(dms_FRCPlength_Num,dms_FRCPlength_Num_List)) -> dms_FRCP_y5 | D77: dms_MultiYear_FinalYear_Ref | E77: =INDEX(dms_FinalYear_List,MATCH(dms_FRCPlength_Num,dms_FRCPlength_Num_List))
B78: Multi Year Final Year Result | C78: =IF(dms_MultiYear_Flag=0,INDIRECT(dms_MultiYear_FinalYear_Ref),dms_Specified_FinalYear) -> 2021-22 | D78: dms_MultiYear_FinalYear_Result | E78: =IF(dms_MultiYear_Flag=0,INDIRECT(dms_MultiYear_FinalYear_Ref),dms_Specified_FinalYear) | I78: Formula errors OK
B79: CRCP length in years | C79: =INDEX(dms_CRCPlength_List,MATCH(dms_TradingName,dms_TradingName_List)) -> 5 | D79: dms_CRCPlength_Num | E79: =INDEX(dms_CRCPlength_List,MATCH(dms_TradingName,dms_TradingName_List))
B80: CRCP Final Year Reference | C80: =INDEX(dms_CFinalYear_List,MATCH(dms_CRCPlength_Num,dms_CRCPlength_Num_List)) -> CRCP_y5 | D80: dms_CRCP_FinalYear_Ref | E80: =INDEX(dms_CFinalYear_List,MATCH(dms_CRCPlength_Num,dms_CRCPlength_Num_List))
B81: CRCP First Year Result | C81: =INDEX(dms_CRCP_years,MATCH(dms_CRCPlength_Num,dms_CRCP_index)) -> 2012-13 | D81: dms_CRCP_FirstYear_Result | E81: =INDEX(dms_CRCP_years,MATCH(dms_CRCPlength_Num,dms_CRCP_index))
B82: CRCP Final Year Result | C82: =IF(dms_MultiYear_Flag=0,(IF(SUM(dms_SingleYear_Model)>0,CRY,dms_CRCP_yZ)),dms_Specified_FinalYear) -> 2016-17 | D82: dms_CRCP_FinalYear_Result | E82: =IF(dms_MultiYear_Flag=0,(IF(SUM(dms_SingleYear_Model)>0,CRY,dms_CRCP_yZ)),dms_Specified_FinalYear)
B83: Table 6.6.3 - Public lighting repair - no. business days | C83: =INDEX(dms_663_List,MATCH(dms_TradingName,dms_TradingName_List)) -> 5 | D83: dms_663
B84: Distribution Determination Reference | C84: =INDEX(dms_DeterminationRef_List,MATCH(dms_TradingName,dms_TradingName_List)) -> 2015-20 Distribution Determination
B85: Backcast templates only - unit of measure | C85: $0s | D85: dms_Backcast_UOM | E85: If the cover sheet is for Backcast data ensure to apply dms_Backcast_UOM named range to this field. Otherwise, do not apply this named range.
B86: EB/CA Unit of Measure for Monetary Values | C86: $0s | D86: dms_dollar_nom_UOM | E86: If the cover sheet is attached to an EB files make sure this field is set
B88: discard this record? | C88: NO | D88: dms_DISCARD | E88: If record is to be discarded from DB set this flag to YES
B90: USES NAMED RANGES FLAG | C90: yes | D90: dms_Defined_Names_Used

Sheet 2.1 Expenditure summary
B1: REGULATORY REPORTING STATEMENT
B2: =INDEX(dms_TradingNameFull_List,MATCH(dms_TradingName,dms_TradingName_List)) -> Energex
B3: =CONCATENATE((LOOKUP(dms_Model,dms_Model_List,dms_Worksheet_List))&" "&CRY) -> CATEGORY ANALYSIS 2016-17
B4: 2.1 EXPENDITURE SUMMARY & RECONCILIATION
B6: There are SIX tables on this worksheet. Each has been grouped for ease of navigation. See the Instructions sheet on how to group or ungroup tables.
B8: 2.1.1 - STANDARD CONTROL SERVICES CAPEX
C9: EXPENDITURE ($0's)
C10: =CRY -> 2016-17
B11: Replacement expenditure | C11: 204807111.2
B12: Connections | C12: 50936895.46
B13: Augmentation Expenditure | C13: 59512784.83
B14: Non-network | C14: 50192304.53
B15: capitalised network overheads | C15: 70335406.15
B16: capitalised corporate overheads | C16: 101007388.9
B17: Metering
B18: Public Lighting
B26: balancing item | C26: -14444071.48
B27: capcons (included in the above) | C27: 6673843.318
B28: TOTAL GROSS CAPEX (including capcons) | C28: =+SUM(C11:C26) -> 522347819.6
B30: 2.1.2 - STANDARD CONTROL SERVICES OPEX
C31: EXPENDITURE ($0's)
C32: =CRY -> 2016-17
B33: Vegetation management | C33: 44121196.29
B34: Maintenance | C34: 60480498.08
B35: Emergency response | C35: 44545931.23
B36: Non-network | C36: 169701543.9
B37: network overheads | C37: 96049533.29
B38: corporate overheads | C38: 117678809
B39: Metering
B40: Public Lighting
B48: balancing item | C48: -176416644.9
B49: TOTAL OPEX | C49: =+SUM(C33:C48) -> 356160866.9
B51: 2.1.3 - ALTERNATIVE CONTROL SERVICES CAPEX
C52: EXPENDITURE ($0's)
C53: =CRY -> 2016-17
B54: Connections | C54: 435354.33
B55: capitalised network overheads | C55: 6514716.517
B56: capitalised corporate overheads | C56: 9316410.906
B57: Metering | C57: 13988380.28
B58: Public lighting | C58: 5065762.18
B59: Fee and quoted | C59: 9110787.62
B67: balancing item | C67: -2018056.285
B68: TOTAL CAPEX | C68: =+SUM(C54:C67) -> 42413355.55
B70: 2.1.4 - ALTERNATIVE CONTROL SERVICES OPEX
C71: EXPENDITURE ($0's)
C72: =CRY -> 2016-17
B73: Connections | C73: 25036975.2
B74: network overheads | C74: 22656035.68
B75: corporate overheads | C75: 23423908.34
B76: Metering | C76: 16310211.78
B77: Public lighting | C77: 12097462.92
B78: Fee and quoted | C78: 35142366.23
B86: balancing item | C86: -42955008.96
B87: TOTAL OPEX | C87: =+SUM(C73:C86) -> 91711951.19
B89: 2.1.5 - DUAL FUNCTION ASSETS CAPEX
C90: EXPENDITURE ($0's)
C91: =CRY -> 2016-17
B92: Replacement expenditure
B93: Connections
B94: Augmentation Expenditure
B95: Non-network
B96: Capitalised network overheads
B97: Capitalised corporate overheads
B105: balancing item
B106: capcons (included in the above)
B107: TOTAL GROSS CAPEX (including capcons) | C107: =SUM(C92:C105) -> 0
B109: 2.1.6 - DUAL FUNCTION ASSETS OPEX
C110: EXPENDITURE ($0's)
C111: =CRY -> 2016-17
B112: Vegetation management
B113: Maintenance
B114: Emergency response
B115: Non-network
B116: Network overheads
B117: Corporate overheads
B125: balancing item
B126: TOTAL OPEX | C126: =SUM(C112:C125) -> 0

Sheet 2.2 Repex
B1: REGULATORY REPORTING STATEMENT
B2: =INDEX(dms_TradingNameFull_List,MATCH(dms_TradingName,dms_TradingName_List)) -> Energex
B3: =CONCATENATE((LOOKUP(dms_Model,dms_Model_List,dms_Worksheet_List))&" "&CRY) -> CATEGORY ANALYSIS 2016-17
B4: 2.2 REPEX
B6: There are TWO tables on this worksheet. Each has been grouped for ease of navigation. See the Instructions sheet on how to group or ungroup tables.
B8: 2.2.1 - REPLACEMENT EXPENDITURE, VOLUMES AND ASSET FAILURES BY ASSET CATEGORY
E9: EXPENDITURE ($0's) | F9: ASSET REPLACEMENTS (0's) | G9: ASSET FAILURES (0's)
B10: ASSET GROUP | C10: ASSET CATEGORY | E10: =CRY -> 2016-17 | F10: =CRY -> 2016-17 | G10: =CRY -> 2016-17
B11: POLES BY: HIGHEST OPERATING VOLTAGE ; MATERIAL TYPE; STAKING (IF WOOD) | C11: Staking of a wooden pole | E11: 1282239.75 | F11: 1474
C12: ˂ = 1 kV; Wood | E12: 12403166.65 | F12: 3462 | G12: 4
C13: > 1 kV & < = 11 kV; Wood | E13: 16280405.04 | F13: 3095 | G13: 3
C14: ˃ 11 kV & < = 22 kV; Wood
C15: > 22 kV & < = 66 kV; Wood | E15: 2084195.274 | F15: 179
C16: > 66 kV & < = 132 kV; Wood | E16: 647168.97 | F16: 31
C17: > 132 kV; Wood
C18: ˂ = 1 kV; Concrete
C19: > 1 kV & < = 11 kV; Concrete | E19: 1084295.106 | F19: 88
C20: ˃ 11 kV & < = 22 kV; Concrete
C21: > 22 kV & < = 66 kV; Concrete
C22: > 66 kV & < = 132 kV; Concrete
C23: > 132 kV; Concrete
C24: ˂ = 1 kV; Steel | G24: 1
C25: > 1 kV & < = 11 kV; Steel
C26: ˃ 11 kV & < = 22 kV; Steel
C27: > 22 kV & < = 66 kV; Steel
C28: > 66 kV & < = 132 kV; Steel
C29: > 132 kV; Steel
C30: Other | G30: 1
B31: POLE TOP STRUCTURES BY: HIGHEST OPERATING VOLTAGE | C31: ˂ = 1 kV | E31: 8825502.2 | F31: 6385 | G31: 56
C32: > 1 kV & < = 11 kV | E32: 8733557.135 | F32: 8025 | G32: 29
C33: ˃ 11 kV & < = 22 kV
C34: > 22 kV & < = 66 kV | E34: 324808.898 | F34: 221 | G34: 2
C35: > 66 kV & < = 132 kV | E35: 7525.705034
C36: > 132 kV
C37: Other | E37: 264.8019148
B38: OVERHEAD CONDUCTORS BY: HIGHEST OPERATING VOLTAGE; NUMBER OF PHASES (AT HV) | C38: ˂ = 1 kV | E38: 8990233.943 | F38: 163.977 | G38: 50
C39: > 1 kV & < = 11 kV | E39: 7398595.339 | F39: 234.61779 | G39: 98
C40: ˃ 11 kV & < = 22 kV ; SWER
C41: ˃ 11 kV & < = 22 kV ; Single-Phase
C42: ˃ 11 kV & < = 22 kV ; Multiple-Phase
C43: > 22 kV & < = 66 kV | E43: 128930.4741 | F43: 3.72471 | G43: 5
C44: > 66 kV & < = 132 kV | E44: 102315.9132 | F44: 0.0825
C45: > 132 kV
C46: Other
B47: UNDERGROUND CABLES BY: HIGHEST OPERATING VOLTAGE | C47: ˂ = 1 kV | E47: 2439728.464 | F47: 11.451 | G47: 67
C48: > 1 kV & < = 11 kV | E48: 2769477.35 | F48: 6.3899 | G48: 62
C49: > 11 kV & < = 22 kV
C50: > 22 kV & < = 33 kV | E50: 3599938.816 | F50: 4.2933
C51: > 33 kV & < = 66 kV
C52: > 66 kV & < = 132 kV | E52: 1420.152977
C53: > 132 kV
C54: Other
B55: SERVICE LINES BY: CONNECTION VOLTAGE; CUSTOMER TYPE; CONNECTION COMPLEXITY | C55: ˂ = 11 kV ; Residential ; Simple Type | E55: 15071491.84 | F55: 36959.3808 | G55: 1570
C56: ˂ = 11 kV ; Commercial & Industrial ; Simple Type | E56: 1310564.508 | F56: 3213.8592
C57: ˂ = 11 kV ; Residential ; Complex Type
C58: ˂ = 11 kV ; Commercial & Industrial ; Complex Type
C59: ˂ = 11 kV ; Subdivision ; Complex Type
C60: > 11 kV & < = 22 kV ; Commercial & Industrial
C61: > 11 kV & < = 22 kV ; Subdivision
C62: > 22 kV & < = 33 kV ; Commercial & Industrial
C63: > 22 kV & < = 33 kV ; Subdivision
C64: > 33 kV & < = 66 kV ; Commercial & Industrial
C65: > 33 kV & < = 66 kV ; Subdivision
C66: > 66 kV & < = 132 kV ; Commercial & Industrial
C67: > 66 kV & < = 132 kV ; Subdivision
C68: > 132 kV ; Commercial & Industrial
C69: > 132 kV ; Subdivision
C70: Other | E70: 139.3387705
B71: TRANSFORMERS BY: MOUNTING TYPE; HIGHEST OPERATING VOLTAGE ; AMPERE RATING; NUMBER OF PHASES (AT LV) | C71: Pole Mounted ; < = 22kV ; < = 60 kVA ; Single Phase | E71: 736725.7033 | F71: 129 | G71: 1
C72: Pole Mounted ; < = 22kV ; > 60 kVA and < = 600 kVA ; Single Phase
C73: Pole Mounted ; < = 22kV ; > 600 kVA ; Single Phase
C74: Pole Mounted ; < = 22kV ; < = 60 kVA ; Multiple Phase | E74: 1123386.16 | F74: 120 | G74: 16
C75: Pole Mounted ; < = 22kV ; > 60 kVA and < = 600 kVA ; Multiple Phase | E75: 11237067.11 | F75: 611 | G75: 45
C76: Pole Mounted ; < = 22kV ; > 600 kVA ; Multiple Phase
C77: Kiosk Mounted ; < = 22kV ; < = 60 kVA ; Single Phase
C78: Kiosk Mounted ; < = 22kV ; > 60 kVA and < = 600 kVA ; Single Phase
C79: Kiosk Mounted ; < = 22kV ; > 600 kVA ; Single Phase
C80: Kiosk Mounted ; < = 22kV ; < = 60 kVA ; Multiple Phase
C81: Kiosk Mounted ; < = 22kV ; > 60 kVA and < = 600 kVA ; Multiple Phase | E81: 10754859.94 | F81: 179 | G81: 5
C82: Kiosk Mounted ; < = 22kV ; > 600 kVA ; Multiple Phase | E82: 864656.6769 | F82: 15 | G82: 5
C83: Ground Outdoor / Indoor Chamber Mounted; ˂ 22 kV ; < = 60 kVA ; Single Phase
C84: Ground Outdoor / Indoor Chamber Mounted; ˂ 22 kV ; > 60 kVA and < = 600 kVA ; Single Phase
C85: Ground Outdoor / Indoor Chamber Mounted; ˂ 22 kV ; > 600 kVA ; Single Phase
C86: Ground Outdoor / Indoor Chamber Mounted; ˂ 22 kV ; < = 60 kVA ; Multiple Phase
C87: Ground Outdoor / Indoor Chamber Mounted; ˂ 22 kV ; > 60 kVA and < = 600 kVA ; Multiple Phase | E87: 745285.541 | F87: 5 | G87: 1
C88: Ground Outdoor / Indoor Chamber Mounted; ˂ 22 kV ; > 600 kVA ; Multiple Phase | E88: 585648.8809 | F88: 3 | G88: 2
C89: Ground Outdoor / Indoor Chamber Mounted; > = 22 kV & < = 33 kV ; < = 15 MVA | E89: 1478049.25 | F89: 1
C90: Ground Outdoor / Indoor Chamber Mounted; > = 22 kV & < = 33 kV ; > 15 MVA and < = 40 MVA | E90: 9793889.036 | F90: 4
C91: Ground Outdoor / Indoor Chamber Mounted; > = 22 kV & < = 33 kV ; > 40 MVA
C92: Ground Outdoor / Indoor Chamber Mounted; > 33 kV & < = 66 kV ; < = 15 MVA | G92: 2
C93: Ground Outdoor / Indoor Chamber Mounted; > 33 kV & < = 66 kV ; > 15 MVA and < = 40 MVA
C94: Ground Outdoor / Indoor Chamber Mounted; > 33 kV & < = 66 kV ; > 40 MVA | G94: 1
C95: Ground Outdoor / Indoor Chamber Mounted; > 66 kV & < = 132 kV ; < = 100 MVA | E95: 21629.21649
C96: Ground Outdoor / Indoor Chamber Mounted; > 66 kV & < = 132 kV ; > 100 MVA
C97: Ground Outdoor / Indoor Chamber Mounted; > 132 kV ; < = 100 MVA
C98: Ground Outdoor / Indoor Chamber Mounted; > 132 kV ; > 100 MVA
C99: Other
B100: SWITCHGEAR BY: HIGHEST OPERATING VOLTAGE ; SWITCH FUNCTION | C100: ˂ = 11 kV ; FUSE
C101: ˂ = 11 kV ; Switch | E101: 16188396 | F101: 3066 | G101: 103
C102: ˂ = 11 kV ; Circuit Breaker | E102: 9452959.85 | F102: 50 | G102: 4
C103: > 11 kV & < = 22 kV ; Switch
C104: > 11 kV & < = 22 kV ; Circuit Breaker
C105: > 22 kV & < = 33 kV ; Switch | E105: 3164923.06 | F105: 19
C106: > 22 kV & < = 33 kV ; Circuit Breaker | E106: 8234083.183 | F106: 31 | G106: 1
C107: > 33 kV & < = 66 kV ; Switch
C108: > 33 kV & < = 66 kV ; Circuit Breaker
C109: > 66 kV & < = 132 kV ; Switch | E109: 388.9304287
C110: > 66 kV & < = 132 kV ; Circuit Breaker | E110: -12892.989
C111: > 132 kV ; Switch
C112: > 132 kV ; Circuit Breaker
C113: Other | E113: 8644.023825
B114: PUBLIC LIGHTING BY: ASSET TYPE ; LIGHTING OBLIGATION | C114: Luminaires ; Major Road | E114: 593968.402 | F114: 278 | G114: 707
C115: Luminaires ; Minor Road | E115: 2292187.524 | F115: 1378 | G115: 2045
C116: Brackets ; Major Road | E116: 439215.6117 | F116: 213
C117: Brackets ; Minor Road | E117: 1406356.098 | F117: 1952
C118: Lamps ; Major Road | E118: 67.85297715 | G118: 8487
C119: Lamps ; Minor Road | E119: 134.9580897 | F119: 2 | G119: 18243
C120: Poles / Columns ; Major Road | E120: 92183.23588 | F120: 12
C121: Poles / Columns ; Minor Road | E121: 163261.821 | F121: 125
C122: Other | E122: 2.381319548
B123: SCADA, NETWORK CONTROL AND PROTECTION SYSTEMS BY: FUNCTION | C123: Field Devices | E123: 11016604.49 | F123: 645 | G123: 352
C124: Local Network Wiring Assets | G124: 3
C125: Communications Network Assets | E125: 4347443.981 | F125: 29 | G125: 151
C126: Master Station Assets | G126: 2
C127: Communications Site Infrastructure | E127: 1065376.131 | F127: 10 | G127: 11
C128: Communications Linear Assets | E128: 4563263.158 | F128: 86.865 | G128: 19
C129: AFLC | E129: 755760.6243 | F129: 2 | G129: 17
C130: Other | E130: 2676622.752 | F130: 492
B131: OTHER BY: DNSP DEFINED | C131: Other non AER Asset Categories | E131: 7530996.943 | F131: 175
B149: 2.2.2 - SELECTED ASSET CHARACTERISTICS
E150: ASSET VOLUMES CURRENTLY IN COMMISSION | F150: ASSET REPLACEMENTS (0's)
B151: ASSET GROUP | C151: METRIC | D151: UNITS | E151: =CRY -> 2016-17 | F151: =CRY -> 2016-17
B152: TOTAL POLES BY: FEEDER TYPE | C152: Total CBD poles | D152: Number
C153: Total urban poles | D153: Number | E153: 230789 | F153: 3532.499062
C154: Total rural long poles | D154: Number
C155: Total rural short poles | D155: Number | E155: 217070 | F155: 3322.500938
B156: OVERHEAD CONDUCTORS BY: CONDUCTOR LENGTH BY FEEDER TYPE | C156: Conductors CBD | D156: KM
C157: Conductors urban | D157: KM | E157: 13353 | F157: 153.0019051
C158: Conductors rural long | D158: KM
C159: Conductors rural short | D159: KM | E159: 21766 | F159: 249.4000949
B160: OVERHEAD CONDUCTORS BY: CONDUCTOR LENGTH MATERIAL TYPE | C160: OH conductor LV ABC | D160: KM | E160: 3424 | F160: 39.23302053
C161: OH conductor steel | D161: KM | E161: 822 | F161: 9.418674905
C162: OH conductor ACSR | D162: KM | E162: 7372 | F162: 84.47015986
C163: OH conductor AAAC | D163: KM | E163: 179 | F163: 2.051025314
C164: OH conductor AAC | D164: KM | E164: 16934 | F164: 194.0338696
C165: OH conductor HDBC | D165: KM | E165: 6388 | F165: 73.19524975
C166: Other | D166: KM
B167: UNDERGROUND CABLES BY: CABLE LENGTH BY FEEDER TYPE | C167: Cable CBD | D167: KM | E167: 213 | F167: 0.2529554995
C168: Cable urban | D168: KM | E168: 12319 | F168: 14.62985351
C169: Cable rural long | D169: KM
C170: Cable rural short | D170: KM | E170: 6106 | F170: 7.251390986
B171: TRANSFORMERS BY: TOTAL MVA | C171: Total MVA replaced | D171: MVA | E171: 31749 | F171: 287
C172: Total MVA disposed of | D172: MVA | E172: 31749 | F172: 235

Sheet 2.3(a) Augex
B1: REGULATORY REPORTING STATEMENT
B2: =INDEX(dms_TradingNameFull_List,MATCH(dms_TradingName,dms_TradingName_List)) -> Energex
B3: =CONCATENATE((LOOKUP(dms_Model,dms_Model_List,dms_Worksheet_List))&" "&CRY) -> CATEGORY ANALYSIS 2016-17
B4: 2.3 AUGEX PROJECT DATA
B7: There are TWO tables on this worksheet - each has been 'grouped' for easy navigation. Both ROWS and COLUMNS have been grouped. See the Instructions sheet on how to group or ungroup tables.
B9: 2.3.1 - AUGEX ASSET DATA - SUBTRANSMISSION SUBSTATIONS, SWITCHING STATIONS AND ZONE SUBSTATIONS
B10: NOTE: DNSP MUST PROVIDE EXPENDITURE INFORMATION ON A PROJECT CLOSE BASIS.
B11: PROJECT DESCRIPTION AND CHANGES | L11: PLANT AND EQUIPMENT EXPENDITURE AND VOLUME | X11: OTHER EXPENDITURE | Z11: TOTAL DIRECT EXPENDITURE ($0's) | AA11: YEARS INCURRED | AB11: ALL RELATED PARTY CONTRACTS | AD11: ALL NON RELATED PARTY CONTRACTS | AE11: LAND AND EASEMENTS
B12: SUBSTATION ID | C12: SUBSTATION TYPE (drop down) | D12: PROJECT ID | E12: PROJECT TYPE (drop down) | F12: PROJECT TRIGGER (drop down) | G12: VOLTAGE (KV) | H12: SUBSTATION RATING NORMAL CYCLIC (MVA) | J12: SUBSTATION RATING N-1 EMERGENCY (MVA) | L12: TRANSFORMERS | O12: SWITCHGEAR | Q12: CAPACITORS | U12: OTHER PLANT ITEM | V12: INSTALLATION (LABOUR) | X12: CIVIL WORKS | Y12: OTHER DIRECT | AB12: RELATED PARTY MARGINS | AC12: TOTAL | AE12: LAND PURCHASE | AF12: EASEMENTS
H13: PRE | I13: POST | J13: PRE | K13: POST | L13: UNITS ADDED | M13: MVA ADDED | N13: EXPENDITURE ($0's) | O13: UNITS ADDED | P13: EXPENDITURE ($0's) | Q13: MVAR ADDED | R13: EXPENDITURE ($0's) | U13: EXPENDITURE ($0's) | V13: VOLUME | W13: EXPENDITURE ($0's) | X13: EXPENDITURE ($0's) | AB13: EXPENDITURE ($0's) | AE13: EXPENDITURE ($0's)
B14: SSSPO | C14: Zone substation | D14: C0016779 | E14: Substation upgrade - capacity | F14: Demand growth | G14: 110/11 | H14: 132 | I14: 172.7 | J14: 75 | K14: 143.3 | L14: 1 | M14: 60 | N14: 1363317.7 | O14: 10.8 | P14: =564577.29+2699840.05 -> 3264417.34 | Q14: 10.8 | R14: 293382.27 | U14: 1842029.87 | V14: 25301.1 | W14: =1791238.55+AD14/3 -> 2714550.063 | X14: =AD14/3+80443.99 -> 1003755.503 | Y14: =AD14/3+473610.61 -> 1396922.123 | Z14: =SUM(N14,P14,R14,U14,W14,X14,Y14) -> 11878374.87 | AA14: 2005,2006,2007,2008,2009,2010,2011,2012,2013,2014,2015,2016,2017 | AD14: 2769934.54
B15: SSSBH | C15: Zone substation | D15: C0062258 | E15: Substation upgrade - capacity | F15: Demand growth | G15: 33/11 | H15: 22.5 | I15: 45.72 | J15: 16.88 | K15: 33.54 | L15: 3 | M15: 45 | N15: 1619286.27 | O15: 8 | P15: =254438.74+103134.16 -> 357572.9 | U15: 1313573 | V15: 11687.92 | W15: =764868.69+AD15/3 -> 1144792.953 | X15: =AD15/3+55786.5 -> 435710.7633 | Y15: =AD15/3+835079.26 -> 1215003.523 | Z15: 6085939.41 | AA15: 2008,2009,2010,2011,2012,2013,2014,2015,2016,2017 | AD15: 1139772.79
B16: SSTBV | C16: Zone substation | D16: C0062469 | E16: New substation establishment | F16: Other | G16: 33/11 | H16: 0 | I16: 9.6 | J16: 0 | K16: 0 | L16: 1 | M16: 8 | N16: 355829.1 | O16: 18 | P16: =236084.25+10197.81 -> 246282.06 | Q16: 1.8 | R16: 122840.52 | U16: 966613.83 | V16: 9591 | W16: =740250.02+AD16/3 -> 1692810.6 | X16: =AD16/3+12056.68 -> 964617.26 | Y16: =AD16/3+808978.32 -> 1761538.9 | Z16: 6110532.27 | AA16: 2007,2008,2009,2010,2011,2012,2013,2014,2015,2016,2017 | AD16: 2857681.74
B17: SSLTA | C17: Zone substation | D17: C0065231 | E17: Substation upgrade - capacity | F17: Demand growth | G17: 33/11 | H17: 40.8 | I17: 40.8 | J17: 23 | K17: 23 | O17: 15 | P17: 521854.26 | U17: 1370466.35 | V17: 8092.58 | W17: =580785.66+AD17/3 -> 2241400.05 | X17: =AD17/3+41613.15 -> 1702227.54 | Y17: =AD17/3+947831.44 -> 2608445.83 | Z17: 8444394.03 | AA17: 2006,2009,2010,2011,2012,2013,2014,2015,2016,2017 | AD17: 4981843.17
B18: SST78 | C18: Subtransmission substation | D18: C0065317 | E18: Substation upgrade - capacity | F18: Demand growth | G18: 110/33 | H18: 66 | I18: 144 | J18: 48 | K18: 81 | O18: =2+9+5+12 -> 28 | P18: 566716.06 | U18: 1684052 | V18: 23157.08 | W18: =1698907.25+AD18/3 -> 2578513.953 | X18: =AD18/3+99299.04 -> 978905.7433 | Y18: =AD18/3+1389538.09 -> 2269144.793 | Z18: 8077332.55 | AA18: 2006,2007,2010,2011,2012,2013,2014,2015,2016,2017 | AD18: 2638820.11
B19: SSBDA | C19: Zone substation | D19: C0066172 | E19: New substation establishment | F19: Demand growth | G19: 33/11 | H19: 0 | I19: 55 | J19: 0 | K19: 31.25 | L19: 2 | M19: 50 | N19: 1270609.37 | O19: =15+7+1 -> 23 | P19: =490020.12+496511.67+68133.49 -> 1054665.28 | Q19: 5.4 | R19: 136597.69 | U19: 3530473.73 | V19: 9000.42 | W19: =715412.47+AD19/3 -> 2776353.877 | X19: =AD19/3+-584.78 -> 2060356.627 | Y19: =AD19/3+1538008.38 -> 3598949.787 | Z19: 14428006.36 | AA19: 2006,2007,2008,2009,2010,2011,2012,2013,2014,2015,2016,2017 | AD19: 6182824.22
B20: SSNVL | C20: Zone substation | D20: C0077294 | E20: Substation upgrade - capacity | F20: Demand growth | G20: 132/11 | H20: 62.34 | I20: 138.74 | J20: 38.37 | K20: 81 | L20: 1 | M20: 60 | N20: 1540187.94 | O20: 20 | P20: =532991.91+138874.3+29380.32 -> 701246.53 | Q20: 10.8 | R20: 264459.94 | U20: 1987045.37 | V20: 18468.75 | W20: =1316483.65+AD20/3 -> 2314847.947 | X20: =AD20/3+102893.64 -> 1101257.937 | Y20: =AD20/3+1841768.85 -> 2840133.147 | Z20: 10749178.81 | AA20: 2008,2009,2010,2011,2012,2013,2014,2015,2016,2017 | AD20: 2995092.89
B21: SSRLB | C21: Zone substation | D21: C0077434 | E21: Substation upgrade - capacity | F21: Demand growth | G21: 33/11 | H21: 19.8 | I21: 30 | J21: 15 | K21: 17.2 | L21: 1 | M21: 25 | N21: 648474.21 | O21: =8+4 -> 12 | P21: =295200.22+257470.98 -> 552671.2 | Q21: 5.4 | R21: 138928.18 | U21: 1220738.01 | V21: 5004.63 | W21: =373503.39+AD21/3 -> 1162175.013 | X21: =AD21/3+10584.91 -> 799256.5333 | Y21: =AD21/3+776186.28 -> 1564857.903 | Z21: 6087101.05 | AA21: 2006,2009,2010,2011,2012,2013,2014,2015 | AD21: 2366014.87
B22: SSKVG | C22: Zone substation | D22: C0077846 | E22: New substation establishment | F22: Demand growth | G22: 110/11 | H22: 0 | I22: 132 | J22: 0 | K22: 75 | L22: 2 | M22: 120 | N22: 2923574.18 | O22: =32+8 -> 40 | P22: =1466867.1+2770213.8 -> 4237080.9 | Q22: 30 | R22: 553475.14 | U22: 6340578.28 | V22: 21640.62 | W22: =1536105.47+AD22/3 -> 7978960.697 | X22: =AD22/3+314423.53 -> 6757278.757 | Y22: =AD22/3+5195625.59 -> 11638480.82 | Z22: 40429428.77 | AA22: 2007,2008,2009,2010,2011,2012,2013,2014,2015,2016,2017 | AD22: 19328565.68
B23: SSGNA | C23: Zone substation | D23: C0078045 | E23: New substation establishment | F23: Demand growth | G23: 33/11 | H23: 0 | I23: 27.5 | J23: 0 | K23: 0 | L23: 1 | M23: 25 | N23: 622104.08 | O23: 19 | P23: 623061 | Q23: 5.4 | R23: 158269.45 | U23: 1811471.65 | V23: 5472.42 | W23: =428688.35+AD23/3 -> 1575556.117 | X23: =AD23/3+10910.7 -> 1157778.467 | Y23: =AD23/3+947115.6 -> 2093983.367 | Z23: 8042224.13 | AA23: 2009,2010,2011,2012,2013,2014,2015,2016,2017 | AD23: 3440603.3
B24: SSYMT | C24: Zone substation | D24: C0078158 | E24: New substation establishment | F24: Demand growth | G24: 33/11 | H24: 0 | I24: 30 | J24: 0 | K24: 0 | L24: 1 | M24: 25 | N24: 616773.77 | O24: 12 | P24: =252227.39+233882.44 -> 486109.83 | Q24: 5.4 | R24: 136496.13 | U24: 1999708.88 | V24: 5493.63 | W24: =458802.03+AD24/3 -> 2449003.1 | X24: =AD24/3+16709.75 -> 2006910.82 | Y24: =AD24/3+1004707.27 -> 2994908.34 | Z24: 10689910.87 | AA24: 2006,2010,2011,2012,2013,2014,2015,2016,2017 | AD24: 5970603.21
B25: SSYTA | C25: Zone substation | D25: C0138982 | E25: Substation upgrade - capacity | F25: Demand growth | G25: 110/11 | H25: 52.5 | I25: 66 | J25: 31.25 | K25: 62.5 | L25: 1 | M25: 60 | N25: 1443507.4 | O25: 24 | P25: =614246.81+2519343.58 -> 3133590.39 | U25: 3342191.5 | V25: 16825.42 | W25: =1227887.5+AD25/3 -> 3404660.37 | X25: =AD25/3+84738.79 -> 2261511.66 | Y25: =AD25/3+1624083.88 -> 3800856.75 | Z25: 17386318.07 | AA25: 2010,2011,2012,2013,2014,2015,2016,2017 | AD25: 6530318.61
B26: SSCVL | C26: Subtransmission substation | D26: C0131186 | E26: Substation upgrade - capacity | F26: Demand growth | G26: 110/33 | H26: 255.46 | I26: 286.5 | J26: 157.18 | K26: 162 | L26: 1 | M26: 120 | N26: 1850624.01 | O26: 2 | P26: =36231.77+13518.06 -> 49749.83 | U26: 615377.1 | V26: 4346.67 | W26: =11190.92+AD26/3 -> 750359.11 | X26: =AD26/3+1184601.37 -> 1923769.56 | Y26: =AD26/3+30159.54 -> 769327.73 | Z26: 5959207.34 | AA26: 2009,2010,2011,2012,2013,2014,2015,2016,2017 | AD26: 2217504.57
Z27: 0
Z28: 0
Z29: 0
Z30: 0
Z31: 0
Z32: 0
Z33: 0
Z34: 0
Z35: 0
Z36: 0
Z37: 0
Z38: 0
Z39: 0
Z40: 0
Z41: 0
Z42: 0
Z43: 0
Z44: 0
Z45: 0
Z46: =SUM(N46,P46,R46,U46,W46,X46,Y46) -> 0
Z47: 0
Z48: 0
Z49: 0
Z50: 0
Z51: 0
Z52: 0
Z53: 0
Z54: 0
Z55: 0
Z56: 0
Z57: 0
Z58: 0
Z59: 0
Z60: 0
Z61: 0
Z62: 0
Z63: 0
Z64: 0
Z65: 0
D66: Non material projects - [actual] | Z66: 52310826.44 | AA66: 2008,2009,2010,2011,2012,2013,2014,2015,2016,2017
B69: AUG232_1 | C69: AUG232_2 | D69: AUG232_3 | E69: AUG232_4 | F69: AUG232_5 | G69: AUG232_6 | H69: ED_AUG232_00001 | I69: ED_AUG232_00002 | J69: ED_AUG232_00003 | K69: ED_AUG232_00004 | L69: ED_AUG232_00005 | M69: ED_AUG232_00006 | N69: ED_AUG232_00007 | O69: ED_AUG232_00008 | P69: ED_AUG232_00009 | Q69: ED_AUG232_00010 | R69: ED_AUG232_00011 | S69: ED_AUG232_00012 | T69: ED_AUG232_00013 | U69: ED_AUG232_00014 | V69: ED_AUG232_00015 | W69: ED_AUG232_00016 | X69: ED_AUG232_00017 | Y69: ED_AUG232_00018 | Z69: ED_AUG232_00019 | AA69: ED_AUG232_00020 | AB69: ED_AUG232_00021
B70: 2.3.2 - AUGEX ASSET DATA - SUBTRANSMISSION LINES
B71: NOTE: DNSP MUST PROVIDE EXPENDITURE INFORMATION ON A PROJECT CLOSE BASIS.
B72: PROJECT DESCRIPTION AND CHANGES | L72: PLANT AND EQUIPMENT EXPENDITURE AND VOLUME | X72: OTHER EXPENDITURE | Z72: TOTAL DIRECT EXPENDITURE ($0's) | AA72: YEARS INCURRED | AB72: ALL RELATED PARTY CONTRACTS | AD72: ALL NON RELATED PARTY CONTRACTS | AE72: LAND AND EASEMENTS
B73: LINE ID | C73: PROJECT ID | D73: PROJECT TYPE | E73: PROJECT TRIGGER | G73: VOLTAGE (KV) | H73: ROUTE LINE LENGTH ADDED | L73: POLES/TOWERS (INCLUDING STRUCTURES, AND CIVIL WORKS) | O73: OVERHEAD LINES | R73: UNDERGROUND CABLES | U73: OTHER PLANT ITEM | V73: INSTALLATION (LABOUR) | X73: CIVIL WORKS | Y73: OTHER DIRECT | AB73: RELATED PARTY MARGINS | AC73: TOTAL | AE73: LAND PURCHASE | AF73: EASEMENTS
H74: KM ADDED | L74: POLES/TOWERS ADDED | M74: POLES/TOWERS UPGRADED | N74: EXPENDITURE ($0's) | O74: CIRCUIT KM ADDED | P74: CIRCUIT KM UPGRADED | Q74: EXPENDITURE ($0's) | R74: CIRCUIT KM ADDED | S74: CIRCUIT KM UPGRADED | T74: EXPENDITURE ($0's) | U74: EXPENDITURE ($0's) | V74: VOLUME | W74: EXPENDITURE ($0's) | X74: EXPENDITURE ($0's) | AB74: EXPENDITURE ($0's) | AE74: EXPENDITURE ($0's)
B75: F402 | C75: C0062469 | D75: Line rebuild over existing route - single circuit | E75: Demand growth | F75: Other | G75: Other | K75: 0.3519 | M75: 10 | N75: 12312.35 | P75: =2796.75/1000 -> 2.79675 | Q75: 13705.32 | R75: =120.12/1000 -> 0.12012 | T75: 24525.66 | U75: 1641022.19 | V75: 9591 | W75: =AD75/3+740250.02 -> 1692810.6 | X75: =AD75/3+12056.68 -> 964617.26 | Y75: =AD75/3+808978.32 -> 1761538.9 | Z75: =SUM(N75,Q75,T75,U75,W75,X75,Y75) -> 6110532.28 | AA75: 2007,2008,2009,2010,2011,2012,2013,2014,2015,2016,2017 | AD75: 2857681.74 | AH75: New line on new route - single circuit
B76: F3290, F671 | C76: C0065198 | D76: New line on new route - single circuit | E76: Demand growth | F76: Demand growth | G76: Other | K76: 3.7 | N76: 846.69 | R76: =7795.59/1000 -> 7.79559 | T76: 1374046.68 | U76: 1394175.26 | V76: 5761.5 | W76: =AD76/3+444570.81 -> 1397294.733 | X76: =AD76/3+79004.63 -> 1031728.553 | Y76: =AD76/3+967323.95 -> 1920047.873 | Z76: 7118139.79 | AA76: 2007,2008,2009,2010,2011,2012,2013,2014,2015,2016,2017 | AD76: 2858171.77 | AH76: New line on new route - dual circuit
B77: F3460, F3461 | C77: C0066172 | D77: New line on new route - dual circuit | E77: Demand growth | F77: Demand growth | G77: Other | K77: 0.9528 | M77: 1 | N77: 1255.63 | R77: =2120.25/1000 -> 2.12025 | T77: 814187.92 | U77: 5176902.51 | V77: 9000.42 | W77: =AD77/3+715412.47 -> 2776353.877 | X77: =AD77/3+-584.78 -> 2060356.627 | Y77: =AD77/3+1538008.38 -> 3598949.787 | Z77: 14428006.35 | AA77: 2006,2007,2008,2009,2010,2011,2012,2013,2014,2015,2016,2017 | AD77: 6182824.22 | AH77: New line on new route - other
B78: F781, F7365 | C78: C0077846 | D78: New line on new route - single circuit | E78: Demand growth | F78: Demand growth | G78: Other | K78: 1.5 | R78: =2976.93/1000 -> 2.97693 | T78: 1755364.14 | U78: 12299344.36 | V78: 21640.62 | W78: =AD78/3+1536105.47 -> 7978960.697 | X78: =AD78/3+314423.53 -> 6757278.757 | Y78: =AD78/3+5195625.59 -> 11638480.82 | Z78: 40429428.77 | AA78: 2007,2008,2009,2010,2011,2012,2013,2014,2015,2016,2017 | AD78: 19328565.68 | AH78: Line rebuild over existing route - single circuit
B79: F357 | C79: C0098410 | D79: New line on new route - single circuit | E79: Demand growth | F79: Demand growth | G79: Other | K79: 11.167 | L79: 90 | M79: 38 | N79: 278956.86 | O79: =(11594.22+9.9)/1000*0.7 -> 8.122884 | P79: =(11594.22+9.9)/1000*0.3 -> 3.481236 | Q79: =86003.26+117.37 -> 86120.63 | R79: =2813.58/1000 -> 2.81358 | T79: 1099482.16 | U79: 1918349.6 | V79: 15490.83 | W79: =AD79/3+1143050.53 -> 2872669.257 | X79: =AD79/3+50942.89 -> 1780561.617 | Y79: =AD79/3+1778222.17 -> 3507840.897 | Z79: 11543981.02 | AA79: 2007,2008,2009,2010,2011,2012,2013,2014,2016 | AD79: 5188856.18 | AH79: Line rebuild over existing route - dual circuit
B80: F917, F916 | C80: C0099183 | D80: New line on new route - dual circuit | E80: Demand growth | F80: Demand growth | G80: Other | K80: 6.368 | R80: =12891.45/1000 -> 12.89145 | T80: 11686247.53 | U80: 4285682.09 | V80: 14512.5 | W80: =AD80/3+1120265.78 -> 3857506.503 | X80: =AD80/3+30334.45 -> 2767575.173 | Y80: =AD80/3+3610817.24 -> 6348057.963 | Z80: 28945069.26 | AA80: 2008,2009,2010,2011,2012,2013,2014,2015,2016 | AD80: 8211722.17 | AH80: Reconductor - Single circuit
B81: F3870 | C81: C0112451 | D81: New line on new route - single circuit | E81: Demand growth | F81: Demand growth | G81: Other | K81: 19.779 | L81: 357 | N81: 653277.58 | O81: =34105.17/1000 -> 34.10517 | Q81: =220788.32 -> 220788.32 | R81: =998.91/1000 -> 0.99891 | T81: 331033.14 | U81: 2558408.76 | V81: 51715.42 | W81: =AD81/3+3534532.97 -> 4489193.097 | X81: =AD81/3+37082.57 -> 991742.6967 | Y81: =AD81/3+2426990.17 -> 3381650.297 | Z81: 12626093.89 | AA81: 2008,2009,2010,2011,2012,2013,2014,2015,2016,2017 | AD81: 2863980.38 | AH81: Reconductor - Dual circuit
B82: F3972 | C82: C0132124 | D82: New line on new route - single circuit | E82: Demand growth | F82: Demand growth | G82: Other | K82: 20.115 | L82: 180 | N82: 301391.83 | O82: =21088.65/1000 -> 21.08865 | Q82: 138801.7 | R82: =1641.42/1000 -> 1.64142 | T82: 334175.84 | U82: 1306374.54 | V82: 21588.7 | W82: =AD82/3+1536758.59 -> 2213940.443 | X82: =AD82/3+33790.07 -> 710971.9233 | Y82: =AD82/3+1802582.89 -> 2479764.743 | Z82: 7485421.02 | AA82: 2010,2011,2012,2013,2014,2015,2016,2017 | AD82: 2031545.56 | AH82: Reconductor - Other
B83: F3960 | C83: C0078158 | D83: New line on new route - single circuit | E83: Demand growth | F83: Demand growth | G83: Other | K83: 0.865 | P83: 1 | Q83: 5183.03 | R83: =1881/1000 -> 1.881 | T83: 656900.64 | U83: 2577004.93 | V83: 5493.63 | W83: =AD83/3+458802.03 -> 2449003.1 | X83: =AD83/3+16709.75 -> 2006910.82 | Y83: =AD83/3+1004707.27 -> 2994908.34 | Z83: 10689910.86 | AA83: 2006,2010,2011,2012,2013,2014,2015,2016,2017 | AD83: 5970603.21 | AH83: Line upgrade - raising/retensoring
Z84: 0 | AH84: Line upgrade - voltage upgrade
Z85: 0 | AH85: Line upgrade - capacity
Z86: 0 | AH86: String spare circuit
Z87: 0 | AH87: Other
Z88: 0
Z89: 0
Z90: 0
Z91: 0
Z92: 0
Z93: 0
Z94: 0
Z95: 0
Z96: 0
Z97: 0
Z98: 0
Z99: 0
Z100: 0
Z101: 0
Z102: 0
Z103: 0
Z104: 0
Z105: 0
Z106: 0
Z107: =SUM(N107,Q107,T107,U107,W107,X107,Y107) -> 0
Z108: 0
Z109: 0
Z110: 0
Z111: 0
Z112: 0
Z113: 0
Z114: 0
Z115: 0
Z116: 0
Z117: 0
Z118: 0
Z119: 0
Z120: 0
Z121: 0
Z122: 0
Z123: 0
Z124: 0
Z125: 0
Z126: 0
Z127: 0
Z128: 0
C129: Non material projects - [actual] | Z129: 67544344.09 | AA129: 2008,2009,2010,2011,2012,2013,2014,2015,2016,2017

Sheet 2.3(b) Augex
B1: REGULATORY REPORTING STATEMENT
B2: =INDEX(dms_TradingNameFull_List,MATCH(dms_TradingName,dms_TradingName_List)) -> Energex
B3: =CONCATENATE((LOOKUP(dms_Model,dms_Model_List,dms_Worksheet_List))&" "&CRY) -> CATEGORY ANALYSIS 2016-17
B4: 2.3 AUGEX DATA
B6: There are TWO tables on this worksheet. Each has been grouped for ease of navigation. See the Instructions sheet on how to group or ungroup tables.
B8: 2.3.3 - AUGEX DATA - HV/LV FEEDERS AND DISTRIBUTION SUBSTATIONS
B9: NOTE: DNSP MUST PROVIDE EXPENDITURE INFORMATION ON AN AS INCURRED BASIS.
B10: DESCRIPTOR METRICS
B11: PROJECT TYPE | D11: UNITS ADDED (0's) | E11: UNITS UPGRADED (0's)
C12: UNITS | D12: =CRY -> 2016-17 | E12: =CRY -> 2016-17
B13: HV Feeder Augmentations - Overhead Lines | C13: Circuit line length in km | D13: 113.6354 | E13: 170.31036
B14: HV Feeder Augmentations - Underground Cables | C14: Circuit line length in km | D14: 69.4955 | E14: 7.8194
B15: LV Feeder Augmentations - Overhead Lines | C15: Circuit line length in km | D15: 1.80152 | E15: 31.42672
B16: LV Feeder Augmentations - Underground Cables | C16: Circuit line length in km | D16: 2.592 | E16: 6.348
B17: Distribution Substation Augmentations - Pole Mounted | C17: Number | D17: 144 | E17: 198
B18: Distribution Substation Augmentations - Ground Mounted | C18: Number | D18: 11 | E18: 16
B19: Distribution Substation Augmentations - Indoor | C19: Number | D19: 0 | E19: 0
B21: COST METRICS
B22: TOTAL DIRECT EXPENDITURE - Project Type | D22: EXPENDITURE ($0's)
D23: =CRY -> 2016-17
B24: HV Feeder Augmentations - Overhead Lines | D24: 3088349.14
B25: HV Feeder Augmentations - Underground Cables | D25: 829543.37
B26: HV Feeder Non-Material Projects | D26: 10206047.94
B27: LV Feeder Augmentations - Overhead Lines | D27: 1672600.71
B28: LV Feeder Augmentations - Underground Cables | D28: 288433.9
B29: LV Feeder Non-Material Projects | D29: 1174964.45
B30: Distribution Substation Augmentations - Pole Mounted | D30: 4216710.47
B31: Distribution Substation Augmentations - Ground Mounted | D31: 831566.36
B32: Distribution Substation Augmentations - Indoor | D32: 0
B35: 2.3.4 - AUGEX DATA - TOTAL EXPENDITURE
B36: AUGMENTATION CAPEX (As incurred) | D36: EXPENDITURE ($0's)
D37: =CRY -> 2016-17
B38: Subtransmission Substations, Switching Stations, Zone Substations | D38: 7232535.71
B39: Subtransmission Lines | D39: 6932612.83
B40: HV Feeders | D40: 14123933.41
B41: HV Feeders - Land Purchases and Easements | D41: 0
B42: Distribution Substations | D42: 5048271.93
B43: Distribution Substations - Land Purchases And Easements | D43: 0
B44: LV Feeders | D44: 3135988.93
B45: LV Feeders - Land Purchases And Easements | D45: 0
B46: Other Assets | D46: 23039442.02

Sheet 2.5 Connections
B1: REGULATORY REPORTING STATEMENT
B2: =INDEX(dms_TradingNameFull_List,MATCH(dms_TradingName,dms_TradingName_List)) -> Energex
B3: =CONCATENATE((LOOKUP(dms_Model,dms_Model_List,dms_Worksheet_List))&" "&CRY) -> CATEGORY ANALYSIS 2016-17
B4: 2.5 CONNECTIONS
B6: There are TWO tables on this worksheet. Each has been grouped for ease of navigation. See the Instructions sheet on how to group or ungroup tables.
B8: 2.5.1 - DESCRIPTOR METRICS
B9: <<<GROUP-ROW>>>
E11: VOLUMES AND EXPENDITURE
B12: CONNECTION SUBCATEGORY | C12: DESCRIPTOR METRIC | D12: UNITS | E12: =CRY -> 2016-17
B13: RESIDENTIAL | C13: Underground connections | D13: 0's | E13: 20794
C14: Overhead connections | D14: 0's | E14: 16000
C15: Distribution substation installed | D15: MVA added | E15: 12.23
C16: Distribution substations installed | D16: 0's | E16: 110
C17: Distribution substation installed | D17: total spend $0s | E17: 2626771.69
C18: Augmentation HV | D18: net circuit km added | E18: 7.54
C19: Augmentation HV | D19: total spend $0s | E19: 501729.99
C20: Augmentation LV | D20: net circuit km added | E20: 61.59250526
C21: Augmentation LV | D21: total spend $0s | E21: 7661107.937
C22: Mean days to connect residential customer with LV single phase connection | D22: 0's | E22: 7.7
C23: Volume of GSL breaches for residential customers | D23: 0's | E23: 383
C24: Volume of customer complaints relating to connection services | D24: 0's | E24: 727
C25: GSL payments | D25: $0s | E25: 120897
B26: COMMERCIAL/INDUSTRIAL | C26: Underground connections | D26: 0's | E26: 9568
C27: Overhead connections | D27: 0's | E27: 5387
C28: Distribution substation installed | D28: MVA added | E28: 197.82
C29: Distribution substations installed | D29: 0's | E29: 358
C30: Distribution substation installed | D30: total spend $0s | E30: 33272545.23
C31: Augmentation HV | D31: net circuit km added | E31: 48.89
C32: Augmentation HV | D32: total spend $0s | E32: 22699537.57
C33: Augmentation LV | D33: net circuit km added | E33: 53.88749474
C34: Augmentation LV | D34: total spend $0s | E34: 5045074.383
B35: SUBDIVISION | C35: Underground connections | D35: 0's | E35: 17714
C36: Overhead connections | D36: 0's | E36: 82
C37: Distribution substation installed | D37: MVA added | E37: 2.63
C38: Distribution substations installed | D38: 0's | E38: 5
C39: Distribution substation installed | D39: total spend $0s | E39: 229166.6
C40: Augmentation HV | D40: net circuit km added | E40: 3.41
C41: Augmentation HV | D41: total spend $0s | E41: 4333188.49
C42: Augmentation LV | D42: net circuit km added | E42: 0.09
C43: Augmentation LV | D43: total spend $0s | E43: 40103.1
C44: Cost per lot ($) | D44: $0s | E44: 258.62
B45: EMBEDDED GENERATION | C45: Underground connections | D45: 0's | E45: 12077
C46: Overhead connections | D46: 0's | E46: 10609
C47: Distribution substation installed | D47: MVA added | E47: 0
C48: Distribution substations installed | D48: 0's | E48: 0
C49: Distribution substation installed | D49: total spend $0s | E49: 0
C50: Augmentation HV | D50: net circuit km added | E50: 0
C51: Augmentation HV | D51: total spend $0s | E51: 0
C52: Augmentation LV | D52: net circuit km added | E52: 0
C53: Augmentation LV | D53: total spend $0s | E53: 0
B57: 2.5.2 - COST METRICS BY CONNECTION CLASSIFICATION
D58: EXPENDITURE ($0's) | E58: VOLUMES (0's)
B59: CONNECTION SUBCATEGORY | C59: CONNECTION CLASSIFICATION | D59: =CRY -> 2016-17 | E59: =CRY -> 2016-17
B60: RESIDENTIAL | C60: Simple connection LV | D60: 7196228.917 | E60: 36377
C61: Complex connection LV | D61: 464879.02 | E61: 70
C62: Complex connection HV | D62: 3128501.68 | E62: 347
B63: COMMERCIAL/INDUSTRIAL | C63: Simple connection LV | D63: 2422880.323 | E63: 13743
C64: Complex connection HV (customer connected at LV, minor HV works) | D64: 57814323.27 | E64: 1167
C65: Complex connection HV (customer connected at LV, upstream asset works) | D65: 735519.54 | E65: 44
C66: Complex connection HV (customer connected at HV) | D66: 0 | E66: 0
C67: Complex connection sub-transmission | D67: 44434.05 | E67: 1
B68: SUBDIVISION | C68: Complex connection LV | D68: 40103.1 | E68: 31
C69: Complex connection HV (no upstream asset works) | D69: 4562355.09 | E69: 17765
C70: Complex connection HV (with upstream asset works) | D70: - | E70: 0
B71: EMBEDDED GENERATION | C71: Simple connection LV | D71: 0 | E71: 22678
C72: Complex connection HV (small capacity) | D72: 0 | E72: 4
C73: Complex connection HV (large capacity) | D73: 0 | E73: 4

Sheet 2.6 Non-network
B1: REGULATORY REPORTING STATEMENT
B2: =INDEX(dms_TradingNameFull_List,MATCH(dms_TradingName,dms_TradingName_List)) -> Energex
B3: =CONCATENATE((LOOKUP(dms_Model,dms_Model_List,dms_Worksheet_List))&" "&CRY) -> CATEGORY ANALYSIS 2016-17
B4: 2.6 NON NETWORK EXPENDITURE
B6: There are THREE tables on this worksheet. Each has been grouped (and sub-grouped) for ease of navigation. See the Instructions sheet on how to group or ungroup tables.
B8: 2.6.1 - NON-NETWORK EXPENDITURE
F9: EXPENDITURE ($0's)
B10: SERVICE SUBCATEGORY | C10: ASSET CATEGORY | F10: =CRY -> 2016-17
B11: OPEX
B12: IT & COMMUNICATIONS | C12: Client device expenditure | F12: 1832758
C13: Recurrent expenditure | F13: 89951707.81
C14: Non-recurrent expenditure | F14: 6514499.66
B15: MOTOR VEHICLES | C15: Car | F15: 4634007.667
C16: Light commercial vehicle | F16: 1744668.322
C17: Elevated work platform (LCV)
C18: Elevated work platform (HCV) | F18: 8668859.594
C19: Heavy commercial vehicle | F19: 5948121.857
B20: BUILDINGS AND PROPERTY | C20: Total buildings and property expenditure | F20: 43030897.64
B21: OTHER | C21: Other expenditure | F21: 7376023.39
B22: OTHER - DNSP nominated | F22: 892314.3149
F23: 965407.1932
F24: 5518301.882
B33: CAPEX
B34: IT & COMMUNICATIONS | C34: Client device expenditure | F34: 2466421.65
C35: Recurrent expenditure | F35: 57188.29
C36: Non-recurrent expenditure
B37: MOTOR VEHICLES | C37: Car | F37: 5205424.36
C38: Light commercial vehicle | F38: 1991925.39
C39: Elevated work platform (LCV)
C40: Elevated work platform (HCV) | F40: 18114538.15
C41: Heavy commercial vehicle | F41: 1998487.81
B42: BUILDINGS AND PROPERTY | C42: Total buildings and property expenditure | F42: 12448774.09
B43: OTHER | C43: Other expenditure | F43: 7909544.79
B44: OTHER - DNSP nominated | C44: =IF(ISBLANK(C22),"",C22) ->  | F44: 661580.83
C45: =IF(ISBLANK(C23),"",C23) ->  | F45: 922895.62
F46: 5984907.36
F47: 340160.98
B58: 2.6.2 - ANNUAL DESCRIPTOR METRICS - IT & COMMUNICATIONS EXPENDITURE
F59: VOLUMES (0's)
B61: NON-NETWORK CATEGORY | C61: DESCRIPTOR METRIC | F61: =CRY -> 2016-17
B62: IT & COMMUNICATIONS | C62: Employee numbers | F62: 2417.208
C63: User numbers | F63: 4025
C64: Number of devices | F64: 4365.66
B67: 2.6.3 - ANNUAL DESCRIPTOR METRICS - MOTOR VEHICLES
F68: VOLUMES / %
B69: NON-NETWORK CATEGORY | C69: ASSET CATEGORY | D69: DESCRIPTOR METRIC | E69: UNITS | F69: =CRY -> 2016-17
B70: MOTOR VEHICLES | C70: CAR | D70: Average kilometres travelled | E70: 0's | F70: 25746.35653
D71: Number purchased | E71: 0's | F71: 152
D72: Number leased | E72: 0's | F72: 0
D73: Number in fleet | E73: 0's | F73: 627.5833333
D74: Proportion of total fleet expenditure allocated as regulatory expenditure | E74: (per cent) | F74: 0.83
C75: LIGHT COMMERCIAL VEHICLE | D75: Average kilometres travelled | E75: 0's | F75: 24572.73991
D76: Number purchased | E76: 0's | F76: 19
D77: Number leased | E77: 0's | F77: 0
D78: Number in fleet | E78: 0's | F78: 174.75
D79: Proportion of total fleet expenditure allocated as regulatory expenditure | E79: (per cent) | F79: 0.83
C80: ELEVATED WORK PLATFORM (LCV) | D80: Average kilometres travelled | E80: 0's
D81: Number purchased | E81: 0's
D82: Number leased | E82: 0's
D83: Number in fleet | E83: 0's
D84: Proportion of total fleet expenditure allocated as regulatory expenditure | E84: (per cent)
C85: ELEVATED WORK PLATFORM (HCV) | D85: Average kilometres travelled | E85: 0's | F85: 21557.85093
D86: Number purchased | E86: 0's | F86: 53
D87: Number leased | E87: 0's | F87: 0
D88: Number in fleet | E88: 0's | F88: 235.8333333
D89: Proportion of total fleet expenditure allocated as regulatory expenditure | E89: (per cent) | F89: 0.83
C90: HEAVY COMMERCIAL VEHICLE | D90: Average kilometres travelled | E90: 0's | F90: 22697.03212
D91: Number purchased | E91: 0's | F91: 5
D92: Number leased | E92: 0's | F92: 0
D93: Number in fleet | E93: 0's | F93: 269
D94: Proportion of total fleet expenditure allocated as regulatory expenditure | E94: (per cent) | F94: 0.83

Sheet 2.7 Vegetation management
B1: REGULATORY REPORTING STATEMENT
B2: =INDEX(dms_TradingNameFull_List,MATCH(dms_TradingName,dms_TradingName_List)) -> Energex
B3: =CONCATENATE((LOOKUP(dms_Model,dms_Model_List,dms_Worksheet_List))&" "&CRY) -> CATEGORY ANALYSIS 2016-17
B4: 2.7 VEGETATION MANAGEMENT
B6: There are THREE tables on this worksheet. Each has been grouped (and sub-grouped) for ease of navigation. See the Instructions sheet on how to group or ungroup tables.
B8: Please enter a description for each Zone in table 2.7.1 - Urban and CBD. The zone description will then autopopulate in tables 2.7.1 - Rural and 2.7.2.
A11: ` | B11: 2.7.1 - DESCRIPTOR METRICS BY ZONE
B12: URBAN AND CBD
E13: =CRY -> 2016-17
B14: ZONES | C14: ASSET | D14: UNITS
B15: ZONE 1 | C15: Route line length within zone | D15: km | E15: 9890.003675
C16: Number of maintenance spans | D16: 0's | E16: 106869.6727
C17: Total length of maintenance spans | D17: km | E17: 4886
C18: Length of vegetation corridors | D18: km | E18: 2092
C19: Average number of trees per maintenance span | D19: 0's | E19: 3.12
C20: Average frequency of cutting cycle | D20: years | E20: 1.33
B21: ZONE 2 | C21: Route line length within zone | D21: km
C22: Number of maintenance spans | D22: 0's
C23: Total length of maintenance spans | D23: km
C24: Length of vegetation corridors | D24: km
C25: Average number of trees per maintenance span | D25: 0's
C26: Average frequency of cutting cycle | D26: years
B27: ZONE 3 | C27: Route line length within zone | D27: km
C28: Number of maintenance spans | D28: 0's
C29: Total length of maintenance spans | D29: km
C30: Length of vegetation corridors | D30: km
C31: Average number of trees per maintenance span | D31: 0's
C32: Average frequency of cutting cycle | D32: years
B33: ZONE 4 | C33: Route line length within zone | D33: km
C34: Number of maintenance spans | D34: 0's
C35: Total length of maintenance spans | D35: km
C36: Length of vegetation corridors | D36: km
C37: Average number of trees per maintenance span | D37: 0's
C38: Average frequency of cutting cycle | D38: years
B39: ZONE 5 | C39: Route line length within zone | D39: km
C40: Number of maintenance spans | D40: 0's
C41: Total length of maintenance spans | D41: km
C42: Length of vegetation corridors | D42: km
C43: Average number of trees per maintenance span | D43: 0's
C44: Average frequency of cutting cycle | D44: years
B45: ZONE 6 | C45: Route line length within zone | D45: km
C46: Number of maintenance spans | D46: 0's
C47: Total length of maintenance spans | D47: km
C48: Length of vegetation corridors | D48: km
C49: Average number of trees per maintenance span | D49: 0's
C50: Average frequency of cutting cycle | D50: years
B51: ZONE 7 | C51: Route line length within zone | D51: km
C52: Number of maintenance spans | D52: 0's
C53: Total length of maintenance spans | D53: km
C54: Length of vegetation corridors | D54: km
C55: Average number of trees per maintenance span | D55: 0's
C56: Average frequency of cutting cycle | D56: years
B57: ZONE 8 | C57: Route line length within zone | D57: km
C58: Number of maintenance spans | D58: 0's
C59: Total length of maintenance spans | D59: km
C60: Length of vegetation corridors | D60: km
C61: Average number of trees per maintenance span | D61: 0's
C62: Average frequency of cutting cycle | D62: years
B63: ZONE 9 | C63: Route line length within zone | D63: km
C64: Number of maintenance spans | D64: 0's
C65: Total length of maintenance spans | D65: km
C66: Length of vegetation corridors | D66: km
C67: Average number of trees per maintenance span | D67: 0's
C68: Average frequency of cutting cycle | D68: years
B69: ZONE 10 | C69: Route line length within zone | D69: km
C70: Number of maintenance spans | D70: 0's
C71: Total length of maintenance spans | D71: km
C72: Length of vegetation corridors | D72: km
C73: Average number of trees per maintenance span | D73: 0's
C74: Average frequency of cutting cycle | D74: years
B75: ZONE 11 | C75: Route line length within zone | D75: km
C76: Number of maintenance spans | D76: 0's
C77: Total length of maintenance spans | D77: km
C78: Length of vegetation corridors | D78: km
C79: Average number of trees per maintenance span | D79: 0's
C80: Average frequency of cutting cycle | D80: years
B81: ZONE 12 | C81: Route line length within zone | D81: km
C82: Number of maintenance spans | D82: 0's
C83: Total length of maintenance spans | D83: km
C84: Length of vegetation corridors | D84: km
C85: Average number of trees per maintenance span | D85: 0's
C86: Average frequency of cutting cycle | D86: years
B87: ZONE 13 | C87: Route line length within zone | D87: km
C88: Number of maintenance spans | D88: 0's
C89: Total length of maintenance spans | D89: km
C90: Length of vegetation corridors | D90: km
C91: Average number of trees per maintenance span | D91: 0's
C92: Average frequency of cutting cycle | D92: years
B93: ZONE 14 | C93: Route line length within zone | D93: km
C94: Number of maintenance spans | D94: 0's
C95: Total length of maintenance spans | D95: km
C96: Length of vegetation corridors | D96: km
C97: Average number of trees per maintenance span | D97: 0's
C98: Average frequency of cutting cycle | D98: years
B99: ZONE 15 | C99: Route line length within zone | D99: km
C100: Number of maintenance spans | D100: 0's
C101: Total length of maintenance spans | D101: km
C102: Length of vegetation corridors | D102: km
C103: Average number of trees per maintenance span | D103: 0's
C104: Average frequency of cutting cycle | D104: years
B105: ZONE 16 | C105: Route line length within zone | D105: km
C106: Number of maintenance spans | D106: 0's
C107: Total length of maintenance spans | D107: km
C108: Length of vegetation corridors | D108: km
C109: Average number of trees per maintenance span | D109: 0's
C110: Average frequency of cutting cycle | D110: years
B111: ZONE 17 | C111: Route line length within zone | D111: km
C112: Number of maintenance spans | D112: 0's
C113: Total length of maintenance spans | D113: km
C114: Length of vegetation corridors | D114: km
C115: Average number of trees per maintenance span | D115: 0's
C116: Average frequency of cutting cycle | D116: years
B117: ZONE 18 | C117: Route line length within zone | D117: km
C118: Number of maintenance spans | D118: 0's
C119: Total length of maintenance spans | D119: km
C120: Length of vegetation corridors | D120: km
C121: Average number of trees per maintenance span | D121: 0's
C122: Average frequency of cutting cycle | D122: years
B124: RURAL
E125: =CRY -> 2016-17
B126: ZONES | C126: ASSET | D126: UNITS
B127: =B15 -> ZONE 1 | C127: Route line length within zone | D127: km | E127: 15913
C128: Number of maintenance spans | D128: 0's | E128: 87971.46607
C129: Total length of maintenance spans | D129: km | E129: 7029
C130: Length of vegetation corridors | D130: km | E130: 3339
C131: Average number of trees per maintenance span | D131: 0's | E131: 4.43
C132: Average frequency of cutting cycle | D132: years | E132: 1.93
B133: =B21 -> ZONE 2 | C133: Route line length within zone | D133: km
C134: Number of maintenance spans | D134: 0's
C135: Total length of maintenance spans | D135: km
C136: Length of vegetation corridors | D136: km
C137: Average number of trees per maintenance span | D137: 0's
C138: Average frequency of cutting cycle | D138: years
B139: =B27 -> ZONE 3 | C139: Route line length within zone | D139: km
C140: Number of maintenance spans | D140: 0's
C141: Total length of maintenance spans | D141: km
C142: Length of vegetation corridors | D142: km
C143: Average number of trees per maintenance span | D143: 0's
C144: Average frequency of cutting cycle | D144: years
B145: =B33 -> ZONE 4 | C145: Route line length within zone | D145: km
C146: Number of maintenance spans | D146: 0's
C147: Total length of maintenance spans | D147: km
C148: Length of vegetation corridors | D148: km
C149: Average number of trees per maintenance span | D149: 0's
C150: Average frequency of cutting cycle | D150: years
B151: =B39 -> ZONE 5 | C151: Route line length within zone | D151: km
C152: Number of maintenance spans | D152: 0's
C153: Total length of maintenance spans | D153: km
C154: Length of vegetation corridors | D154: km
C155: Average number of trees per maintenance span | D155: 0's
C156: Average frequency of cutting cycle | D156: years
B157: =B45 -> ZONE 6 | C157: Route line length within zone | D157: km
C158: Number of maintenance spans | D158: 0's
C159: Total length of maintenance spans | D159: km
C160: Length of vegetation corridors | D160: km
C161: Average number of trees per maintenance span | D161: 0's
C162: Average frequency of cutting cycle | D162: years
B163: =B51 -> ZONE 7 | C163: Route line length within zone | D163: km
C164: Number of maintenance spans | D164: 0's
C165: Total length of maintenance spans | D165: km
C166: Length of vegetation corridors | D166: km
C167: Average number of trees per maintenance span | D167: 0's
C168: Average frequency of cutting cycle | D168: years
B169: =B57 -> ZONE 8 | C169: Route line length within zone | D169: km
C170: Number of maintenance spans | D170: 0's
C171: Total length of maintenance spans | D171: km
C172: Length of vegetation corridors | D172: km
C173: Average number of trees per maintenance span | D173: 0's
C174: Average frequency of cutting cycle | D174: years
B175: =B63 -> ZONE 9 | C175: Route line length within zone | D175: km
C176: Number of maintenance spans | D176: 0's
C177: Total length of maintenance spans | D177: km
C178: Length of vegetation corridors | D178: km
C179: Average number of trees per maintenance span | D179: 0's
C180: Average frequency of cutting cycle | D180: years
B181: =B69 -> ZONE 10 | C181: Route line length within zone | D181: km
C182: Number of maintenance spans | D182: 0's
C183: Total length of maintenance spans | D183: km
C184: Length of vegetation corridors | D184: km
C185: Average number of trees per maintenance span | D185: 0's
C186: Average frequency of cutting cycle | D186: years
B187: =B75 -> ZONE 11 | C187: Route line length within zone | D187: km
C188: Number of maintenance spans | D188: 0's
C189: Total length of maintenance spans | D189: km
C190: Length of vegetation corridors | D190: km
C191: Average number of trees per maintenance span | D191: 0's
C192: Average frequency of cutting cycle | D192: years
B193: =B81 -> ZONE 12 | C193: Route line length within zone | D193: km
C194: Number of maintenance spans | D194: 0's
C195: Total length of maintenance spans | D195: km
C196: Length of vegetation corridors | D196: km
C197: Average number of trees per maintenance span | D197: 0's
C198: Average frequency of cutting cycle | D198: years
B199: =B87 -> ZONE 13 | C199: Route line length within zone | D199: km
C200: Number of maintenance spans | D200: 0's
C201: Total length of maintenance spans | D201: km
C202: Length of vegetation corridors | D202: km
C203: Average number of trees per maintenance span | D203: 0's
C204: Average frequency of cutting cycle | D204: years
B205: =B93 -> ZONE 14 | C205: Route line length within zone | D205: km
... 201 more rows

Sheet 2.8 Maintenance
B1: REGULATORY REPORTING STATEMENT
B2: =INDEX(dms_TradingNameFull_List,MATCH(dms_TradingName,dms_TradingName_List)) -> Energex
B3: =CONCATENATE((LOOKUP(dms_Model,dms_Model_List,dms_Worksheet_List))&" "&CRY) -> CATEGORY ANALYSIS 2016-17
B4: 2.8 MAINTENANCE
B6: There are TWO tables on this worksheet. Each has been grouped for ease of navigation. See the Instructions sheet on how to group or ungroup tables.
B8: 2.8.1 - DESCRIPTOR METRICS FOR ROUTINE AND NON-ROUTINE MAINTENANCE
F9: ASSET QUANTITY (0's) | H9: AVERAGE AGE OF ASSET GROUP | I9: INSPECTION CYCLE (YEARS) | J9: MAINTENANCE CYCLE (YEARS)
F10: AT YEAR END | G10: INSPECTED / MAINTAINED
B11: MAINTENANCE ACTIVITY | C11: MAINTENANCE ASSET CATEGORY | D11: ASSET QUANTITY | E11: Units | F11: =CRY -> 2016-17 | G11: =CRY -> 2016-17 | H11: =CRY -> 2016-17
B12: Pole top, overhead line & service line maintenance | C12: Pole tops and overhead lines | D12: Number of poles | E12: Number | F12: 447864 | G12: 20455 | H12: 28 | I12: 10
C13: Service lines | D13: Number of customers | E13: Number | F13: 593754 | G13: 15085 | H13: 17
B14: Pole inspection and treatment | C14: All poles | D14: Number of poles | E14: Number | F14: 447864 | G14: 87685 | H14: 28 | I14: 5
B15: Overhead asset inspection | C15: All overhead assets | D15: Line patrolled (route KM) | E15: KM | F15: 35118 | G15: 41067 | H15: 37 | I15: 1
B16: Network underground cable maintenance: by voltage | C16: LV - 11 to 22 KV | D16: Length (KM) | E16: KM | F16: 17632 | G16: 5595 | H16: 17
C17: 33 KV and above | D17: Length (KM) | E17: KM | F17: 990 | G17: 95 | H17: 22 | J17: 1
B18: Network underground cable maintenance: by location | C18: Cbd | D18: Length (KM) | E18: KM | F18: 213 | G18: 65.30240866 | H18: 25
C19: Non-CBD | D19: Length (KM) | E19: KM | F19: 18409 | G19: 5624.697591 | H19: 18
B20: Distribution substation equipment & property maintenance | C20: Distribution substation transformers | D20: Number of installed transformers | E20: Number | F20: 49265 | G20: 614 | H20: 16
C21: Distribution substation switchgear (within-substations and stand-alone switchgear) | D21: Number of switches | E21: Number | F21: 22600 | G21: 1177 | H21: 12 | J21: 6
C22: Distribution substation - other equipment | D22: Earth mat | E22: Number | F22: 24 | H22: 18
C23: Distribution substation - property | D23: Number of distribution substation properties maintained | E23: Number | F23: 48535 | G23: 148 | H23: 25
B24: Zone substation equipment maintenance | C24: Transformers - zone substation | D24: Number | E24: Number | F24: 574 | G24: 1789 | H24: 21 | I24: 1.5 | J24: 1
C25: Transformers - distribution | D25: Number of distribution transformers within zone substation | E25: Number | F25: 16 | H25: 34
C26: Transformers - HV | D26: Number of HV transformers | E26: Number | F26: 500 | H26: 20
C27: Zone substation - other equipment | D27: <DNSP to nominate> | E27: =D27 -> <DNSP to nominate> | F27: 20882 | G27: 4614 | H27: 13 | I27: 6 | J27: 1
B28: Zone substation property maintenance | C28: All zone substation properties | D28: Number of zone substation properties maintained | E28: Number | F28: 300 | G28: 843 | H28: 37 | I28: 2
B29: Public lighting maintenance | C29: Minor roads | D29: Number of public lights maintained | E29: Number | F29: 231254 | G29: 58297 | H29: 13 | I29: 0.25
C30: Major roads | D30: Number of public lights maintained | E30: Number | F30: 90820 | G30: 18378 | H30: 13 | I30: 0.125
B31: SCADA & network control maintenance | C31: SCADA & network control | D31: Number of systems | E31: Number | F31: 11488 | G31: 650 | H31: 4.834087744 | I31: 1
B32: Protection systems maintenance | C32: Protection systems | D32: Number of systems | E32: Number | F32: 19201 | G32: 1001 | H32: 13.65012239 | J32: 6
B33: Subtransmission asset maintenance | C33: Subtransmission asset maintenance - for DNSPs with dual function assets | D33: <DNSP to nominate> | E33: =D33 -> <DNSP to nominate>
B34: Various assets | C34: includes rates, electricity, communications equip, metering | D34: Various | E34: Number
B35: Ground clearance - access tracks | C35: Access tracks | D35: Number | E35: Number
B36: Other | C36: Zone Substation Inspection | D36: All Zone Substation Assets | F36: 21954 | G36: 1597 | H36: 14 | I36: 0.5
C37: Distribution Asset Inspection | D37: Distribution Substations | F37: 49265 | G37: 5847 | H37: 16 | I37: 3
C38: Distribution Pole Mounted Plant Maintenance | D38: All Distribution PMP (Transformers, Reclosers, Regulators, Sectionalisers) | F38: 50433 | G38: 4058 | H38: 15 | I38: 2.5 | J38: 5
C39: Underground Feeder Asset Inspection | D39: All Underground Feeder Assets | F39: 18622 | G39: 2403 | H39: 18 | I39: 0.08
C40: Pilot Cable Inspection and Maintenance | D40: All Pilot Cables (Copper & Fibre) | F40: 3677565 | G40: 111 | H40: 17.64555968 | I40: 1
C41: Other | D41: Adjustments to labour, fleet and materials oncosts
B48: 2.8.2 - COST METRICS FOR ROUTINE AND NON-ROUTINE MAINTENANCE
F49: EXPENDITURE ($0'S)
F50: ROUTINE MAINTENANCE | G50: NON-ROUTINE MAINTENANCE
B51: MAINTENANCE ACTIVITY | C51: MAINTENANCE ASSET CATEGORY | D51: ASSET QUANTITY | E51: Units | F51: =CRY -> 2016-17 | G51: =CRY -> 2016-17
B52: Pole top, overhead line & service line maintenance | C52: Pole tops and overhead lines | D52: Number of poles | E52: Number | F52: 304654.23 | G52: 13340958.5
C53: Service lines | D53: Number of customers | E53: Number | G53: 2183239.66
B54: Pole inspection and treatment | C54: All poles | D54: Number of poles | E54: Number | F54: 4387205.62
B55: Overhead asset inspection | C55: All overhead assets | D55: Line patrolled (route KM) | E55: KM | F55: 4757027.68 | G55: 425777.67
B56: Network underground cable maintenance: by voltage | C56: LV - 11 to 22 KV | D56: Length (KM) | E56: KM | F56: 283138.15 | G56: 1772810.91
C57: 33 KV and above | D57: Length (KM) | E57: KM | G57: 1456465.26
B58: Network underground cable maintenance: by location | C58: Cbd | D58: Length (KM) | E58: KM | F58: 3249.490893 | G58: 37061.42568
C59: Non-CBD | D59: Length (KM) | E59: KM | F59: 279888.6591 | G59: 3192214.744
B60: Distribution substation equipment & property maintenance | C60: Distribution substation transformers | D60: Number of installed transformers | E60: Number | G60: 733581.33
C61: Distribution substation switchgear (within-substations and stand-alone switchgear) | D61: Number of switches | E61: Number | F61: 4237257.24
C62: Distribution substation - other equipment | D62: Earth mat | E62: Number
C63: Distribution substation - property | D63: Number of distribution substation properties maintained | E63: Number | G63: 628234.6
B64: Zone substation equipment maintenance | C64: Transformers - zone substation | D64: Number | E64: Number | F64: 627714.57 | G64: 3390951.12
C65: Transformers - distribution | D65: Number of distribution transformers within zone substation | E65: Number
C66: Transformers - HV | D66: Number of HV transformers | E66: Number
C67: Zone substation - other equipment | D67: =IF(ISBLANK(D27),"",D27) -> <DNSP to nominate> | E67: =IF(ISBLANK(E27),"",E27) -> <DNSP to nominate> | F67: 1402843.15 | G67: 5134167.8
B68: Zone substation property maintenance | C68: All zone substation properties | D68: Number of zone substation properties maintained | E68: Number | F68: 233419.02 | G68: 4358107.41
B69: Public lighting maintenance | C69: Minor roads | D69: Number of public lights maintained | E69: Number
C70: Major roads | D70: Number of public lights maintained | E70: Number
B71: SCADA & network control maintenance | C71: SCADA & network control | D71: Number of systems | E71: Number | F71: 786612.82 | G71: 48085.66
B72: Protection systems maintenance | C72: Protection systems | D72: Number of systems | E72: Number | F72: 2096540.98 | G72: 463559.27
B73: Subtransmission asset maintenance | C73: Subtransmission asset maintenance - for DNSPs with dual function assets | D73: =IF(ISBLANK(D33),"",D33) -> <DNSP to nominate> | E73: =IF(ISBLANK(E33),"",E33) -> <DNSP to nominate>
B74: Various assets | C74: includes rates, electricity, communications equip, metering | D74: Various | E74: Number
B75: Ground clearance - access tracks | C75: Access tracks | D75: Number | E75: Number | G75: 848339.79
B76: Other | C76: =IF(ISBLANK(C36),"",C36) -> Zone Substation Inspection | D76: All Zone Substation Assets | F76: 640432.01 | G76: 244331.19
C77: Distribution Asset Inspection | D77: Distribution Substations | F77: 600417.76 | G77: 1100633.02
C78: Distribution Pole Mounted Plant Maintenance | D78: All Distribution PMP (Transformers, Reclosers, Regulators, Sectionalisers) | F78: 267205.73 | G78: 1518310.09
C79: Underground Feeder Asset Inspection | D79: All Underground Feeder Assets | F79: 197699.24 | G79: 300761.73
C80: Pilot Cable Inspection and Maintenance | D80: All Pilot Cables (Copper & Fibre) | F80: 8406.44 | G80: 233669.18
C81: Other | D81: Adjustments to labour, fleet and materials oncosts | G81: 1467939.25

Sheet 2.9 Emergency Response
B1: REGULATORY REPORTING STATEMENT
B2: =INDEX(dms_TradingNameFull_List,MATCH(dms_TradingName,dms_TradingName_List)) -> Energex
B3: =CONCATENATE((LOOKUP(dms_Model,dms_Model_List,dms_Worksheet_List))&" "&CRY) -> CATEGORY ANALYSIS 2016-17
B4: 2.9 EMERGENCY RESPONSE
B7: There is ONE table on this worksheet. It has been sub-grouped for ease of navigation. See the Instructions sheet on how to group or ungroup tables.
B9: 2.9.1 - EMERGENCY RESPONSE EXPENDITURE (OPEX)
D10: EXPENDITURE ($0's)
D11: =CRY -> 2016-17
B12: (A) TOTAL EMERGENCY RESPONSE EXPENDITURE | C12: Total Expenditure | D12: 44545931.23
B13: (B) MAJOR EVENTS O&M EXPENDITURE | C13: Storm struck Energex Thursday, 30 March 2017 to Saturday, 1 April 2017 (Cyclone Debbie) | D13: 5905027.87
C14: Storm struck Energex Monday, 13 February 2017 | D14: 390678.43
C15: Storm struck Energex Sunday, 18 December 2016 | D15: 271979.11
C16: Storm struck Energex Saturday, 3 December 2016 | D16: 937422.8
C17: Storm struck Energex Sunday, 13 November 2016 | D17: 261334.61
C18: Storm struck Energex Saturday, 12 November 2016 | D18: 159903.03
B56: (C) MAJOR EVENT DAYS O&M EXPENDITURE | C56: 2016-07-01 | D56: 0
C57: 2016-07-02 | D57: 0
C58: 2016-07-03 | D58: 0
C59: 2016-07-04 | D59: 0
C60: 2016-07-05 | D60: 0
C61: 2016-07-06 | D61: 0
C62: 2016-07-07 | D62: 0
C63: 2016-07-08 | D63: 0
C64: 2016-07-09 | D64: 0
C65: 2016-07-10 | D65: 0
C66: 2016-07-11 | D66: 0
C67: 2016-07-12 | D67: 0
C68: 2016-07-13 | D68: 0
C69: 2016-07-14 | D69: 0
C70: 2016-07-15 | D70: 0
C71: 2016-07-16 | D71: 0
C72: 2016-07-17 | D72: 0
C73: 2016-07-18 | D73: 0
C74: 2016-07-19 | D74: 0
C75: 2016-07-20 | D75: 0
C76: 2016-07-21 | D76: 0
C77: 2016-07-22 | D77: 0
C78: 2016-07-23 | D78: 0
C79: 2016-07-24 | D79: 0
C80: 2016-07-25 | D80: 0
C81: 2016-07-26 | D81: 0
C82: 2016-07-27 | D82: 0
C83: 2016-07-28 | D83: 0
C84: 2016-07-29 | D84: 0
C85: 2016-07-30 | D85: 0
C86: 2016-07-31 | D86: 0
C87: 2016-08-01 | D87: 0
C88: 2016-08-02 | D88: 0
C89: 2016-08-03 | D89: 0
C90: 2016-08-04 | D90: 0
C91: 2016-08-05 | D91: 0
C92: 2016-08-06 | D92: 0
C93: 2016-08-07 | D93: 0
C94: 2016-08-08 | D94: 0
C95: 2016-08-09 | D95: 0
C96: 2016-08-10 | D96: 0
C97: 2016-08-11 | D97: 0
C98: 2016-08-12 | D98: 0
C99: 2016-08-13 | D99: 0
C100: 2016-08-14 | D100: 0
C101: 2016-08-15 | D101: 0
C102: 2016-08-16 | D102: 0
C103: 2016-08-17 | D103: 0
C104: 2016-08-18 | D104: 0
C105: 2016-08-19 | D105: 0
C106: 2016-08-20 | D106: 0
C107: 2016-08-21 | D107: 0
C108: 2016-08-22 | D108: 0
C109: 2016-08-23 | D109: 0
C110: 2016-08-24 | D110: 0
C111: 2016-08-25 | D111: 0
C112: 2016-08-26 | D112: 0
C113: 2016-08-27 | D113: 0
C114: 2016-08-28 | D114: 0
C115: 2016-08-29 | D115: 0
C116: 2016-08-30 | D116: 0
C117: 2016-08-31 | D117: 0
C118: 2016-09-01 | D118: 0
C119: 2016-09-02 | D119: 0
C120: 2016-09-03 | D120: 0
C121: 2016-09-04 | D121: 0
C122: 2016-09-05 | D122: 0
C123: 2016-09-06 | D123: 0
C124: 2016-09-07 | D124: 0
C125: 2016-09-08 | D125: 0
C126: 2016-09-09 | D126: 0
C127: 2016-09-10 | D127: 0
C128: 2016-09-11 | D128: 0
C129: 2016-09-12 | D129: 0
C130: 2016-09-13 | D130: 0
C131: 2016-09-14 | D131: 0
C132: 2016-09-15 | D132: 0
C133: 2016-09-16 | D133: 0
C134: 2016-09-17 | D134: 0
C135: 2016-09-18 | D135: 0
C136: 2016-09-19 | D136: 0
C137: 2016-09-20 | D137: 0
C138: 2016-09-21 | D138: 0
C139: 2016-09-22 | D139: 0
C140: 2016-09-23 | D140: 0
C141: 2016-09-24 | D141: 0
C142: 2016-09-25 | D142: 0
C143: 2016-09-26 | D143: 0
C144: 2016-09-27 | D144: 0
C145: 2016-09-28 | D145: 0
C146: 2016-09-29 | D146: 0
C147: 2016-09-30 | D147: 0
C148: 2016-10-01 | D148: 0
C149: 2016-10-02 | D149: 0
C150: 2016-10-03 | D150: 0
C151: 2016-10-04 | D151: 0
C152: 2016-10-05 | D152: 0
C153: 2016-10-06 | D153: 0
C154: 2016-10-07 | D154: 0
C155: 2016-10-08 | D155: 0
C156: 2016-10-09 | D156: 0
C157: 2016-10-10 | D157: 0
C158: 2016-10-11 | D158: 0
C159: 2016-10-12 | D159: 0
C160: 2016-10-13 | D160: 0
C161: 2016-10-14 | D161: 0
C162: 2016-10-15 | D162: 0
C163: 2016-10-16 | D163: 0
C164: 2016-10-17 | D164: 0
C165: 2016-10-18 | D165: 0
C166: 2016-10-19 | D166: 0
C167: 2016-10-20 | D167: 0
C168: 2016-10-21 | D168: 0
C169: 2016-10-22 | D169: 0
C170: 2016-10-23 | D170: 0
C171: 2016-10-24 | D171: 0
C172: 2016-10-25 | D172: 0
C173: 2016-10-26 | D173: 0
C174: 2016-10-27 | D174: 0
C175: 2016-10-28 | D175: 0
C176: 2016-10-29 | D176: 0
C177: 2016-10-30 | D177: 0
C178: 2016-10-31 | D178: 0
C179: 2016-11-01 | D179: 0
C180: 2016-11-02 | D180: 0
C181: 2016-11-03 | D181: 0
C182: 2016-11-04 | D182: 0
C183: 2016-11-05 | D183: 0
C184: 2016-11-06 | D184: 0
C185: 2016-11-07 | D185: 0
C186: 2016-11-08 | D186: 0
C187: 2016-11-09 | D187: 240.46
C188: 2016-11-10 | D188: 0
C189: 2016-11-11 | D189: 0
C190: 2016-11-12 | D190: 110049.6
C191: 2016-11-13 | D191: 180208.83
C192: 2016-11-14 | D192: 81267.34
C193: 2016-11-15 | D193: 7512.67
C194: 2016-11-16 | D194: 11226.8
C195: 2016-11-17 | D195: 1096.84
C196: 2016-11-18 | D196: 13777.86
C197: 2016-11-19 | D197: 66.77
C198: 2016-11-20 | D198: 0
C199: 2016-11-21 | D199: 6027.99
C200: 2016-11-22 | D200: 26.69
C201: 2016-11-23 | D201: 698.03
C202: 2016-11-24 | D202: -652.41
C203: 2016-11-25 | D203: 1830.22
C204: 2016-11-26 | D204: 178.54
C205: 2016-11-27 | D205: 0
C206: 2016-11-28 | D206: 194.14
C207: 2016-11-29 | D207: 0
C208: 2016-11-30 | D208: 5562.02
C209: 2016-12-01 | D209: 10778.93
C210: 2016-12-02 | D210: 2952.07
C211: 2016-12-03 | D211: 396834.92
C212: 2016-12-04 | D212: 292631.19
C213: 2016-12-05 | D213: 77792.91
C214: 2016-12-06 | D214: 28754.08
C215: 2016-12-07 | D215: 12127.53
C216: 2016-12-08 | D216: 8284.6
C217: 2016-12-09 | D217: 45696.94
C218: 2016-12-10 | D218: 1906.68
C219: 2016-12-11 | D219: 1484.86
C220: 2016-12-12 | D220: 8811.2
C221: 2016-12-13 | D221: -1575.7
C222: 2016-12-14 | D222: -1679.93
C223: 2016-12-15 | D223: 1952.64
C224: 2016-12-16 | D224: 1466.39
C225: 2016-12-17 | D225: 4710.64
C226: 2016-12-18 | D226: 153165.73
C227: 2016-12-19 | D227: 73245.7
C228: 2016-12-20 | D228: 34041.64
C229: 2016-12-21 | D229: 23292.37
C230: 2016-12-22 | D230: 1516.76
C231: 2016-12-23 | D231: 1505.73
C232: 2016-12-24 | D232: 29.41
C233: 2016-12-25 | D233: 0
C234: 2016-12-26 | D234: 0
C235: 2016-12-27 | D235: 0
C236: 2016-12-28 | D236: 56.23
C237: 2016-12-29 | D237: 150.13
C238: 2016-12-30 | D238: 3702.04
C239: 2016-12-31 | D239: 0
C240: 2017-01-01 | D240: 0
... 180 more rows

Sheet 2.10 Overheads
B1: REGULATORY REPORTING STATEMENT
B2: =INDEX(dms_TradingNameFull_List,MATCH(dms_TradingName,dms_TradingName_List)) -> Energex
B3: =CONCATENATE((LOOKUP(dms_Model,dms_Model_List,dms_Worksheet_List))&" "&CRY) -> CATEGORY ANALYSIS 2016-17
B4: 2.10 OVERHEADS
B6: =CONCATENATE("Please note. This worksheet 2.10 Overheads is the original worksheet. We have also included a different version of the Overheads template (worksheet 2.10A Overheads) which collects the information in a different way. ",dms_TradingName, " is not obliged to complete worksheet 2.10A. However, the AER would prefer to collect Overheads information as presented in the revised worksheet 2.10A Overheads. If ",dms_TradingName," is prepared to complete worksheet 2.10A in lieu of the original worksheet 2.10 Overheads, please indicate that choice by selecting from the drop down list at the right. ",dms_TradingName, " is only required to complete one version of the Overheads worksheet in order to comply with the Category Analysis RIN.") -> Please note. This worksheet 2.10 Overheads is the original worksheet. We have also included a different version of the Overheads template (worksheet 2.10A Overheads) which collects the information in a different way. Energex is not obliged to complete worksheet 2.10A. However, the AER would prefer to collect Overheads information as presented in the revised worksheet 2.10A Overheads. If Energex is prepared to complete worksheet 2.10A in lieu of the original worksheet 2.10 Overheads, please indicate that choice by selecting from the drop down list at the right. Energex is only required to complete one version of the Overheads worksheet in order to comply with the Category Analysis RIN. | D6: Choose Response drop down selection
D7: Worksheet 2.10
B11: There are TWO tables on this worksheet. Each has been grouped (and sub-grouped) for ease of navigation. See the Instructions sheet on how to group or ungroup tables.
B13: =CONCATENATE("Instructions Please enter a description for each expenditure category as currently reported under ",dms_TradingName,"'s annual RIN.") -> Instructions Please enter a description for each expenditure category as currently reported under Energex's annual RIN.
B15: 2.10.1 - NETWORK OVERHEADS EXPENDITURE
D16: EXPENDITURE ($0's)
D17: =CRY -> 2016-17
B18: NETWORK OVERHEADS
B19: Standard Control Services | C19: Network management | D19: 29306526.3
C20: Network planning | D20: 8130522.167
C21: Network control and operational switching | D21: 28269225.9
C22: Quality and standard functions | D22: 11770362.74
C23: Project governance and related functions | D23: 25716948.42
C24: Other | D24: 0
C25: Training and Development | D25: 15202186.54
C26: OHS | D26: 4705128.563
C27: Customer Service | D27: 13348913.08
C28: Network Billing and Other Energy Market Services (including meter reading) | D28: 6965290.769
C29: DSM Initiatives | D29: 9261771.81
C30: Levies | D30: 9294811.8
C31: Network Property | D31: 4413251.345
B47: Alternative Control Services | C47: Network management | D47: 4558486.745
C48: Network planning | D48: 1265561.485
C49: Network control and operational switching | D49: 823607.9885
C50: Quality and standard functions | D50: 1829608.055
C51: Project governance and related functions | D51: 4058268.517
C52: Other | D52: 0
C53: Training and Development | D53: 2314599.671
C54: OHS | D54: 732379.7131
C55: Customer Service | D55: 1089851.934
C56: Network Billing and Other Energy Market Services (including meter reading) | D56: 11811440.7
C57: DSM Initiatives | D57: 0
C58: Levies | D58: 0
C59: Network Property | D59: 686947.3832
B75: Negotiated Services | C75: Total
B76: Unregulated Services | C76: Total | D76: 3000353.176
B79: CAPITALISED NETWORK OVERHEADS
B80: Standard Control Services | C80: Network management | D80: 18777676.08
C81: Network planning | D81: 5245877.211
C82: Network control and operational switching | D82: 3413936.365
C83: Quality and standard functions | D83: 7583905.89
C84: Project governance and related functions | D84: 17805087.97
C85: Other | D85: 0
C86: Training and Development | D86: 7811251.693
C87: OHS | D87: 3035786.164
C88: Customer Service | D88: 1162921.307
C89: Network Billing and Other Energy Market Services (including meter reading) | D89: 2651498.798
C90: DSM Initiatives | D90: 0
C91: Levies | D91: 0
C92: Network Property | D92: 2847464.674
B104: 2.10.2 - CORPORATE OVERHEADS EXPENDITURE
D105: EXPENDITURE ($0's)
D106: =CRY -> 2016-17
B107: CORPORATE OVERHEADS
B108: Standard Control Services | C108: Office of CEO | D108: 790155.5309
C109: Legal and Secretariat | D109: 1557510.884
C110: Audit | D110: 946893.1493
C111: Strategy and Regulation | D111: 5138182.692
C112: Human Resources | D112: 7725840.752
C113: Finance | D113: 7148884.279
C114: Business Support Services | D114: 14642145.12
C115: Business Operations and Performance | D115: 1448653.171
C116: Field Support Services | D116: 8157238.373
C117: Stakeholder Engagement and Management | D117: 5525971.25
C118: Other Operating | D118: 4797201.834
C119: Corporate Restructuring | D119: 25000183.96
C120: IT and Communications | D120: 82040976.9
C121: Property | D121: 35916970.59
C122: Fleet | D122: 17849389.36
C123: Debt Raising Costs | D123: 0
B129: Alternative Control Services | C129: Office of CEO | D129: 109794.1905
C130: Legal and Secretariat | D130: 216420.2362
C131: Audit | D131: 131573.2951
C132: Strategy and Regulation | D132: 713964.0074
C133: Human Resources | D133: 1104258.057
C134: Finance | D134: 993356.2846
C135: Business Support Services | D135: 2250837.3
C136: Business Operations and Performance | D136: 217368.8689
C137: Field Support Services | D137: 1269714.196
C138: Stakeholder Engagement and Management | D138: 767848.2481
C139: Other Operating | D139: 567435.1157
C140: Corporate Restructuring | D140: 3473841.356
C141: IT and Communications | D141: 12770139.29
C142: Property | D142: 5590635.346
C143: Fleet | D143: 2563133.458
C144: Debt Raising Costs | D144: 0
B150: Negotiated Services | C150: Total
B151: Unregulated Services | C151: Total | D151: 8729525.497
B153: CAPITALISED CORPORATE OVERHEADS
B154: Standard Control Services | C154: Office of CEO | D154: 0
C155: Legal and Secretariat | D155: 0
C156: Audit | D156: 0
C157: Strategy and Regulation | D157: 0
C158: Human Resources | D158: 1187130.427
C159: Finance | D159: 0
C160: Business Support Services | D160: 8354244.056
C161: Business Operations and Performance | D161: 620938.0676
C162: Field Support Services | D162: 5262890.008
C163: Stakeholder Engagement and Management | D163: 0
C164: Other Operating | D164: 0
C165: Corporate Restructuring | D165: 0
C166: IT and Communications | D166: 52933487.2
C167: Property | D167: 23172250.44
C168: Fleet | D168: 9476448.679
C169: Debt Raising Costs | D169: 0

Sheet 2.10(A) Overheads
B1: REGULATORY REPORTING STATEMENT
B2: =INDEX(dms_TradingNameFull_List,MATCH(dms_TradingName,dms_TradingName_List)) -> Energex
B3: =CONCATENATE((LOOKUP(dms_Model,dms_Model_List,dms_Worksheet_List))&" "&CRY) -> CATEGORY ANALYSIS 2016-17
B4: 2.10(A) OVERHEADS
B6: This worksheet may be completed on a voluntary basis. Please see worksheet 2.10 for an explanation of Overheads reporting options.
B9: There are TWO tables on this worksheet. Each has been grouped (and sub-grouped) for ease of navigation. See the Instructions sheet on how to group or ungroup tables.
B11: 2.10.1 - NETWORK OVERHEADS EXPENDITURE
D12: EXPENDITURE ($0's)
D13: =CRY -> 2016-17
B14: OPEX
B15: Standard Control Services | C15: Total
B16: Alternative Control Services | C16: Total
B17: CAPEX
B18: Standard Control Services | C18: Total
B19: Alternative Control Services | C19: Total
B20: OTHER DISTRIBUTION SERVICES
B21: Negotiated Services | C21: Total
B22: Unregulated Services | C22: Total
B26: 2.10.2 - CORPORATE OVERHEADS EXPENDITURE
D27: EXPENDITURE ($0's)
D28: =CRY -> 2016-17
B29: OPEX
B30: Standard Control Services | C30: Total
B31: Alternative Control Services | C31: Total
B32: CAPEX
B33: Standard Control Services | C33: Total
B34: Alternative Control Services | C34: Total
B35: OTHER DISTRIBUTION SERVICES
B36: Negotiated Services | C36: Total
B37: Unregulated Services | C37: Total

Sheet 2.11 Labour
B1: REGULATORY REPORTING STATEMENT
B2: =INDEX(dms_TradingNameFull_List,MATCH(dms_TradingName,dms_TradingName_List)) -> Energex
B3: =CONCATENATE((LOOKUP(dms_Model,dms_Model_List,dms_Worksheet_List))&" "&CRY) -> CATEGORY ANALYSIS 2016-17
B4: 2.11 LABOUR
B6: There are TWO tables on this worksheet. Each has been grouped for ease of navigation. See the Instructions sheet on how to group or ungroup tables.
B8: 2.11.1 - COST METRICS PER ANNUM
D9: ASL (0's) | E9: TOTAL LABOUR EXPENDITURE ($0's) | F9: AVERAGE PRODUCTIVE WORK HOURS PER ASL (0's) | G9: STAND-DOWN OCCURENCES PER ASL (0's)
D11: =CRY -> 2016-17 | E11: =CRY -> 2016-17 | F11: =CRY -> 2016-17 | G11: =CRY -> 2016-17
B12: INTERNAL LABOUR EXPENDITURE
B13: CORPORATE OVERHEADS | C13: Executive manager | D13: 2.67675878 | E13: 847633.8834 | F13: 1527.757409 | G13: 0
C14: Senior manager | D14: 8.699466033 | E14: 2754810.121 | F14: 1527.757409
C15: Manager | D15: 23.03302261 | E15: 5292643.08 | F15: 1603.246236 | G15: 0
C16: Professional | D16: 118.4580134 | E16: 20447876.17 | F16: 1624.403945 | G16: 0
C17: Semi professional | D17: 22.24376619 | E17: 3628725.695 | F17: 1624.403945 | G17: 0
C18: Support staff | D18: 151.9977166 | E18: 15811794.54 | F18: 1605.934394 | G18: 0
C19: Intern, junior staff, apprentice | D19: 29.06735832 | E19: 4097396.567 | F19: 1724.468475 | G19: 0
B20: NETWORK OVERHEADS | C20: Executive manager | D20: 0.9940409787 | E20: 314514.4868 | F20: 1530.608236 | G20: 0
C21: Senior manager | D21: 29.32420887 | E21: 9278177.36 | F21: 1530.608236 | G21: 0
C22: Manager | D22: 32.52988952 | E22: 7468640.487 | F22: 1599.615997 | G22: 0
C23: Professional | D23: 164.3331005 | E23: 28616159.29 | F23: 1606.543403 | G23: 0.3005752156
C24: Semi professional | D24: 330.6512601 | E24: 51836982.38 | F24: 1576.803667 | G24: 1.394181804
C25: Support staff | D25: 199.9981602 | E25: 21908304.1 | F25: 1629.887861 | G25: 0.4829602027
C26: Intern, junior staff, apprentice | D26: 185.6789728 | E26: 25814905.93 | F26: 1753.647621 | G26: 4.849645058
B27: TOTAL DIRECT NETWORK LABOUR | C27: Skilled electrical worker | D27: 616.8326897 | E27: 99241526.4 | F27: 1876.510884 | G27: 0
C28: Skilled non electical worker | D28: 322.7700825 | E28: 55948563.97 | F28: 1704.978557 | G28: 0
C29: Apprentice | D29: 73.61363476 | E29: 7107276.689 | F29: 1483.174982 | G29: 0
C30: Unskilled worker | D30: 64.83530229 | E30: 7772864.404 | F30: 1819.804025 | G30: 0
B33: 2.11.2 - DESCRIPTOR METRICS
D34: ORDINARY TIME (0's) | F34: OVERTIME (0's)
D35: PER ASL | E35: HOURLY RATE PER ASL | F35: PER ASL | G35: HOURLY RATE PER ASL
D36: =CRY -> 2016-17 | E36: =CRY -> 2016-17 | F36: =CRY -> 2016-17 | G36: =CRY -> 2016-17
B37: AVERAGE PRODUCTIVE WORK HOURS PER ASL
B38: CORPORATE OVERHEADS | C38: Executive manager | D38: 1527.757409 | E38: 196.4991289 | F38: 0 | G38: 0
C39: Senior manager | D39: 1527.757409 | E39: 196.4991289 | F39: 0 | G39: 0
C40: Manager | D40: 1596.37 | E40: 136.4595927 | F40: 6.876236031 | G40: 0
C41: Professional | D41: 1597.663542 | E41: 102.2548941 | F41: 5.297196847 | G41: 127.0309407
C42: Semi professional | D42: 1506.33 | E42: 94.00065059 | F42: 118.0739447 | G42: 110.5935726
C43: Support staff | D43: 1599.799537 | E43: 61.49614494 | F43: 9.564394259 | G43: 84.59417672
C44: Intern, junior staff, apprentice | D44: 1506.33 | E44: 74.96564498 | F44: 218.1384749 | G44: 94.94628329
B45: NETWORK OVERHEADS | C45: Executive manager | D45: 1527.757409 | E45: 196.4991289 | F45: 2.850827377 | G45: 0
C46: Senior manager | D46: 1527.757409 | E46: 196.4991289 | F46: 2.850827377 | G46: 0
C47: Manager | D47: 1596.37 | E47: 136.4595927 | F47: 3.245996917 | G47: 0
C48: Professional | D48: 1596.705305 | E48: 102.8799945 | F48: 10.17340305 | G48: 105.0159354
C49: Semi professional | D49: 1506.33 | E49: 94.00065059 | F49: 70.47366694 | G49: 101.4704092
C50: Support staff | D50: 1597.818513 | E50: 63.80131164 | F50: 33.51786121 | G50: 69.27132276
C51: Intern, junior staff, apprentice | D51: 1597.930219 | E51: 70.34068453 | F51: 247.3176211 | G51: 80.14896988
B52: TOTAL DIRECT NETWORK LABOUR | C52: Skilled electrical worker | D52: 1506.33 | E52: 74.96564498 | F52: 370.1808842 | G52: 107.2217873
C53: Skilled non electical worker | D53: 1506.33 | E53: 94.00065059 | F53: 198.6485566 | G53: 115.4900953
C54: Apprentice | D54: 1215.33 | E54: 60.39100491 | F54: 267.8449823 | G54: 68.02484733
C55: Unskilled worker | D55: 1506.33 | E55: 58.32453712 | F55: 313.4740254 | G55: 82.57722534

Sheet 2.12 Input tables
B1: REGULATORY REPORTING STATEMENT
B2: =INDEX(dms_TradingNameFull_List,MATCH(dms_TradingName,dms_TradingName_List)) -> Energex
B3: =CONCATENATE((LOOKUP(dms_Model,dms_Model_List,dms_Worksheet_List))&" "&CRY) -> CATEGORY ANALYSIS 2016-17
B4: 2.12 INPUT TABLES
B6: There is ONE table on this worksheet. It has been sub-grouped for ease of navigation. See the Instructions sheet on how to group or ungroup tables.
B8: 2.12.1 - INPUT TABLES
D9: DIRECT MATERIAL EXPENDITURE | E9: DIRECT LABOUR EXPENDITURE | F9: CONTRACT EXPENDITURE | G9: OTHER EXPENDITURE | H9: RELATED PARTY CONTRACT EXPENDITURE | I9: RELATED PARTY CONTRACT MARGIN EXPENDITURE
D10: EXPENDITURE ($0's)
D11: =CRY -> 2016-17 | E11: 2016-17 | F11: 2016-17 | G11: 2016-17 | H11: 2016-17 | I11: 2016-17
B12: VEGETATION MANAGEMENT | C12: ='2.7 Vegetation management'!B15 -> ZONE 1 | D12: 5761.61 | E12: 101381.46 | F12: 44002334.19 | G12: 11719.03 | I12: 0
C13: ='2.7 Vegetation management'!B21 -> ZONE 2 | I13: 0
C14: ='2.7 Vegetation management'!B27 -> ZONE 3 | I14: 0
C15: ='2.7 Vegetation management'!B33 -> ZONE 4 | I15: 0
C16: ='2.7 Vegetation management'!B39 -> ZONE 5 | I16: 0
C17: ='2.7 Vegetation management'!B45 -> ZONE 6 | I17: 0
C18: ='2.7 Vegetation management'!B51 -> ZONE 7 | I18: 0
C19: ='2.7 Vegetation management'!B57 -> ZONE 8 | I19: 0
C20: ='2.7 Vegetation management'!B63 -> ZONE 9 | I20: 0
C21: ='2.7 Vegetation management'!B69 -> ZONE 10 | I21: 0
C22: ='2.7 Vegetation management'!B75 -> ZONE 11 | I22: 0
C23: ='2.7 Vegetation management'!B81 -> ZONE 12 | I23: 0
C24: ='2.7 Vegetation management'!B87 -> ZONE 13 | I24: 0
C25: ='2.7 Vegetation management'!B93 -> ZONE 14 | I25: 0
C26: ='2.7 Vegetation management'!B99 -> ZONE 15 | I26: 0
C27: ='2.7 Vegetation management'!B105 -> ZONE 16 | I27: 0
C28: ='2.7 Vegetation management'!B111 -> ZONE 17 | I28: 0
C29: ='2.7 Vegetation management'!B117 -> ZONE 18 | I29: 0
B30: ROUTINE MAINTENANCE | C30: Pole top, overhead line & service line maintenance | D30: -1119.02 | E30: 258894.54 | F30: 9634.77 | G30: 37243.94 | I30: 0
C31: Pole inspection and treatment | D31: 146601.54 | E31: 10335.83 | F31: 4222528.48 | G31: 7739.77 | H31: 2831508.06 | I31: 3335.92
C32: Overhead asset inspection | D32: 5068.4 | E32: 961857.32 | F32: 3675622.53 | G32: 114479.43 | I32: 0
C33: Network underground cable maintenance | D33: 11507.45 | E33: 128536.35 | F33: 128303.29 | G33: 14791.06 | I33: 0
C34: Distribution substation equipment & property maintenance | D34: 1283192.14 | E34: 2116121.55 | F34: 541826.26 | G34: 296117.29 | I34: 0
C35: Zone substation equipment maintenance | D35: 243866.87 | E35: 1430325.24 | F35: 180825.74 | G35: 175539.87 | I35: 0
C36: Zone substation property maintenance | D36: 10.51 | E36: 170457.8 | F36: 34895.12 | G36: 28055.59 | I36: 0
C37: Public lighting maintenance | I37: 0
C38: Scada & network control maintenance | D38: 1230.21 | E38: 700949.23 | F38: -149.3 | G38: 84582.68 | I38: 0
C39: Protection systems maintenance | D39: 3814.48 | E39: 1873878.24 | F39: 1807 | G39: 217041.26 | I39: 0
C40: Subtransmission asset maintenance - for dnsps with dual function assets | I40: 0
C41: Other | D41: 76729.88 | E41: 1281462.93 | F41: 209400.07 | G41: 146568.3 | I41: 0
B42: NON-ROUTINE MAINTENANCE | C42: Pole top, overhead line & service line maintenance | D42: 1432318.23 | E42: 8109455.45 | F42: 4995555.47 | G42: 986869.01 | I42: 0
C43: Pole inspection and treatment | I43: 0
C44: Overhead asset inspection | D44: 2343.62 | E44: 234465.85 | F44: 162817.72 | G44: 26150.48 | I44: 0
C45: Network underground cable maintenance | D45: 355815.36 | E45: 1589141.47 | F45: 1091012.21 | G45: 193307.13 | I45: 0
C46: Distribution substation equipment & property maintenance | D46: 60319.18 | E46: 382668.88 | F46: 261440.92 | G46: 657386.95 | I46: 0
C47: Zone substation equipment maintenance | D47: 1383486.72 | E47: 4953384.2 | F47: 1592386.15 | G47: 595861.85 | I47: 0
C48: Zone substation property maintenance | D48: 78673.42 | E48: 168515.28 | F48: 905474.29 | G48: 3205444.42 | I48: 0
C49: Public lighting maintenance | I49: 0
C50: SCADA & network control maintenance | E50: 43281.96 | G50: 4803.7 | I50: 0
C51: Protection systems maintenance | D51: -46473.07 | E51: 460017.71 | F51: 974.13 | G51: 49040.5 | I51: 0
C52: Subtransmission asset maintenance - for DNSP with dual function assets | I52: 0
C53: Other | D53: 379302.69 | E53: 3645634.85 | F53: 1177307.48 | G53: 511739.23 | I53: 0
B54: OVERHEADS | C54: Network overheads | D54: 15673273.08 | E54: 156901039 | F54: 15692464.28 | G54: 10289268.45 | H54: 1797011.04 | I54: 0
C55: Corporate overheads | D55: 512977.7525 | E55: 81891624.86 | F55: 112943087.2 | G55: 64808352.78 | H55: 115531103.3 | I55: 63680.008
B56: AUGMENTATION | C56: Subtransmission substations, switching stations, zone substations | D56: 552496.78 | E56: 3215673.78 | F56: 2433463.49 | G56: 1030901.66 | H56: 20745.89 | I56: 1385.888
C57: Subtransmission lines | D57: -23200.85 | E57: 1667795.55 | F57: 4524120.41 | G57: 763897.72 | H57: 30140 | I57: 9705.08
C58: HV feeders | D58: 3326176.79 | E58: 5928553.48 | F58: 4052282.69 | G58: 816920.45 | I58: 0
C59: Distribution substations | D59: 1311932.13 | E59: 2148097.41 | F59: 1298572.45 | G59: 289669.93 | I59: 0
C60: LV feeders | D60: 812321.09 | E60: 1334810.26 | F60: 774324.94 | G60: 214532.64 | I60: 0
C61: Other assets | D61: 9253261.13 | E61: 7892486.76 | F61: 4252567.73 | G61: 1641126.4 | I61: 0
B62: CONNECTIONS | C62: Simple and complex customer connections | D62: 21570844.72 | E62: 29378979 | F62: 22628860.17 | G62: 2830541.1 | H62: 127725 | I62: 41127.45
B63: EMERGENCY RESPONSE | C63: Major storms | D63: 324239.44 | E63: 7689325.87 | F63: 1877782.84 | G63: 845710.54 | I63: 0
C64: Major event days | D64: 269573.89 | E64: 5281635.59 | F64: 1734127.19 | G64: 641009.18 | I64: 0
B65: PUBLIC LIGHTING | C65: All public lighting services | D65: 3745207.37 | E65: 1675970.76 | F65: 11402138.23 | G65: 339908.74 | H65: 8419.32 | I65: 2711.02104
B66: METERING | C66: All metering services | D66: 9406986.58 | E66: 12182716.5 | F66: 12151969.65 | G66: 6777.35 | I66: 0
B67: FEE-BASED SERVICES | C67: All fee-based services | D67: 357890.21 | E67: 7104342.4 | F67: 11204718.91 | G67: 889240.48 | I67: 0
B68: QUOTED SERVICES | C68: All quoted services | D68: 6843311.03 | E68: 12008938.59 | F68: 4749052.73 | G68: 1095659.5 | I68: 0
B69: REPLACEMENT | C69: Poles | D69: 6605955.51 | E69: 12118828.25 | F69: 13408752.98 | G69: 1647934.049 | I69: 0
C70: Pole top structures | D70: 3731121.454 | E70: 6572679.76 | F70: 6694049.385 | G70: 893808.1411 | I70: 0
C71: Overhead conductors | D71: 3341154.287 | E71: 5384045.441 | F71: 7142577.902 | G71: 752298.0388 | I71: 0
C72: Underground cables | D72: 2151003.687 | E72: 2553444.401 | F72: 3591014.177 | G72: 515102.5179 | I72: 0
C73: Service lines | D73: 3044271.436 | E73: 1179844.782 | F73: 11894640.52 | G73: 263438.9474 | H73: 1606771.46 | I73: 506762.9174
C74: Transformers | D74: 19099924.55 | E74: 8987791.246 | F74: 6819774.389 | G74: 2433707.332 | H74: 18045.66 | I74: 0
C75: Switchgear | D75: 12145980.38 | E75: 12873382.29 | F75: 9127970.362 | G75: 2889169.031 | I75: 0
C76: Public lighting | D76: 941034.6878 | E76: 1617809.029 | F76: 2206120.253 | G76: 222413.9157 | I76: 0
C77: SCADA network control and protection systems | D77: 4716632.348 | E77: 10164123.6 | F77: 7547356.5 | G77: 1996958.692 | H77: 312375.09 | I77: 17525.9448
C78: Other | D78: 1780184.846 | E78: 3794026.204 | F78: 1720663.336 | G78: 236122.5577 | I78: 0
B79: NON-NETWORK EXPENDITURE | C79: IT and communications | D79: 2753824.55 | E79: 0 | F79: 98066074.51 | G79: 2676.35 | H79: 100696441 | I79: 0
C80: Motor vehicles | D80: 26826539.81 | E80: 3901932.096 | F80: 439134.3346 | G80: 17138426.91 | I80: 0
C81: Buildings and property | D81: 142535.78 | E81: 3825253.71 | F81: 15393958.36 | G81: 36117923.88 | H81: 1067161.45 | I81: 0
C82: Other | D82: 8053958.224 | E82: 4806255.384 | F82: 1317360.785 | G82: 1107993.786 | I82: 0

Sheet 4.1 Public lighting
B1: REGULATORY REPORTING STATEMENT
B2: =INDEX(dms_TradingNameFull_List,MATCH(dms_TradingName,dms_TradingName_List)) -> Energex
B3: =CONCATENATE((LOOKUP(dms_Model,dms_Model_List,dms_Worksheet_List))&" "&CRY) -> CATEGORY ANALYSIS 2016-17
B4: 4.1 PUBLIC LIGHTING
B7: There are THREE tables on this worksheet. Each has been grouped for ease of navigation. See the Instructions sheet on how to group or ungroup tables.
B9: 4.1.1 - DESCRIPTOR METRICS OVER YEAR
C10: LIGHT TYPE | E10: VOLUME (0's)
E11: =CRY -> 2016-17
B12: POPULATION OF LIGHTS | C12: High Pressure Sodium Vapour - Major | E12: 37649
C13: Mercury Vapour - Major | E13: 2042
C14: Metal Hallide - Major | E14: 319
C15: LED - Major | E15: 13
C16: Fluorescent - Minor | E16: 33667
C17: Metal Hallide - Minor | E17: 25
C18: Mercury Vapour - Minor | E18: 57854
C19: High Pressure Sodium Vapour - Minor | E19: 15875
C20: LED - Minor | E20: 1610
B214: 4.1.2 - DESCRIPTOR METRICS ANNUALLY
E217: VOLUMES & EXPENDITURE
B218: SERVICE/SERVICE QUALITY | C218: DESCRIPTOR METRIC | D218: UNITS | E218: =CRY -> 2016-17
B219: LIGHT INSTALLATION | C219: Major road light installation | D219: 0's | E219: 740
C220: Minor road light installation | D220: 0's | E220: 702
C221: Number of poles installed | D221: 0's | E221: 553
C222: Total cost | D222: $0s | E222: 3297401.16
B223: LIGHT REPLACEMENT | C223: Major road light replacement | D223: 0's | E223: 1200
C224: Minor road light replacement | D224: 0's | E224: 4870
C225: Number of poles replaced | D225: 0's | E225: 318
C226: Total cost | D226: $0s | E226: 1768361.02
B227: LIGHT MAINTENANCE | C227: Major road light maintenance | D227: 0's | E227: 18378
C228: Minor road light maintenance | D228: 0's | E228: 58297
C229: Number of poles installed | D229: 0's | E229: 10741
C230: Total cost | D230: $0s | E230: 12097462.92
B231: QUALITY OF SUPPLY | C231: Mean days to rectify/replace public lighting assets | D231: days | E231: 4.127
C232: GSO breaches | D232: 0's | E232: -
C233: GSL payments | D233: $0s | E233: -
C234: Customer complaints | D234: 0's | E234: 8
B237: 4.1.3 - COST METRICS
E238: AVERAGE UNIT COST ($)
B239: ACTIVITY TYPE | C239: LIGHT TYPE | E239: =CRY -> 2016-17
B240: LIGHT INSTALLATION | C240: Wood Pole Major | E240: 1652
C241: Steel Overhead Major | E241: 6685
C242: Steel Underground Major | E242: 10997
C243: Wood Pole Minor | E243: 904
C244: Steel Underground Decorative Minor | E244: 4647
B340: LIGHT REPLACEMENT | C340: High Pressure Sodium - Major | E340: 334
C341: Mercury Vapour to Compact Flourescent - Minor | E341: 224
C342: High Pressure Sodium - Minor | E342: 230
B440: LIGHT MAINTENANCE | C440: Major and Minor Luminaires | E440: 27.16

Sheet 4.2 Metering
B1: REGULATORY REPORTING STATEMENT
B2: =INDEX(dms_TradingNameFull_List,MATCH(dms_TradingName,dms_TradingName_List)) -> Energex
B3: =CONCATENATE((LOOKUP(dms_Model,dms_Model_List,dms_Worksheet_List))&" "&CRY) -> CATEGORY ANALYSIS 2016-17
B4: 4.2 METERING
B6: There are TWO tables on this worksheet. Each has been grouped for ease of navigation. See the Instructions sheet on how to group or ungroup tables.
B8: 4.2.1 - METERING DESCRIPTOR METRIC
D9: VOLUMES (0's)
B10: ASSET CATEGORY | C10: ASSET SUBCATEGORY | D10: =CRY -> 2016-17
B11: Meter Type 4 | C11: Single phase meter population
C12: Multi phase meter population
C13: Current transformer connected meter population
C14: Direct connect meter population
B15: Meter Type 5 | C15: Single phase meter population
C16: Multi phase meter population
C17: Current transformer connected meter population
C18: Direct connect meter population
B19: Meter Type 6 | C19: Single phase meter population | D19: 2007406
C20: Multi phase meter population | D20: 143707.5
C21: Current transformer connected meter population | D21: 9709.5
C22: Direct connect meter population | D22: 2141404
B25: 4.2.2 - COST METRICS
D26: VOLUMES (0's) | E26: EXPENDITURE ($0's)
B27: SERVICE SUBCATEGORY | C27: METER TYPE | D27: =CRY -> 2016-17 | E27: =CRY -> 2016-17
B28: Meter purchase | C28: Meter Type 4
C29: Meter Type 5
C30: Meter Type 6 | D30: 44413 | E30: 3449857.13
B31: Meter testing | C31: Meter Type 4
C32: Meter Type 5
C33: Meter Type 6 | D33: 3178 | E33: 976581.6
B34: Meter investigation | C34: Meter Type 4
C35: Meter Type 5
C36: Meter Type 6 | D36: 2558 | E36: 13071.12
B37: Scheduled meter reading | C37: Meter Type 4
C38: Meter Type 5
C39: Meter Type 6
B40: Special meter reading | C40: Meter Type 4
C41: Meter Type 5
C42: Meter Type 6
B43: New meter installation | C43: Meter Type 4
C44: Meter Type 5
C45: Meter Type 6 | D45: 51640 | E45: 11378732.45
B46: Meter replacement | C46: Meter Type 4
C47: Meter Type 5
C48: Meter Type 6 | D48: 16688 | E48: 2609647.83
B49: Meter maintenance | C49: Meter Type 4
C50: Meter Type 5
C51: Meter Type 6 | D51: 3271 | E51: 1321190.03
B52: Remote meter reading | C52: Meter Type 4
B53: Remote meter re-configuration | C53: Meter Type 4
B54: Other metering | C54: Meter Type 4
C55: Meter Type 5
C56: Meter Type 6 | E56: 4185994.03
C57: Meter Type 7
B58: IT infrastructure capex | C58: Meter Type 4
B59: IT infrastructure opex | C59: Meter Type 4
B60: Communications infrastructure capex | C60: Meter Type 4
B61: Communications infrastructure opex | C61: Meter Type 4

Sheet 4.3 Fee-based services
B1: REGULATORY REPORTING STATEMENT
B2: =INDEX(dms_TradingNameFull_List,MATCH(dms_TradingName,dms_TradingName_List)) -> Energex
B3: =CONCATENATE((LOOKUP(dms_Model,dms_Model_List,dms_Worksheet_List))&" "&CRY) -> CATEGORY ANALYSIS 2016-17
B4: 4.3 ANCILLARY SERVICES - FEE BASED SERVICES
B6: 4.3.1 - COST METRICS FOR FEE-BASED SERVICES
D7: EXPENDITURE ($0's) | F7: VOLUMES (0's)
B8: SERVICE | C8: SERVICE SUBCATEGORY | D8: =CRY -> 2016-17 | F8: =CRY -> 2016-17
B9: Common Fee-Based Services | C9: Energisation | E9: ED_FEE431_00001
C10: De-energisation | E10: ED_FEE431_00002
C11: Re-energisation | E11: ED_FEE431_00003
B12: Miscellaneous Fee-Based Services | C12: A&A to current metering equipment | D12: 210207.8 | E12: ED_FEE431_00004 | F12: 2290
C13: Attending LOS - LV cust at fault | D13: 231072.3 | E13: ED_FEE431_00005 | F13: 733
C14: De-en | D14: 5175328.33 | E14: ED_FEE431_00008 | F14: 118794
C15: Meter test
C16: Meter inspect | D16: 3920.07 | E16: ED_FEE431_00009 | F16: 92
C17: Reconfigure meter | D17: 613327.09 | E17: ED_FEE431_00009 | F17: 10068
C18: Off-cycle read | D18: 432240.79 | E18: ED_FEE431_00009 | F18: 79450
C19: Site visit | D19: 501685.19 | E19: ED_FEE431_00013 | F19: 27368
C20: Temp connection | D20: 206350.25 | E20: ED_FEE431_00015 | F20: 2644
C21: Re-en - BH | D21: 5826894.786 | E21: ED_FEE431_00016 | F21: 224585
C22: Re-en - AH | D22: 18239.4507 | E22: ED_FEE431_00017 | F22: 703
C23: Re-en Visual - BH | D23: 1834634.477 | E23: ED_FEE431_00018 | F23: 70712
C24: Re-en Visual - AH | D24: 93454.4828 | E24: ED_FEE431_00019 | F24: 3602
C25: Re-en NoPay Visual - BH | D25: 1089.696912 | E25: ED_FEE431_00020 | F25: 42
C26: Re-en NoPay Visual - AH | D26: 181.616152 | E26: ED_FEE431_00021 | F26: 7
C27: Supply Abolishment | D27: 390865.31 | E27: ED_FEE431_00022 | F27: 2660
C28: UMS (unmetered supply) | D28: 0 | E28: ED_FEE431_00023 | F28: 0
C29: SL glare screening - standard | D29: 15781.55 | E29: ED_FEE431_00024 | F29: 164
C30: Replacement of standard luminaires with aero screen units/SL | D30: 0 | E30: ED_FEE431_00025 | F30: 0
C31: Rearrange connection assets | D31: 533.85 | E31: ED_FEE431_00026 | F31: 1
C32: OH service line replacement | D32: 102540.72 | E32: ED_FEE431_00027 | F32: 1242
C33: Temporary disconnections and reconnection | D33: 0 | E33: ED_FEE431_00028 | F33: 18
C34: Customer initiated supply enhancement | D34: 746327.4 | E34: ED_FEE431_00029 | F34: 1368
C35: Customer consultation or appointment | D35: 8544.73 | E35: ED_FEE431_00030 | F35: 34
C36: Accreditation of alternative service providers | D36: 0 | E36: ED_FEE431_00031
C37: Small customer connections | D37: 2082151.01 | E37: ED_QUO441_00018 | F37: 509
C38: CT Metering | D38: 1060821.1 | E38: ED_FEE431_00033 | F38: 722
E39: ED_FEE431_00031
E40: ED_FEE431_00032
E41: ED_FEE431_00033
E42: ED_FEE431_00034
E43: ED_FEE431_00035
E44: ED_FEE431_00036
E45: ED_FEE431_00037
E46: ED_FEE431_00038
E47: ED_FEE431_00039
E48: ED_FEE431_00040
E49: ED_FEE431_00041
E50: ED_FEE431_00042
E51: ED_FEE431_00043
E52: ED_FEE431_00044
E53: ED_FEE431_00045
E54: ED_FEE431_00046
E55: ED_FEE431_00047
E56: ED_FEE431_00048
E57: ED_FEE431_00049
E58: ED_FEE431_00050
E59: ED_FEE431_00051
E60: ED_FEE431_00052
E61: ED_FEE431_00053
E62: ED_FEE431_00054
E63: ED_FEE431_00055
E64: ED_FEE431_00056
E65: ED_FEE431_00057
E66: ED_FEE431_00058
E67: ED_FEE431_00059
E68: ED_FEE431_00060
E69: ED_FEE431_00061
E70: ED_FEE431_00062
E71: ED_FEE431_00063
E72: ED_FEE431_00064
E73: ED_FEE431_00065
E74: ED_FEE431_00066
E75: ED_FEE431_00067
E76: ED_FEE431_00068
E77: ED_FEE431_00069
E78: ED_FEE431_00070
E79: ED_FEE431_00071
E80: ED_FEE431_00072
E81: ED_FEE431_00073
E82: ED_FEE431_00074
E83: ED_FEE431_00075
E84: ED_FEE431_00076
E85: ED_FEE431_00077
E86: ED_FEE431_00078
E87: ED_FEE431_00079
E88: ED_FEE431_00080
E89: ED_FEE431_00081
E90: ED_FEE431_00082
E91: ED_FEE431_00083
E92: ED_FEE431_00084
E93: ED_FEE431_00085
E94: ED_FEE431_00086
E95: ED_FEE431_00087
E96: ED_FEE431_00088
E97: ED_FEE431_00089
E98: ED_FEE431_00090
E99: ED_FEE431_00091
E100: ED_FEE431_00092
E101: ED_FEE431_00093
E102: ED_FEE431_00094
E103: ED_FEE431_00095
E104: ED_FEE431_00096
E105: ED_FEE431_00097
E106: ED_FEE431_00098
E107: ED_FEE431_00099
E108: ED_FEE431_00100
E109: ED_FEE431_00101
E110: ED_FEE431_00102
E111: ED_FEE431_00103
E112: ED_FEE431_00104
E113: ED_FEE431_00105
E114: ED_FEE431_00106
E115: ED_FEE431_00107
E116: ED_FEE431_00108
E117: ED_FEE431_00109
E118: ED_FEE431_00110
E119: ED_FEE431_00111
E120: ED_FEE431_00112
E121: ED_FEE431_00113
E122: ED_FEE431_00114
E123: ED_FEE431_00115
E124: ED_FEE431_00116
E125: ED_FEE431_00117
E126: ED_FEE431_00118
E127: ED_FEE431_00119
E128: ED_FEE431_00120
E129: ED_FEE431_00121
E130: ED_FEE431_00122
E131: ED_FEE431_00123
E132: ED_FEE431_00124
E133: ED_FEE431_00125
E134: ED_FEE431_00126
E135: ED_FEE431_00127
E136: ED_FEE431_00128
E137: ED_FEE431_00129
E138: ED_FEE431_00130
E139: ED_FEE431_00131
E140: ED_FEE431_00132
E141: ED_FEE431_00133
E142: ED_FEE431_00134
E143: ED_FEE431_00135
E144: ED_FEE431_00136
E145: ED_FEE431_00137
E146: ED_FEE431_00138
E147: ED_FEE431_00139
E148: ED_FEE431_00140
E149: ED_FEE431_00141
E150: ED_FEE431_00142
E151: ED_FEE431_00143
E152: ED_FEE431_00144
E153: ED_FEE431_00145
E154: ED_FEE431_00146
E155: ED_FEE431_00147
E156: ED_FEE431_00148
E157: ED_FEE431_00149
E158: ED_FEE431_00150
E159: ED_FEE431_00151
E160: ED_FEE431_00152
E161: ED_FEE431_00153
E162: ED_FEE431_00154
E163: ED_FEE431_00155
E164: ED_FEE431_00156
E165: ED_FEE431_00157
E166: ED_FEE431_00158
E167: ED_FEE431_00159
E168: ED_FEE431_00160
E169: ED_FEE431_00161
E170: ED_FEE431_00162
E171: ED_FEE431_00163
E172: ED_FEE431_00164
E173: ED_FEE431_00165
E174: ED_FEE431_00166
E175: ED_FEE431_00167
E176: ED_FEE431_00168
E177: ED_FEE431_00169
E178: ED_FEE431_00170
E179: ED_FEE431_00171
E180: ED_FEE431_00172
E181: ED_FEE431_00173
E182: ED_FEE431_00174
E183: ED_FEE431_00175
E184: ED_FEE431_00176
E185: ED_FEE431_00177
E186: ED_FEE431_00178
E187: ED_FEE431_00179
E188: ED_FEE431_00180
E189: ED_FEE431_00181
E190: ED_FEE431_00182
E191: ED_FEE431_00183
E192: ED_FEE431_00184
E193: ED_FEE431_00185
E194: ED_FEE431_00186
E195: ED_FEE431_00187
E196: ED_FEE431_00188
E197: ED_FEE431_00189
E198: ED_FEE431_00190
E199: ED_FEE431_00191
E200: ED_FEE431_00192
E201: ED_FEE431_00193
... 278 more rows

Sheet 4.4 Quoted services
B1: REGULATORY REPORTING STATEMENT
B2: =INDEX(dms_TradingNameFull_List,MATCH(dms_TradingName,dms_TradingName_List)) -> Energex
B3: =CONCATENATE((LOOKUP(dms_Model,dms_Model_List,dms_Worksheet_List))&" "&CRY) -> CATEGORY ANALYSIS 2016-17
B4: 4.4 ANCILLARY SERVICES - QUOTED SERVICES
B6: 4.4.1 - COST METRICS FOR QUOTED SERVICES
D7: EXPENDITURE ($0's) | F7: VOLUMES (0's)
B8: SERVICE | C8: SERVICE SUBCATEGORY | D8: =CRY -> 2016-17 | F8: =CRY -> 2016-17
B9: Quoted Services | C9: Rearrangement of network assets | D9: 14602358.45 | E9: ED_QUO441_00001 | F9: 198
C10: Customer requested works (work close) | D10: 377705.06 | E10: ED_QUO441_00002 | F10: 256
C11: Non-standard data and meter services | D11: 0 | E11: ED_QUO441_00003 | F11: 0
C12: Large customer connections | D12: 5192746.26 | E12: ED_QUO441_00005 | F12: 182
C13: Unmetered services, inc Streetlighting | D13: 148019.04 | E13: ED_QUO441_00007 | F13: 35
C14: Temp connections - complex | D14: 460217.58 | E14: ED_QUO441_00011 | F14: 14
C15: Loss of asset | D15: 352803.37 | E15: ED_QUO441_00012 | F15: 127
C16: Other recoverable works | D16: 3409.74 | E16: ED_QUO441_00014 | F16: 2
C17: Recoverable Streetlighting Construction | D17: 616910.66 | E17: ED_QUO441_00015 | F17: 27
C18: Unique glare shields / luminaires | D18: 22884.45 | E18: ED_QUO441_00016 | F18: 2
C19: Real Estate development inc design spec & audit | D19: 2729626.32 | E19: ED_QUO441_00017 | F19: 392
C20: Parallel generator assessment | D20: 190280.92 | E20: ED_QUO441_00019 | F20: 17
E21: ED_QUO441_00013
E22: ED_QUO441_00014
E23: ED_QUO441_00015
E24: ED_QUO441_00016
E25: ED_QUO441_00017
E26: ED_QUO441_00018
E27: ED_QUO441_00019
E28: ED_QUO441_00020
E29: ED_QUO441_00021
E30: ED_QUO441_00022
E31: ED_QUO441_00023
E32: ED_QUO441_00024
E33: ED_QUO441_00025
E34: ED_QUO441_00026
E35: ED_QUO441_00027
E36: ED_QUO441_00028
E37: ED_QUO441_00029
E38: ED_QUO441_00030
E39: ED_QUO441_00031
E40: ED_QUO441_00032
E41: ED_QUO441_00033
E42: ED_QUO441_00034
E43: ED_QUO441_00035
E44: ED_QUO441_00036
E45: ED_QUO441_00037
E46: ED_QUO441_00038
E47: ED_QUO441_00039
E48: ED_QUO441_00040
E49: ED_QUO441_00041
E50: ED_QUO441_00042
E51: ED_QUO441_00043
E52: ED_QUO441_00044
E53: ED_QUO441_00045
E54: ED_QUO441_00046
E55: ED_QUO441_00047
E56: ED_QUO441_00048
E57: ED_QUO441_00049
E58: ED_QUO441_00050
E59: ED_QUO441_00051
E60: ED_QUO441_00052
E61: ED_QUO441_00053
E62: ED_QUO441_00054
E63: ED_QUO441_00055
E64: ED_QUO441_00056
E65: ED_QUO441_00057
E66: ED_QUO441_00058
E67: ED_QUO441_00059
E68: ED_QUO441_00060
E69: ED_QUO441_00061
E70: ED_QUO441_00062
E71: ED_QUO441_00063
E72: ED_QUO441_00064
E73: ED_QUO441_00065
E74: ED_QUO441_00066
E75: ED_QUO441_00067
E76: ED_QUO441_00068
E77: ED_QUO441_00069
E78: ED_QUO441_00070
E79: ED_QUO441_00071
E80: ED_QUO441_00072
E81: ED_QUO441_00073
E82: ED_QUO441_00074
E83: ED_QUO441_00075
E84: ED_QUO441_00076
E85: ED_QUO441_00077
E86: ED_QUO441_00078
E87: ED_QUO441_00079
E88: ED_QUO441_00080
E89: ED_QUO441_00081
E90: ED_QUO441_00082
E91: ED_QUO441_00083
E92: ED_QUO441_00084
E93: ED_QUO441_00085
E94: ED_QUO441_00086
E95: ED_QUO441_00087
E96: ED_QUO441_00088
E97: ED_QUO441_00089
E98: ED_QUO441_00090
E99: ED_QUO441_00091
E100: ED_QUO441_00092
E101: ED_QUO441_00093
E102: ED_QUO441_00094
E103: ED_QUO441_00095
E104: ED_QUO441_00096
E105: ED_QUO441_00097
E106: ED_QUO441_00098
E107: ED_QUO441_00099
E108: ED_QUO441_00100
E109: ED_QUO441_00101
E110: ED_QUO441_00102
E111: ED_QUO441_00103
E112: ED_QUO441_00104
E113: ED_QUO441_00105
E114: ED_QUO441_00106
E115: ED_QUO441_00107
E116: ED_QUO441_00108
E117: ED_QUO441_00109
E118: ED_QUO441_00110
E119: ED_QUO441_00111
E120: ED_QUO441_00112
E121: ED_QUO441_00113
E122: ED_QUO441_00114
E123: ED_QUO441_00115
E124: ED_QUO441_00116
E125: ED_QUO441_00117
E126: ED_QUO441_00118
E127: ED_QUO441_00119
E128: ED_QUO441_00120
E129: ED_QUO441_00121
E130: ED_QUO441_00122
E131: ED_QUO441_00123
E132: ED_QUO441_00124
E133: ED_QUO441_00125
E134: ED_QUO441_00126
E135: ED_QUO441_00127
E136: ED_QUO441_00128
E137: ED_QUO441_00129
E138: ED_QUO441_00130
E139: ED_QUO441_00131
E140: ED_QUO441_00132
E141: ED_QUO441_00133
E142: ED_QUO441_00134
E143: ED_QUO441_00135
E144: ED_QUO441_00136
E145: ED_QUO441_00137
E146: ED_QUO441_00138
E147: ED_QUO441_00139
E148: ED_QUO441_00140
E149: ED_QUO441_00141
E150: ED_QUO441_00142
E151: ED_QUO441_00143
E152: ED_QUO441_00144
E153: ED_QUO441_00145
E154: ED_QUO441_00146
E155: ED_QUO441_00147
E156: ED_QUO441_00148
E157: ED_QUO441_00149
E158: ED_QUO441_00150
E159: ED_QUO441_00151
E160: ED_QUO441_00152
E161: ED_QUO441_00153
E162: ED_QUO441_00154
E163: ED_QUO441_00155
E164: ED_QUO441_00156
E165: ED_QUO441_00157
E166: ED_QUO441_00158
E167: ED_QUO441_00159
E168: ED_QUO441_00160
E169: ED_QUO441_00161
E170: ED_QUO441_00162
E171: ED_QUO441_00163
E172: ED_QUO441_00164
E173: ED_QUO441_00165
E174: ED_QUO441_00166
E175: ED_QUO441_00167
E176: ED_QUO441_00168
E177: ED_QUO441_00169
E178: ED_QUO441_00170
E179: ED_QUO441_00171
E180: ED_QUO441_00172
E181: ED_QUO441_00173
E182: ED_QUO441_00174
E183: ED_QUO441_00175
E184: ED_QUO441_00176
E185: ED_QUO441_00177
E186: ED_QUO441_00178
E187: ED_QUO441_00179
E188: ED_QUO441_00180
E189: ED_QUO441_00181
E190: ED_QUO441_00182
E191: ED_QUO441_00183
E192: ED_QUO441_00184
E193: ED_QUO441_00185
E194: ED_QUO441_00186
E195: ED_QUO441_00187
E196: ED_QUO441_00188
E197: ED_QUO441_00189
E198: ED_QUO441_00190
E199: ED_QUO441_00191
E200: ED_QUO441_00192
E201: ED_QUO441_00193
... 280 more rows

Sheet 5.2 Asset Age Profile
B1: REGULATORY REPORTING STATEMENT
B2: =INDEX(dms_TradingNameFull_List,MATCH(dms_TradingName,dms_TradingName_List)) -> Energex
B3: =CONCATENATE((LOOKUP(dms_Model,dms_Model_List,dms_Worksheet_List))&" "&CRY) -> CATEGORY ANALYSIS 2016-17
B4: 5.2 ASSET AGE PROFILE
B6: There is ONE table on this worksheet. Both the ROWS and COLUMNS have been 'grouped' for easy navigation. See the Instructions sheet on how to group or ungroup data.
B8: 5.2.1 - ASSET AGE PROFILE
D9: ECONOMIC LIFE (YEARS) | F9: INSTALLED ASSETS -˃ QUANTITY CURRENTLY IN COMMISSION BY YEAR
B10: ASSET GROUP | C10: ASSET CATEGORY | D10: MEAN | E10: STANDARD DEVIATION | F10: =CRY -> 2016-17 | G10: =IF(dms_RPT="financial",(VALUE(LEFT(F10,4)-1)&"-"&MID(F10,3,2)),VALUE(LEFT(F10,4)-1)) -> 2015-16 | H10: =IF(dms_RPT="financial",(VALUE(LEFT(G10,4)-1)&"-"&MID(G10,3,2)),VALUE(LEFT(G10,4)-1)) -> 2014-15 | I10: 2013-14 | J10: 2012-13 | K10: 2011-12 | L10: 2010-11 | M10: 2009-10 | N10: 2008-09 | O10: 2007-08 | P10: 2006-07 | Q10: 2005-06 | R10: 2004-05 | S10: 2003-04 | T10: 2002-03 | U10: 2001-02 | V10: 2000-01 | W10: 1999-00 | X10: 1998-99 | Y10: 1997-98 | Z10: 1996-97 | AA10: 1995-96 | AB10: 1994-95 | AC10: 1993-94 | AD10: 1992-93 | AE10: 1991-92 | AF10: 1990-91 | AG10: 1989-90 | AH10: 1988-89 | AI10: 1987-88 | AJ10: 1986-87 | AK10: 1985-86 | AL10: 1984-85 | AM10: =IF(dms_RPT="financial",(VALUE(LEFT(AL10,4)-1)&"-"&MID(AL10,3,2)),VALUE(LEFT(AL10,4)-1)) -> 1983-84 | AN10: 1982-83 | AO10: 1981-82 | AP10: 1980-81 | AQ10: 1979-80 | AR10: 1978-79 | AS10: 1977-78 | AT10: 1976-77 | AU10: 1975-76 | AV10: 1974-75 | AW10: 1973-74 | AX10: 1972-73 | AY10: 1971-72 | AZ10: 1970-71 | BA10: 1969-70 | BB10: 1968-69 | BC10: 1967-68 | BD10: 1966-67 | BE10: 1965-66 | BF10: 1964-65 | BG10: 1963-64 | BH10: 1962-63 | BI10: 1961-62 | BJ10: 1960-61 | BK10: 1959-60 | BL10: 1958-59 | BM10: 1957-58 | BN10: 1956-57 | BO10: 1955-56 | BP10: 1954-55 | BQ10: 1953-54 | BR10: 1952-53 | BS10: =IF(dms_RPT="financial",(VALUE(LEFT(BR10,4)-1)&"-"&MID(BR10,3,2)),VALUE(LEFT(BR10,4)-1)) -> 1951-52 | BT10: 1950-51 | BU10: 1949-50 | BV10: 1948-49 | BW10: 1947-48 | BX10: 1946-47 | BY10: 1945-46 | BZ10: 1944-45 | CA10: 1943-44 | CB10: 1942-43 | CC10: 1941-42 | CD10: 1940-41 | CE10: 1939-40 | CF10: 1938-39 | CG10: 1937-38 | CH10: 1936-37 | CI10: 1935-36 | CJ10: 1934-35 | CK10: 1933-34 | CL10: 1932-33 | CM10: 1931-32 | CN10: 1930-31 | CO10: 1929-30 | CP10: 1928-29 | CQ10: 1927-28 | CR10: 1926-27 | CS10: 1925-26 | CT10: 1924-25 | CU10: 1923-24 | CV10: 1922-23 | CW10: 1921-22 | CX10: 1920-21 | CY10: =IF(dms_RPT="financial",(VALUE(LEFT(CX10,4)-1)&"-"&MID(CX10,3,2)),VALUE(LEFT(CX10,4)-1)) -> 1919-20 | CZ10: 1918-19 | DA10: 1917-18 | DB10: 1916-17 | DC10: 1915-16 | DD10: 1914-15 | DE10: 1913-14 | DF10: 1912-13 | DG10: 1911-12 | DH10: 1910-11
B11: POLES BY: HIGHEST OPERATING VOLTAGE ; MATERIAL TYPE; STAKING (IF WOOD) | C11: Staking of a wooden pole | D11: 15 | E11: 3.87 | F11: 1356 | G11: 1168 | H11: 1083 | I11: 1514 | J11: 1560 | K11: 1375 | L11: 779 | M11: 1296 | N11: 3029 | O11: 3366 | P11: 2399 | Q11: 2573 | R11: 2789 | S11: 1459 | T11: 1893 | U11: 1698 | V11: 1670 | W11: 2270 | X11: 1006 | Y11: 8 | Z11: 11 | AA11: 0 | AB11: 0 | AC11: 0 | AD11: 0 | AE11: 0 | AF11: 0 | AG11: 0 | AH11: 0 | AI11: 0 | AJ11: 0 | AK11: 0 | AL11: 0 | AM11: 0 | AN11: 0 | AO11: 0 | AP11: 0 | AQ11: 0 | AR11: 0 | AS11: 0 | AT11: 0 | AU11: 0 | AV11: 0 | AW11: 0 | AX11: 0 | AY11: 0 | AZ11: 0 | BA11: 0 | BB11: 0 | BC11: 0 | BD11: 0 | BE11: 0 | BF11: 0 | BG11: 0 | BH11: 0 | BI11: 0 | BJ11: 0 | BK11: 0 | BL11: 0 | BM11: 0 | BN11: 0 | BO11: 0 | BP11: 0 | BQ11: 0 | BR11: 0 | BS11: 0 | BT11: 0 | BU11: 0 | BV11: 0 | BW11: 0 | BX11: 0 | BY11: 0 | BZ11: 0 | CA11: 0 | CB11: 0 | CC11: 0 | CD11: 0 | CE11: 0 | CF11: 0 | CG11: 0 | CH11: 0 | CI11: 0 | CJ11: 0 | CK11: 0 | CL11: 0 | CM11: 0 | CN11: 0 | CO11: 0 | CP11: 0 | CQ11: 0 | CR11: 0 | CS11: 0 | CT11: 0 | CU11: 0
C12: ˂ = 1 kV; Wood | D12: 49 | E12: 7 | F12: 4094 | G12: 4336 | H12: 3116 | I12: 3271 | J12: 3236 | K12: 3389 | L12: 2713 | M12: 2996 | N12: 3207 | O12: 2632 | P12: 2272 | Q12: 2534 | R12: 1693 | S12: 1633 | T12: 1686 | U12: 1900 | V12: 1795 | W12: 2359 | X12: 2184 | Y12: 2457 | Z12: 2917 | AA12: 3018 | AB12: 3782 | AC12: 3919 | AD12: 4542 | AE12: 4144 | AF12: 4526 | AG12: 4921 | AH12: 4874 | AI12: 3770 | AJ12: 3926 | AK12: 4994 | AL12: 4661 | AM12: 5157 | AN12: 4733 | AO12: 3695 | AP12: 3495 | AQ12: 3277 | AR12: 3265 | AS12: 3616 | AT12: 3577 | AU12: 3511 | AV12: 2896 | AW12: 3045 | AX12: 3254 | AY12: 2850 | AZ12: 2681 | BA12: 2625 | BB12: 2080 | BC12: 1919 | BD12: 1786 | BE12: 1695 | BF12: 1395 | BG12: 1022 | BH12: 663 | BI12: 520 | BJ12: 506 | BK12: 395 | BL12: 387 | BM12: 289 | BN12: 250 | BO12: 245 | BP12: 272 | BQ12: 276 | BR12: 242 | BS12: 229 | BT12: 162 | BU12: 155 | BV12: 179 | BW12: 145 | BX12: 124 | BY12: 106 | BZ12: 42 | CA12: 15 | CB12: 30 | CC12: 56 | CD12: 69 | CE12: 89 | CF12: 114 | CG12: 69 | CH12: 89 | CI12: 88 | CJ12: 107 | CK12: 40 | CL12: 22 | CM12: 33 | CN12: 4 | CO12: 12 | CP12: 5 | CQ12: 7 | CR12: 4 | CS12: 8 | CT12: 2 | CU12: 2
C13: > 1 kV & < = 11 kV; Wood | D13: 46.5 | E13: 6.82 | F13: 4515 | G13: 4697 | H13: 5191 | I13: 5345 | J13: 5198 | K13: 5725 | L13: 4720 | M13: 4935 | N13: 4503 | O13: 3644 | P13: 3661 | Q13: 2859 | R13: 2533 | S13: 1874 | T13: 1504 | U13: 2440 | V13: 2344 | W13: 2623 | X13: 2381 | Y13: 2659 | Z13: 2987 | AA13: 3154 | AB13: 3771 | AC13: 3594 | AD13: 4023 | AE13: 4305 | AF13: 4804 | AG13: 5209 | AH13: 4865 | AI13: 4263 | AJ13: 4414 | AK13: 5754 | AL13: 4650 | AM13: 5616 | AN13: 5472 | AO13: 4463 | AP13: 4206 | AQ13: 3850 | AR13: 3642 | AS13: 3769 | AT13: 3246 | AU13: 3182 | AV13: 3064 | AW13: 2866 | AX13: 2727 | AY13: 2596 | AZ13: 2546 | BA13: 2432 | BB13: 1950 | BC13: 1816 | BD13: 1602 | BE13: 1536 | BF13: 1568 | BG13: 1155 | BH13: 737 | BI13: 512 | BJ13: 632 | BK13: 535 | BL13: 541 | BM13: 437 | BN13: 533 | BO13: 396 | BP13: 347 | BQ13: 510 | BR13: 410 | BS13: 252 | BT13: 211 | BU13: 139 | BV13: 159 | BW13: 173 | BX13: 162 | BY13: 178 | BZ13: 24 | CA13: 34 | CB13: 34 | CC13: 47 | CD13: 60 | CE13: 178 | CF13: 140 | CG13: 67 | CH13: 135 | CI13: 57 | CJ13: 57 | CK13: 123 | CL13: 27 | CM13: 67 | CN13: 8 | CO13: 6 | CP13: 3 | CQ13: 5 | CR13: 0 | CS13: 4 | CT13: 2 | CU13: 0
C14: ˃ 11 kV & < = 22 kV; Wood | D14: 46.5 | E14: 6.82 | F14: 0 | G14: 0 | H14: 0 | I14: 2 | J14: 0 | K14: 3 | L14: 0 | M14: 0 | N14: 4 | O14: 0 | P14: 8 | Q14: 9 | R14: 0 | S14: 7 | T14: 0 | U14: 0 | V14: 8 | W14: 2 | X14: 0 | Y14: 0 | Z14: 1 | AA14: 2 | AB14: 0 | AC14: 0 | AD14: 96 | AE14: 17 | AF14: 0 | AG14: 0 | AH14: 0 | AI14: 0 | AJ14: 0 | AK14: 0 | AL14: 0 | AM14: 0 | AN14: 1 | AO14: 0 | AP14: 0 | AQ14: 0 | AR14: 0 | AS14: 0 | AT14: 0 | AU14: 0 | AV14: 0 | AW14: 0 | AX14: 0 | AY14: 0 | AZ14: 0 | BA14: 0 | BB14: 0 | BC14: 0 | BD14: 0 | BE14: 0 | BF14: 0 | BG14: 0 | BH14: 0 | BI14: 0 | BJ14: 0 | BK14: 0 | BL14: 0 | BM14: 0 | BN14: 0 | BO14: 0 | BP14: 0 | BQ14: 0 | BR14: 0 | BS14: 0 | BT14: 0 | BU14: 0 | BV14: 0 | BW14: 0 | BX14: 0 | BY14: 0 | BZ14: 0 | CA14: 0 | CB14: 0 | CC14: 0 | CD14: 0 | CE14: 0 | CF14: 0 | CG14: 0 | CH14: 0 | CI14: 0 | CJ14: 0 | CK14: 0 | CL14: 0 | CM14: 0 | CN14: 0 | CO14: 0 | CP14: 0 | CQ14: 0 | CR14: 0 | CS14: 0 | CT14: 0 | CU14: 0
C15: > 22 kV & < = 66 kV; Wood | D15: 48.5 | E15: 6.96 | F15: 403 | G15: 396 | H15: 555 | I15: 635 | J15: 1422 | K15: 1345 | L15: 942 | M15: 857 | N15: 564 | O15: 650 | P15: 471 | Q15: 560 | R15: 253 | S15: 355 | T15: 360 | U15: 357 | V15: 570 | W15: 306 | X15: 304 | Y15: 307 | Z15: 339 | AA15: 336 | AB15: 274 | AC15: 269 | AD15: 188 | AE15: 251 | AF15: 277 | AG15: 302 | AH15: 239 | AI15: 460 | AJ15: 315 | AK15: 399 | AL15: 289 | AM15: 333 | AN15: 277 | AO15: 256 | AP15: 221 | AQ15: 446 | AR15: 448 | AS15: 707 | AT15: 703 | AU15: 560 | AV15: 591 | AW15: 474 | AX15: 263 | AY15: 355 | AZ15: 303 | BA15: 408 | BB15: 333 | BC15: 143 | BD15: 365 | BE15: 225 | BF15: 289 | BG15: 106 | BH15: 54 | BI15: 42 | BJ15: 63 | BK15: 85 | BL15: 68 | BM15: 112 | BN15: 97 | BO15: 25 | BP15: 15 | BQ15: 45 | BR15: 22 | BS15: 28 | BT15: 46 | BU15: 26 | BV15: 41 | BW15: 15 | BX15: 25 | BY15: 65 | BZ15: 0 | CA15: 0 | CB15: 14 | CC15: 24 | CD15: 52 | CE15: 53 | CF15: 13 | CG15: 23 | CH15: 41 | CI15: 19 | CJ15: 4 | CK15: 1 | CL15: 0 | CM15: 4 | CN15: 1 | CO15: 0 | CP15: 14 | CQ15: 0 | CR15: 0 | CS15: 0 | CT15: 0 | CU15: 0
C16: > 66 kV & < = 132 kV; Wood | D16: 55 | E16: 7.42 | F16: 61 | G16: 78 | H16: 22 | I16: 72 | J16: 19 | K16: 16 | L16: 67 | M16: 45 | N16: 11 | O16: 19 | P16: 213 | Q16: 202 | R16: 28 | S16: 8 | T16: 8 | U16: 104 | V16: 285 | W16: 289 | X16: 38 | Y16: 47 | Z16: 7 | AA16: 14 | AB16: 0 | AC16: 0 | AD16: 12 | AE16: 8 | AF16: 30 | AG16: 1 | AH16: 3 | AI16: 5 | AJ16: 9 | AK16: 15 | AL16: 0 | AM16: 15 | AN16: 5 | AO16: 2 | AP16: 0 | AQ16: 34 | AR16: 41 | AS16: 0 | AT16: 2 | AU16: 1 | AV16: 0 | AW16: 0 | AX16: 0 | AY16: 2 | AZ16: 0 | BA16: 0 | BB16: 1 | BC16: 0 | BD16: 1 | BE16: 33 | BF16: 0 | BG16: 0 | BH16: 0 | BI16: 0 | BJ16: 0 | BK16: 0 | BL16: 0 | BM16: 0 | BN16: 0 | BO16: 0 | BP16: 0 | BQ16: 0 | BR16: 0 | BS16: 0 | BT16: 1 | BU16: 0 | BV16: 0 | BW16: 0 | BX16: 0 | BY16: 0 | BZ16: 0 | CA16: 0 | CB16: 1 | CC16: 0 | CD16: 0 | CE16: 0 | CF16: 0 | CG16: 0 | CH16: 0 | CI16: 0 | CJ16: 0 | CK16: 0 | CL16: 0 | CM16: 0 | CN16: 0 | CO16: 0 | CP16: 0 | CQ16: 0 | CR16: 0 | CS16: 0 | CT16: 0 | CU16: 0
C17: > 132 kV; Wood
C18: ˂ = 1 kV; Concrete | D18: 55 | E18: 7.42 | F18: 4 | G18: 2 | H18: 4 | I18: 2 | J18: 7 | K18: 2 | L18: 2 | M18: 0 | N18: 7 | O18: 80 | P18: 19 | Q18: 20 | R18: 11 | S18: 9 | T18: 18 | U18: 51 | V18: 24 | W18: 36 | X18: 36 | Y18: 59 | Z18: 79 | AA18: 112 | AB18: 373 | AC18: 176 | AD18: 57 | AE18: 6 | AF18: 18 | AG18: 62 | AH18: 30 | AI18: 21 | AJ18: 72 | AK18: 71 | AL18: 46 | AM18: 43 | AN18: 48 | AO18: 26 | AP18: 41 | AQ18: 79 | AR18: 87 | AS18: 85 | AT18: 30 | AU18: 34 | AV18: 43 | AW18: 76 | AX18: 159 | AY18: 53 | AZ18: 38 | BA18: 38 | BB18: 22 | BC18: 11 | BD18: 26 | BE18: 9 | BF18: 7 | BG18: 7 | BH18: 3 | BI18: 32 | BJ18: 2 | BK18: 21 | BL18: 2 | BM18: 5 | BN18: 0 | BO18: 0 | BP18: 0 | BQ18: 0 | BR18: 2 | BS18: 1 | BT18: 0 | BU18: 0 | BV18: 0 | BW18: 0 | BX18: 0 | BY18: 0 | BZ18: 0 | CA18: 0 | CB18: 0 | CC18: 1 | CD18: 0 | CE18: 0 | CF18: 1 | CG18: 0 | CH18: 0 | CI18: 1 | CJ18: 0 | CK18: 0 | CL18: 0 | CM18: 0 | CN18: 0 | CO18: 0 | CP18: 0 | CQ18: 0 | CR18: 0 | CS18: 0 | CT18: 0 | CU18: 0
C19: > 1 kV & < = 11 kV; Concrete | D19: 55 | E19: 7.42 | F19: 196 | G19: 159 | H19: 133 | I19: 159 | J19: 210 | K19: 216 | L19: 186 | M19: 217 | N19: 240 | O19: 322 | P19: 324 | Q19: 341 | R19: 397 | S19: 101 | T19: 61 | U19: 42 | V19: 43 | W19: 86 | X19: 51 | Y19: 42 | Z19: 39 | AA19: 56 | AB19: 81 | AC19: 94 | AD19: 103 | AE19: 68 | AF19: 53 | AG19: 47 | AH19: 52 | AI19: 57 | AJ19: 281 | AK19: 347 | AL19: 189 | AM19: 40 | AN19: 26 | AO19: 24 | AP19: 34 | AQ19: 17 | AR19: 13 | AS19: 18 | AT19: 23 | AU19: 17 | AV19: 22 | AW19: 38 | AX19: 47 | AY19: 51 | AZ19: 88 | BA19: 102 | BB19: 62 | BC19: 57 | BD19: 62 | BE19: 33 | BF19: 43 | BG19: 19 | BH19: 1 | BI19: 1 | BJ19: 1 | BK19: 1 | BL19: 0 | BM19: 0 | BN19: 1 | BO19: 0 | BP19: 2 | BQ19: 0 | BR19: 1 | BS19: 0 | BT19: 0 | BU19: 1 | BV19: 0 | BW19: 0 | BX19: 0 | BY19: 0 | BZ19: 0 | CA19: 0 | CB19: 0 | CC19: 0 | CD19: 0 | CE19: 0 | CF19: 1 | CG19: 0 | CH19: 1 | CI19: 0 | CJ19: 0 | CK19: 1 | CL19: 0 | CM19: 1 | CN19: 0 | CO19: 1 | CP19: 0 | CQ19: 0 | CR19: 0 | CS19: 0 | CT19: 0 | CU19: 0
C20: ˃ 11 kV & < = 22 kV; Concrete
C21: > 22 kV & < = 66 kV; Concrete | D21: 55 | E21: 7.42 | F21: 3 | G21: 9 | H21: 23 | I21: 36 | J21: 7 | K21: 13 | L21: 10 | M21: 27 | N21: 2 | O21: 4 | P21: 6 | Q21: 22 | R21: 0 | S21: 1 | T21: 10 | U21: 0 | V21: 67 | W21: 22 | X21: 53 | Y21: 0 | Z21: 6 | AA21: 4 | AB21: 34 | AC21: 19 | AD21: 4 | AE21: 3 | AF21: 2 | AG21: 18 | AH21: 93 | AI21: 22 | AJ21: 20 | AK21: 36 | AL21: 0 | AM21: 0 | AN21: 2 | AO21: 0 | AP21: 150 | AQ21: 0 | AR21: 0 | AS21: 0 | AT21: 1 | AU21: 0 | AV21: 0 | AW21: 0 | AX21: 0 | AY21: 0 | AZ21: 0 | BA21: 0 | BB21: 0 | BC21: 1 | BD21: 0 | BE21: 0 | BF21: 0 | BG21: 0 | BH21: 0 | BI21: 0 | BJ21: 0 | BK21: 0 | BL21: 1 | BM21: 0 | BN21: 0 | BO21: 0 | BP21: 0 | BQ21: 0 | BR21: 0 | BS21: 0 | BT21: 0 | BU21: 0 | BV21: 0 | BW21: 0 | BX21: 0 | BY21: 0 | BZ21: 0 | CA21: 0 | CB21: 0 | CC21: 0 | CD21: 0 | CE21: 0 | CF21: 0 | CG21: 0 | CH21: 0 | CI21: 0 | CJ21: 0 | CK21: 0 | CL21: 0 | CM21: 0 | CN21: 0 | CO21: 0 | CP21: 0 | CQ21: 0 | CR21: 0 | CS21: 0 | CT21: 0 | CU21: 0
C22: > 66 kV & < = 132 kV; Concrete | D22: 55 | E22: 7.42 | F22: 49 | G22: 63 | H22: 28 | I22: 114 | J22: 7 | K22: 45 | L22: 27 | M22: 32 | N22: 5 | O22: 77 | P22: 105 | Q22: 31 | R22: 28 | S22: 2 | T22: 1 | U22: 98 | V22: 213 | W22: 37 | X22: 83 | Y22: 5 | Z22: 0 | AA22: 0 | AB22: 1 | AC22: 0 | AD22: 8 | AE22: 79 | AF22: 2 | AG22: 1 | AH22: 2 | AI22: 0 | AJ22: 102 | AK22: 1 | AL22: 24 | AM22: 2 | AN22: 181 | AO22: 39 | AP22: 0 | AQ22: 1 | AR22: 0 | AS22: 0 | AT22: 0 | AU22: 0 | AV22: 0 | AW22: 0 | AX22: 0 | AY22: 0 | AZ22: 0 | BA22: 0 | BB22: 0 | BC22: 0 | BD22: 0 | BE22: 0 | BF22: 0 | BG22: 0 | BH22: 0 | BI22: 0 | BJ22: 0 | BK22: 0 | BL22: 0 | BM22: 0 | BN22: 0 | BO22: 0 | BP22: 0 | BQ22: 0 | BR22: 0 | BS22: 0 | BT22: 0 | BU22: 0 | BV22: 0 | BW22: 0 | BX22: 0 | BY22: 0 | BZ22: 0 | CA22: 0 | CB22: 0 | CC22: 0 | CD22: 0 | CE22: 0 | CF22: 0 | CG22: 0 | CH22: 0 | CI22: 0 | CJ22: 0 | CK22: 0 | CL22: 0 | CM22: 0 | CN22: 0 | CO22: 0 | CP22: 0 | CQ22: 0 | CR22: 0 | CS22: 0 | CT22: 0 | CU22: 0
C23: > 132 kV; Concrete
C24: ˂ = 1 kV; Steel | D24: 78 | E24: 8.83 | F24: 0 | G24: 0 | H24: 0 | I24: 204 | J24: 12 | K24: 54 | L24: 7 | M24: 0 | N24: 5 | O24: 1 | P24: 8 | Q24: 1 | R24: 0 | S24: 1 | T24: 5 | U24: 6 | V24: 16 | W24: 0 | X24: 551 | Y24: 0 | Z24: 0 | AA24: 0 | AB24: 0 | AC24: 0 | AD24: 9 | AE24: 0 | AF24: 0 | AG24: 0 | AH24: 0 | AI24: 0 | AJ24: 0 | AK24: 0 | AL24: 0 | AM24: 0 | AN24: 0 | AO24: 0 | AP24: 0 | AQ24: 1 | AR24: 0 | AS24: 0 | AT24: 0 | AU24: 0 | AV24: 0 | AW24: 0 | AX24: 0 | AY24: 0 | AZ24: 0 | BA24: 0 | BB24: 0 | BC24: 0 | BD24: 0 | BE24: 0 | BF24: 0 | BG24: 0 | BH24: 0 | BI24: 0 | BJ24: 0 | BK24: 0 | BL24: 0 | BM24: 0 | BN24: 0 | BO24: 0 | BP24: 0 | BQ24: 0 | BR24: 0 | BS24: 0 | BT24: 0 | BU24: 0 | BV24: 0 | BW24: 0 | BX24: 0 | BY24: 0 | BZ24: 0 | CA24: 0 | CB24: 0 | CC24: 0 | CD24: 0 | CE24: 0 | CF24: 0 | CG24: 0 | CH24: 0 | CI24: 0 | CJ24: 0 | CK24: 0 | CL24: 0 | CM24: 0 | CN24: 0 | CO24: 0 | CP24: 0 | CQ24: 0 | CR24: 0 | CS24: 0 | CT24: 0 | CU24: 0
C25: > 1 kV & < = 11 kV; Steel | D25: 78.5 | E25: 8.86 | F25: 0 | G25: 0 | H25: 0 | I25: 0 | J25: 0 | K25: 0 | L25: 0 | M25: 0 | N25: 0 | O25: 0 | P25: 3 | Q25: 1 | R25: 0 | S25: 0 | T25: 0 | U25: 1 | V25: 0 | W25: 2 | X25: 0 | Y25: 1 | Z25: 0 | AA25: 0 | AB25: 0 | AC25: 0 | AD25: 0 | AE25: 1 | AF25: 0 | AG25: 0 | AH25: 0 | AI25: 0 | AJ25: 0 | AK25: 0 | AL25: 0 | AM25: 0 | AN25: 0 | AO25: 1 | AP25: 0 | AQ25: 0 | AR25: 0 | AS25: 0 | AT25: 0 | AU25: 0 | AV25: 0 | AW25: 0 | AX25: 0 | AY25: 0 | AZ25: 0 | BA25: 0 | BB25: 1 | BC25: 0 | BD25: 0 | BE25: 0 | BF25: 0 | BG25: 0 | BH25: 0 | BI25: 0 | BJ25: 0 | BK25: 0 | BL25: 0 | BM25: 0 | BN25: 0 | BO25: 0 | BP25: 0 | BQ25: 0 | BR25: 0 | BS25: 0 | BT25: 0 | BU25: 0 | BV25: 0 | BW25: 1 | BX25: 0 | BY25: 0 | BZ25: 0 | CA25: 0 | CB25: 0 | CC25: 0 | CD25: 0 | CE25: 0 | CF25: 0 | CG25: 0 | CH25: 0 | CI25: 0 | CJ25: 0 | CK25: 0 | CL25: 0 | CM25: 0 | CN25: 0 | CO25: 0 | CP25: 0 | CQ25: 0 | CR25: 0 | CS25: 0 | CT25: 0 | CU25: 0
C26: ˃ 11 kV & < = 22 kV; Steel
C27: > 22 kV & < = 66 kV; Steel | D27: 76 | E27: 8.72 | F27: 0 | G27: 0 | H27: 0 | I27: 0 | J27: 0 | K27: 0 | L27: 0 | M27: 0 | N27: 0 | O27: 0 | P27: 0 | Q27: 0 | R27: 0 | S27: 0 | T27: 0 | U27: 0 | V27: 0 | W27: 0 | X27: 1 | Y27: 0 | Z27: 0 | AA27: 1 | AB27: 0 | AC27: 0 | AD27: 0 | AE27: 0 | AF27: 0 | AG27: 1 | AH27: 0 | AI27: 0 | AJ27: 1 | AK27: 0 | AL27: 0 | AM27: 0 | AN27: 0 | AO27: 0 | AP27: 0 | AQ27: 0 | AR27: 0 | AS27: 0 | AT27: 0 | AU27: 0 | AV27: 0 | AW27: 0 | AX27: 0 | AY27: 0 | AZ27: 0 | BA27: 0 | BB27: 0 | BC27: 0 | BD27: 0 | BE27: 0 | BF27: 0 | BG27: 0 | BH27: 0 | BI27: 0 | BJ27: 0 | BK27: 0 | BL27: 0 | BM27: 0 | BN27: 0 | BO27: 0 | BP27: 0 | BQ27: 0 | BR27: 0 | BS27: 0 | BT27: 0 | BU27: 0 | BV27: 0 | BW27: 0 | BX27: 0 | BY27: 0 | BZ27: 0 | CA27: 0 | CB27: 0 | CC27: 0 | CD27: 0 | CE27: 0 | CF27: 0 | CG27: 0 | CH27: 0 | CI27: 0 | CJ27: 0 | CK27: 0 | CL27: 0 | CM27: 0 | CN27: 0 | CO27: 0 | CP27: 0 | CQ27: 0 | CR27: 0 | CS27: 0 | CT27: 0 | CU27: 0
C28: > 66 kV & < = 132 kV; Steel | D28: 80 | E28: 8.94 | F28: 0 | G28: 0 | H28: 0 | I28: 0 | J28: 0 | K28: 0 | L28: 1 | M28: 1 | N28: 0 | O28: 0 | P28: 0 | Q28: 0 | R28: 0 | S28: 0 | T28: 0 | U28: 0 | V28: 0 | W28: 0 | X28: 0 | Y28: 0 | Z28: 0 | AA28: 0 | AB28: 0 | AC28: 0 | AD28: 0 | AE28: 0 | AF28: 0 | AG28: 0 | AH28: 0 | AI28: 0 | AJ28: 0 | AK28: 1 | AL28: 0 | AM28: 0 | AN28: 0 | AO28: 0 | AP28: 0 | AQ28: 0 | AR28: 0 | AS28: 0 | AT28: 0 | AU28: 0 | AV28: 0 | AW28: 0 | AX28: 0 | AY28: 0 | AZ28: 0 | BA28: 0 | BB28: 0 | BC28: 0 | BD28: 0 | BE28: 0 | BF28: 0 | BG28: 0 | BH28: 0 | BI28: 0 | BJ28: 0 | BK28: 0 | BL28: 0 | BM28: 0 | BN28: 0 | BO28: 0 | BP28: 0 | BQ28: 0 | BR28: 0 | BS28: 0 | BT28: 0 | BU28: 0 | BV28: 0 | BW28: 0 | BX28: 0 | BY28: 0 | BZ28: 0 | CA28: 0 | CB28: 0 | CC28: 0 | CD28: 0 | CE28: 0 | CF28: 0 | CG28: 0 | CH28: 0 | CI28: 0 | CJ28: 0 | CK28: 0 | CL28: 0 | CM28: 0 | CN28: 0 | CO28: 0 | CP28: 0 | CQ28: 0 | CR28: 0 | CS28: 0 | CT28: 0 | CU28: 0
C29: > 132 kV; Steel
C30: Other
B31: OVERHEAD CONDUCTORS BY: HIGHEST OPERATING VOLTAGE; NUMBER OF PHASES (AT HV) | C31: ˂ = 1 kV | D31: 60 | E31: 7.745966692 | F31: 34 | G31: 33 | H31: 44 | I31: 42 | J31: 62 | K31: 88 | L31: 59 | M31: 69 | N31: 67 | O31: 62 | P31: 62 | Q31: 68 | R31: 56 | S31: 49 | T31: 34 | U31: 44 | V31: 53 | W31: 73 | X31: 65 | Y31: 80 | Z31: 98 | AA31: 112 | AB31: 170 | AC31: 191 | AD31: 225 | AE31: 248 | AF31: 265 | AG31: 303 | AH31: 292 | AI31: 248 | AJ31: 294 | AK31: 384 | AL31: 364 | AM31: 424 | AN31: 481 | AO31: 367 | AP31: 366 | AQ31: 406 | AR31: 507 | AS31: 570 | AT31: 571 | AU31: 600 | AV31: 548 | AW31: 520 | AX31: 547 | AY31: 498 | AZ31: 518 | BA31: 497 | BB31: 185 | BC31: 206 | BD31: 190 | BE31: 202 | BF31: 197 | BG31: 148 | BH31: 97 | BI31: 87 | BJ31: 89 | BK31: 71 | BL31: 76 | BM31: 62 | BN31: 64 | BO31: 53 | BP31: 61 | BQ31: 51 | BR31: 65 | BS31: 54 | BT31: 52 | BU31: 42 | BV31: 48 | BW31: 42 | BX31: 31 | BY31: 29 | BZ31: 10 | CA31: 5 | CB31: 7 | CC31: 12 | CD31: 15 | CE31: 20 | CF31: 20 | CG31: 15 | CH31: 27 | CI31: 30 | CJ31: 25 | CK31: 24 | CL31: 13 | CM31: 14 | CN31: 3 | CO31: 2 | CP31: 0
C32: > 1 kV & < = 11 kV | D32: 60 | E32: 7.745966692 | F32: 47 | G32: 64 | H32: 64 | I32: 65 | J32: 110 | K32: 150 | L32: 121 | M32: 124 | N32: 122 | O32: 120 | P32: 138 | Q32: 124 | R32: 125 | S32: 89 | T32: 78 | U32: 93 | V32: 138 | W32: 115 | X32: 147 | Y32: 164 | Z32: 201 | AA32: 212 | AB32: 258 | AC32: 276 | AD32: 266 | AE32: 326 | AF32: 412 | AG32: 426 | AH32: 412 | AI32: 412 | AJ32: 433 | AK32: 523 | AL32: 474 | AM32: 533 | AN32: 612 | AO32: 570 | AP32: 561 | AQ32: 538 | AR32: 594 | AS32: 643 | AT32: 581 | AU32: 599 | AV32: 555 | AW32: 555 | AX32: 499 | AY32: 463 | AZ32: 496 | BA32: 492 | BB32: 117 | BC32: 135 | BD32: 141 | BE32: 139 | BF32: 168 | BG32: 133 | BH32: 88 | BI32: 76 | BJ32: 99 | BK32: 73 | BL32: 88 | BM32: 89 | BN32: 134 | BO32: 80 | BP32: 73 | BQ32: 110 | BR32: 98 | BS32: 66 | BT32: 65 | BU32: 39 | BV32: 37 | BW32: 58 | BX32: 48 | BY32: 43 | BZ32: 8 | CA32: 6 | CB32: 11 | CC32: 13 | CD32: 28 | CE32: 59 | CF32: 40 | CG32: 19 | CH32: 25 | CI32: 20 | CJ32: 11 | CK32: 27 | CL32: 6 | CM32: 21 | CN32: 2 | CO32: 0 | CP32: 0
C33: ˃ 11 kV & < = 22 kV ; SWER | D33: 60 | E33: 7.745966692 | F33: 0 | G33: 0 | H33: 0 | I33: 0 | J33: 0 | K33: 0 | L33: 0 | M33: 0 | N33: 0 | O33: 0 | P33: 2 | Q33: 0 | R33: 0 | S33: 0 | T33: 0 | U33: 0 | V33: 1 | W33: 0 | X33: 0 | Y33: 0 | Z33: 0 | AA33: 0 | AB33: 0 | AC33: 0 | AD33: 13 | AE33: 24 | AF33: 0 | AG33: 0 | AH33: 0 | AI33: 0 | AJ33: 0 | AK33: 0 | AL33: 0 | AM33: 0 | AN33: 0 | AO33: 0 | AP33: 0 | AQ33: 0 | AR33: 0 | AS33: 0 | AT33: 0 | AU33: 0 | AV33: 0 | AW33: 0 | AX33: 0 | AY33: 0 | AZ33: 0 | BA33: 0 | BB33: 0 | BC33: 0 | BD33: 0 | BE33: 0 | BF33: 0 | BG33: 0 | BH33: 0 | BI33: 0 | BJ33: 0 | BK33: 0 | BL33: 0 | BM33: 0 | BN33: 0 | BO33: 0 | BP33: 0 | BQ33: 0 | BR33: 0 | BS33: 0 | BT33: 0 | BU33: 0 | BV33: 0 | BW33: 0 | BX33: 0 | BY33: 0 | BZ33: 0 | CA33: 0 | CB33: 0 | CC33: 0 | CD33: 0 | CE33: 0 | CF33: 0 | CG33: 0 | CH33: 0 | CI33: 0 | CJ33: 0 | CK33: 0 | CL33: 0 | CM33: 0 | CN33: 0 | CO33: 0 | CP33: 0
C34: ˃ 11 kV & < = 22 kV ; Single-Phase
C35: ˃ 11 kV & < = 22 kV ; Multiple-Phase
C36: > 22 kV & < = 66 kV | D36: 60 | E36: 7.745966692 | F36: 0 | G36: 0 | H36: 0 | I36: 0 | J36: 1 | K36: 3 | L36: 46 | M36: 42 | N36: 3 | O36: 23 | P36: 16 | Q36: 1 | R36: 7 | S36: 12 | T36: 20 | U36: 20 | V36: 10 | W36: 4 | X36: 21 | Y36: 3 | Z36: 31 | AA36: 23 | AB36: 4 | AC36: 5 | AD36: 0 | AE36: 2 | AF36: 24 | AG36: 71 | AH36: 8 | AI36: 5 | AJ36: 3 | AK36: 13 | AL36: 66 | AM36: 57 | AN36: 55 | AO36: 0 | AP36: 12 | AQ36: 65 | AR36: 21 | AS36: 45 | AT36: 69 | AU36: 93 | AV36: 106 | AW36: 72 | AX36: 82 | AY36: 29 | AZ36: 102 | BA36: 193 | BB36: 12 | BC36: 14 | BD36: 20 | BE36: 23 | BF36: 35 | BG36: 4 | BH36: 6 | BI36: 2 | BJ36: 1 | BK36: 13 | BL36: 15 | BM36: 10 | BN36: 36 | BO36: 5 | BP36: 3 | BQ36: 13 | BR36: 18 | BS36: 50 | BT36: 40 | BU36: 11 | BV36: 6 | BW36: 31 | BX36: 0 | BY36: 3 | BZ36: 0 | CA36: 0 | CB36: 4 | CC36: 16 | CD36: 58 | CE36: 61 | CF36: 26 | CG36: 7 | CH36: 13 | CI36: 54 | CJ36: 8 | CK36: 0 | CL36: 0 | CM36: 18 | CN36: 1 | CO36: 0 | CP36: 0
C37: > 66 kV & < = 132 kV | D37: 60 | E37: 7.745966692 | F37: 0 | G37: 7 | H37: 0 | I37: 0 | J37: 0 | K37: 0 | L37: 20 | M37: 0 | N37: 0 | O37: 9 | P37: 0 | Q37: 0 | R37: 2 | S37: 0 | T37: 0 | U37: 8 | V37: 8 | W37: 26 | X37: 220 | Y37: 2 | Z37: 0 | AA37: 0 | AB37: 0 | AC37: 41 | AD37: 39 | AE37: 0 | AF37: 6 | AG37: 4 | AH37: 0 | AI37: 15 | AJ37: 14 | AK37: 18 | AL37: 14 | AM37: 0 | AN37: 67 | AO37: 8 | AP37: 0 | AQ37: 8 | AR37: 163 | AS37: 0 | AT37: 0 | AU37: 0 | AV37: 0 | AW37: 0 | AX37: 0 | AY37: 220 | AZ37: 0 | BA37: 0 | BB37: 0 | BC37: 0 | BD37: 0 | BE37: 6 | BF37: 210 | BG37: 0 | BH37: 0 | BI37: 0 | BJ37: 0 | BK37: 0 | BL37: 0 | BM37: 0 | BN37: 0 | BO37: 0 | BP37: 0 | BQ37: 0 | BR37: 0 | BS37: 0 | BT37: 0 | BU37: 0 | BV37: 0 | BW37: 0 | BX37: 0 | BY37: 0 | BZ37: 0 | CA37: 0 | CB37: 0 | CC37: 0 | CD37: 0 | CE37: 0 | CF37: 0 | CG37: 0 | CH37: 0 | CI37: 0 | CJ37: 0 | CK37: 0 | CL37: 0 | CM37: 0 | CN37: 0 | CO37: 0 | CP37: 0
C38: > 132 kV
C39: Other
B40: UNDERGROUND CABLES BY: HIGHEST OPERATING VOLTAGE | C40: ˂ = 1 kV | D40: 55 | E40: 7.416198487 | F40: 248 | G40: 373 | H40: 317 | I40: 202 | J40: 180 | K40: 245 | L40: 285 | M40: 273 | N40: 389 | O40: 467 | P40: 492 | Q40: 448 | R40: 555 | S40: 474 | T40: 314 | U40: 57 | V40: 34 | W40: 25 | X40: 114 | Y40: 223 | Z40: 338 | AA40: 448 | AB40: 418 | AC40: 604 | AD40: 632 | AE40: 497 | AF40: 570 | AG40: 489 | AH40: 384 | AI40: 458 | AJ40: 156 | AK40: 59 | AL40: 174 | AM40: 52 | AN40: 52 | AO40: 14 | AP40: 58 | AQ40: 156 | AR40: 10 | AS40: 210 | AT40: 8 | AU40: 48 | AV40: 0 | AW40: 29 | AX40: 133 | AY40: 1 | AZ40: 11 | BA40: 0 | BB40: 2 | BC40: 0 | BD40: 0 | BE40: 0 | BF40: 0 | BG40: 0 | BH40: 0 | BI40: 0 | BJ40: 0 | BK40: 0 | BL40: 0 | BM40: 0 | BN40: 0 | BO40: 0 | BP40: 0 | BQ40: 0
C41: > 1 kV & < = 11 kV | D41: 55 | E41: 7.416198487 | F41: 35 | G41: 99 | H41: 99 | I41: 101 | J41: 103 | K41: 120 | L41: 158 | M41: 210 | N41: 239 | O41: 296 | P41: 336 | Q41: 405 | R41: 310 | S41: 207 | T41: 147 | U41: 108 | V41: 101 | W41: 91 | X41: 80 | Y41: 100 | Z41: 196 | AA41: 67 | AB41: 69 | AC41: 75 | AD41: 87 | AE41: 96 | AF41: 152 | AG41: 116 | AH41: 197 | AI41: 195 | AJ41: 184 | AK41: 90 | AL41: 79 | AM41: 113 | AN41: 191 | AO41: 65 | AP41: 73 | AQ41: 80 | AR41: 92 | AS41: 54 | AT41: 64 | AU41: 34 | AV41: 64 | AW41: 2 | AX41: 54 | AY41: 45 | AZ41: 20 | BA41: 9 | BB41: 0 | BC41: 0 | BD41: 5 | BE41: 0 | BF41: 1 | BG41: 1 | BH41: 0 | BI41: 4 | BJ41: 1 | BK41: 0 | BL41: 0 | BM41: 0 | BN41: 1 | BO41: 0 | BP41: 0 | BQ41: 0
C42: > 11 kV & < = 22 kV
C43: > 22 kV & < = 33 kV | D43: 65 | E43: 8.062257748 | F43: 1 | G43: 2 | H43: 1 | I43: 16 | J43: 7 | K43: 15 | L43: 37 | M43: 8 | N43: 30 | O43: 21 | P43: 46 | Q43: 63 | R43: 45 | S43: 11 | T43: 38 | U43: 66 | V43: 49 | W43: 50 | X43: 2 | Y43: 18 | Z43: 1 | AA43: 0 | AB43: 0 | AC43: 0 | AD43: 0 | AE43: 0 | AF43: 13 | AG43: 15 | AH43: 0 | AI43: 0 | AJ43: 5 | AK43: 3 | AL43: 5 | AM43: 0 | AN43: 0 | AO43: 0 | AP43: 0 | AQ43: 0 | AR43: 0 | AS43: 34 | AT43: 0 | AU43: 0 | AV43: 12 | AW43: 0 | AX43: 40 | AY43: 8 | AZ43: 68 | BA43: 14 | BB43: 14 | BC43: 11 | BD43: 26 | BE43: 0 | BF43: 0 | BG43: 13 | BH43: 0 | BI43: 2 | BJ43: 0 | BK43: 8 | BL43: 1 | BM43: 0 | BN43: 0 | BO43: 9 | BP43: 0 | BQ43: 0
C44: > 33 kV & < = 66 kV
C45: > 66 kV & < = 132 kV | D45: 60 | E45: 7.745966692 | F45: 0 | G45: 0 | H45: 9 | I45: 0 | J45: 0 | K45: 6 | L45: 1 | M45: 8 | N45: 0 | O45: 9 | P45: 30 | Q45: 24 | R45: 2 | S45: 2 | T45: 3 | U45: 26 | V45: 5 | W45: 31 | X45: 6 | Y45: 0 | Z45: 0 | AA45: 0 | AB45: 0 | AC45: 0 | AD45: 0 | AE45: 0 | AF45: 0 | AG45: 0 | AH45: 0 | AI45: 0 | AJ45: 0 | AK45: 0 | AL45: 0 | AM45: 0 | AN45: 0 | AO45: 0 | AP45: 0 | AQ45: 0 | AR45: 0 | AS45: 0 | AT45: 0 | AU45: 0 | AV45: 0 | AW45: 0 | AX45: 0 | AY45: 0 | AZ45: 0 | BA45: 0 | BB45: 0 | BC45: 0 | BD45: 0 | BE45: 0 | BF45: 0 | BG45: 0 | BH45: 0 | BI45: 0 | BJ45: 0 | BK45: 0 | BL45: 0 | BM45: 0 | BN45: 0 | BO45: 0 | BP45: 0 | BQ45: 0
C46: > 132 kV
C47: Other
B48: SERVICE LINES BY: CONNECTION VOLTAGE; CUSTOMER TYPE; CONNECTION COMPLEXITY | C48: ˂ = 11 kV ; Residential ; Simple Type | D48: 35 | E48: 5.92 | F48: 20247.034 | G48: 20896.434 | H48: 21379.864 | I48: 16959.28 | J48: 13281.85938 | K48: 20132.17938 | L48: 19227.81938 | M48: 21318.05938 | N48: 27044.13938 | O48: 34786.11612 | P48: 31044.69303 | Q48: 4013.808382 | R48: 3515.793382 | S48: 22252.01362 | T48: 23279.47528 | U48: 18161.49086 | V48: 17914.41575 | W48: 21091.09574 | X48: 19467.4593 | Y48: 15655.44332 | Z48: 2435.98832 | AA48: 5836.970762 | AB48: 5836.970762 | AC48: 5836.970762 | AD48: 5836.970762 | AE48: 5836.970762 | AF48: 5836.970762 | AG48: 5836.970762 | AH48: 5836.970762 | AI48: 5836.970762 | AJ48: 5836.970762 | AK48: 6849.835004 | AL48: 6849.835004 | AM48: 6849.835004 | AN48: 6849.835004 | AO48: 6849.835004 | AP48: 6849.835004 | AQ48: 6849.835004 | AR48: 6849.835004 | AS48: 6849.835004 | AT48: 6849.835004 | AU48: 6849.835004 | AV48: 839.0356061 | AW48: 839.0356061 | AX48: 839.0356061 | AY48: 839.0356061 | AZ48: 839.0356061 | BA48: 839.0356061 | BB48: 839.0356061 | BC48: 839.0356061 | BD48: 839.0356061 | BE48: 839.0356061 | BF48: 839.0356061 | BG48: 839.0356061 | BH48: 839.0356061 | BI48: 839.0356061 | BJ48: 839.0356061 | BK48: 839.0356061 | BL48: 839.0356061 | BM48: 839.0356061 | BN48: 839.0356061 | BO48: 839.0356061 | BP48: 839.0356061 | BQ48: 839.0356061 | BR48: 0 | BS48: 0 | BT48: 0 | BU48: 0 | BV48: 0 | BW48: 0 | BX48: 0 | BY48: 0 | BZ48: 0 | CA48: 0 | CB48: 0 | CC48: 0 | CD48: 0 | CE48: 0 | CF48: 0 | CG48: 0 | CH48: 0 | CI48: 0 | CJ48: 0 | CK48: 0 | CL48: 0 | CM48: 0 | CN48: 0 | CO48: 0 | CP48: 0 | CQ48: 0 | CR48: 0 | CS48: 0 | CT48: 0 | CU48: 0 | CV48: 0 | CW48: 0 | CX48: 0 | CY48: 0 | CZ48: 0 | DA48: 0 | DB48: 0 | DC48: 0 | DD48: 0 | DE48: 0 | DF48: 0 | DG48: 0 | DH48: 0
C49: ˂ = 11 kV ; Commercial & Industrial ; Simple Type | D49: 35 | E49: 5.92 | F49: 1764.966 | G49: 1866.566 | H49: 1909.136 | I49: 1474.72 | J49: 1154.944294 | K49: 1750.624294 | L49: 1671.984294 | M49: 1853.744294 | N49: 2351.664294 | O49: 3024.879663 | P49: 2699.538524 | Q49: 344.4952941 | R49: 300.0102941 | S49: 1933.778358 | T49: 2024.302198 | U49: 1579.260075 | V49: 1557.775283 | W49: 1834.008325 | X49: 1692.822548 | Y49: 1361.342897 | Z49: 211.8250713 | AA49: 502.031619 | AB49: 502.031619 | AC49: 502.031619 | AD49: 502.031619 | AE49: 502.031619 | AF49: 502.031619 | AG49: 502.031619 | AH49: 502.031619 | AI49: 502.031619 | AJ49: 502.031619 | AK49: 590.1067706 | AL49: 590.1067706 | AM49: 590.1067706 | AN49: 590.1067706 | AO49: 590.1067706 | AP49: 590.1067706 | AQ49: 590.1067706 | AR49: 590.1067706 | AS49: 590.1067706 | AT49: 590.1067706 | AU49: 590.1067706 | AV49: 72.68106061 | AW49: 72.68106061 | AX49: 72.68106061 | AY49: 72.68106061 | AZ49: 72.68106061 | BA49: 72.68106061 | BB49: 72.68106061 | BC49: 72.68106061 | BD49: 72.68106061 | BE49: 72.68106061 | BF49: 72.68106061 | BG49: 72.68106061 | BH49: 72.68106061 | BI49: 72.68106061 | BJ49: 72.68106061 | BK49: 72.68106061 | BL49: 72.68106061 | BM49: 72.68106061 | BN49: 72.68106061 | BO49: 72.68106061 | BP49: 72.68106061 | BQ49: 72.68106061 | BR49: 0 | BS49: 0 | BT49: 0 | BU49: 0 | BV49: 0 | BW49: 0 | BX49: 0 | BY49: 0 | BZ49: 0 | CA49: 0 | CB49: 0 | CC49: 0 | CD49: 0 | CE49: 0 | CF49: 0 | CG49: 0 | CH49: 0 | CI49: 0 | CJ49: 0 | CK49: 0 | CL49: 0 | CM49: 0 | CN49: 0 | CO49: 0 | CP49: 0 | CQ49: 0 | CR49: 0 | CS49: 0 | CT49: 0 | CU49: 0 | CV49: 0 | CW49: 0 | CX49: 0 | CY49: 0 | CZ49: 0 | DA49: 0 | DB49: 0 | DC49: 0 | DD49: 0 | DE49: 0 | DF49: 0 | DG49: 0 | DH49: 0
C50: ˂ = 11 kV ; Residential ; Complex Type
C51: ˂ = 11 kV ; Commercial & Industrial ; Complex Type
C52: ˂ = 11 kV ; Subdivision ; Complex Type
C53: > 11 kV & < = 22 kV ; Commercial & Industrial
C54: > 11 kV & < = 22 kV ; Subdivision
C55: > 22 kV & < = 33 kV ; Commercial & Industrial
C56: > 22 kV & < = 33 kV ; Subdivision
C57: > 33 kV & < = 66 kV ; Commercial & Industrial
C58: > 33 kV & < = 66 kV ; Subdivision
C59: > 66 kV & < = 132 kV ; Commercial & Industrial
C60: > 66 kV & < = 132 kV ; Subdivision
C61: > 132 kV ; Commercial & Industrial
C62: > 132 kV ; Subdivision
C63: Other
B64: TRANSFORMERS BY: MOUNTING TYPE; HIGHEST OPERATING VOLTAGE ; AMPERE RATING; NUMBER OF PHASES (AT LV) | C64: Pole Mounted ; < = 22kV ; < = 60 kVA ; Single Phase | D64: 35 | E64: 5.916079783 | F64: 21 | G64: 98 | H64: 149 | I64: 134 | J64: 130 | K64: 126 | L64: 120 | M64: 152 | N64: 191 | O64: 161 | P64: 119 | Q64: 357 | R64: 67 | S64: 208 | T64: 81 | U64: 132 | V64: 124 | W64: 187 | X64: 124 | Y64: 129 | Z64: 49 | AA64: 54 | AB64: 127 | AC64: 178 | AD64: 109 | AE64: 121 | AF64: 135 | AG64: 118 | AH64: 230 | AI64: 3 | AJ64: 2 | AK64: 307 | AL64: 118 | AM64: 92 | AN64: 149 | AO64: 188 | AP64: 109 | AQ64: 200 | AR64: 83 | AS64: 189 | AT64: 129 | AU64: 51 | AV64: 13 | AW64: 30 | AX64: 20 | AY64: 23 | AZ64: 23 | BA64: 10 | BB64: 13 | BC64: 10 | BD64: 0 | BE64: 12 | BF64: 29 | BG64: 14 | BH64: 7 | BI64: 5 | BJ64: 4 | BK64: 0 | BL64: 0 | BM64: 0 | BN64: 0 | BO64: 0 | BP64: 0 | BQ64: 0 | BR64: 0 | BS64: 0 | BT64: 0 | BU64: 0 | BV64: 4 | BW64: 0 | BX64: 0 | BY64: 0 | BZ64: 0 | CA64: 0 | CB64: 0 | CC64: 0 | CD64: 0 | CE64: 0 | CF64: 0 | CG64: 0 | CH64: 0 | CI64: 0 | CJ64: 0 | CK64: 0 | CL64: 1
C65: Pole Mounted ; < = 22kV ; > 60 kVA and < = 600 kVA ; Single Phase | D65: 39 | E65: 6.244997998 | F65: 0 | G65: 1 | H65: 0 | I65: 0 | J65: 0 | K65: 4 | L65: 1 | M65: 3 | N65: 1 | O65: 0 | P65: 0 | Q65: 0 | R65: 0 | S65: 0 | T65: 0 | U65: 0 | V65: 0 | W65: 0 | X65: 0 | Y65: 0 | Z65: 0 | AA65: 0 | AB65: 0 | AC65: 0 | AD65: 0 | AE65: 0 | AF65: 0 | AG65: 1 | AH65: 0 | AI65: 0 | AJ65: 0 | AK65: 0 | AL65: 0 | AM65: 0 | AN65: 0 | AO65: 0 | AP65: 0 | AQ65: 0 | AR65: 0 | AS65: 0 | AT65: 0 | AU65: 0 | AV65: 0 | AW65: 0 | AX65: 0 | AY65: 0 | AZ65: 0 | BA65: 0 | BB65: 0 | BC65: 0 | BD65: 0 | BE65: 0 | BF65: 0 | BG65: 0 | BH65: 0 | BI65: 0 | BJ65: 0 | BK65: 0 | BL65: 0 | BM65: 0 | BN65: 0 | BO65: 0 | BP65: 0 | BQ65: 0 | BR65: 0 | BS65: 0 | BT65: 0 | BU65: 0 | BV65: 0 | BW65: 0 | BX65: 0 | BY65: 0 | BZ65: 0 | CA65: 0 | CB65: 0 | CC65: 0 | CD65: 0 | CE65: 0 | CF65: 0 | CG65: 0 | CH65: 0 | CI65: 0 | CJ65: 0 | CK65: 0 | CL65: 0
C66: Pole Mounted ; < = 22kV ; > 600 kVA ; Single Phase
C67: Pole Mounted ; < = 22kV ; < = 60 kVA ; Multiple Phase | D67: 35 | E67: 5.916079783 | F67: 7 | G67: 77 | H67: 175 | I67: 209 | J67: 210 | K67: 132 | L67: 164 | M67: 193 | N67: 190 | O67: 196 | P67: 128 | Q67: 294 | R67: 88 | S67: 176 | T67: 95 | U67: 103 | V67: 92 | W67: 78 | X67: 63 | Y67: 83 | Z67: 58 | AA67: 22 | AB67: 129 | AC67: 162 | AD67: 110 | AE67: 128 | AF67: 147 | AG67: 65 | AH67: 264 | AI67: 3 | AJ67: 3 | AK67: 299 | AL67: 183 | AM67: 114 | AN67: 126 | AO67: 178 | AP67: 162 | AQ67: 101 | AR67: 82 | AS67: 67 | AT67: 38 | AU67: 46 | AV67: 0 | AW67: 43 | AX67: 33 | AY67: 58 | AZ67: 90 | BA67: 62 | BB67: 47 | BC67: 18 | BD67: 21 | BE67: 54 | BF67: 60 | BG67: 39 | BH67: 35 | BI67: 35 | BJ67: 0 | BK67: 31 | BL67: 32 | BM67: 3 | BN67: 17 | BO67: 2 | BP67: 3 | BQ67: 0 | BR67: 0 | BS67: 11 | BT67: 0 | BU67: 4 | BV67: 2 | BW67: 13 | BX67: 4 | BY67: 1 | BZ67: 2 | CA67: 5 | CB67: 1 | CC67: 0 | CD67: 3 | CE67: 3 | CF67: 3 | CG67: 0 | CH67: 7 | CI67: 1 | CJ67: 3 | CK67: 1 | CL67: 0
C68: Pole Mounted ; < = 22kV ; > 60 kVA and < = 600 kVA ; Multiple Phase | D68: 39 | E68: 6.244997998 | F68: 126 | G68: 707 | H68: 883 | I68: 876 | J68: 735 | K68: 804 | L68: 967 | M68: 1038 | N68: 1264 | O68: 1345 | P68: 1075 | Q68: 1695 | R68: 709 | S68: 1510 | T68: 559 | U68: 512 | V68: 729 | W68: 486 | X68: 508 | Y68: 429 | Z68: 237 | AA68: 201 | AB68: 451 | AC68: 477 | AD68: 182 | AE68: 235 | AF68: 299 | AG68: 144 | AH68: 441 | AI68: 50 | AJ68: 27 | AK68: 329 | AL68: 219 | AM68: 314 | AN68: 228 | AO68: 234 | AP68: 259 | AQ68: 127 | AR68: 115 | AS68: 70 | AT68: 24 | AU68: 66 | AV68: 14 | AW68: 110 | AX68: 42 | AY68: 42 | AZ68: 64 | BA68: 57 | BB68: 16 | BC68: 9 | BD68: 31 | BE68: 21 | BF68: 19 | BG68: 14 | BH68: 16 | BI68: 5 | BJ68: 6 | BK68: 7 | BL68: 3 | BM68: 4 | BN68: 0 | BO68: 0 | BP68: 2 | BQ68: 1 | BR68: 0 | BS68: 2 | BT68: 0 | BU68: 10 | BV68: 7 | BW68: 1 | BX68: 1 | BY68: 2 | BZ68: 0 | CA68: 1 | CB68: 2 | CC68: 2 | CD68: 0 | CE68: 0 | CF68: 1 | CG68: 0 | CH68: 0 | CI68: 3 | CJ68: 0 | CK68: 0 | CL68: 0
C69: Pole Mounted ; < = 22kV ; > 600 kVA ; Multiple Phase
C70: Kiosk Mounted ; < = 22kV ; < = 60 kVA ; Single Phase
C71: Kiosk Mounted ; < = 22kV ; > 60 kVA and < = 600 kVA ; Single Phase
C72: Kiosk Mounted ; < = 22kV ; > 600 kVA ; Single Phase
C73: Kiosk Mounted ; < = 22kV ; < = 60 kVA ; Multiple Phase
C74: Kiosk Mounted ; < = 22kV ; > 60 kVA and < = 600 kVA ; Multiple Phase | D74: 43 | E74: 6.557438524 | F74: 81 | G74: 426 | H74: 428 | I74: 326 | J74: 196 | K74: 182 | L74: 402 | M74: 547 | N74: 654 | O74: 733 | P74: 595 | Q74: 881 | R74: 322 | S74: 415 | T74: 285 | U74: 179 | V74: 175 | W74: 119 | X74: 114 | Y74: 206 | Z74: 105 | AA74: 145 | AB74: 120 | AC74: 130 | AD74: 71 | AE74: 88 | AF74: 100 | AG74: 152 | AH74: 16 | AI74: 305 | AJ74: 7 | AK74: 167 | AL74: 1 | AM74: 5 | AN74: 169 | AO74: 94 | AP74: 58 | AQ74: 106 | AR74: 42 | AS74: 2 | AT74: 8 | AU74: 25 | AV74: 18 | AW74: 9 | AX74: 2 | AY74: 11 | AZ74: 12 | BA74: 9 | BB74: 6 | BC74: 1 | BD74: 0 | BE74: 0 | BF74: 0 | BG74: 0 | BH74: 0 | BI74: 0 | BJ74: 0 | BK74: 0 | BL74: 0 | BM74: 0 | BN74: 0 | BO74: 0 | BP74: 0 | BQ74: 0 | BR74: 0 | BS74: 0 | BT74: 0 | BU74: 0 | BV74: 0 | BW74: 0 | BX74: 0 | BY74: 0 | BZ74: 0 | CA74: 0 | CB74: 0 | CC74: 0 | CD74: 0 | CE74: 0 | CF74: 0 | CG74: 0 | CH74: 0 | CI74: 0 | CJ74: 0 | CK74: 0 | CL74: 0
C75: Kiosk Mounted ; < = 22kV ; > 600 kVA ; Multiple Phase | D75: 42 | E75: 6.480740698 | F75: 40 | G75: 122 | H75: 189 | I75: 108 | J75: 107 | K75: 83 | L75: 168 | M75: 197 | N75: 260 | O75: 259 | P75: 261 | Q75: 361 | R75: 81 | S75: 133 | T75: 74 | U75: 50 | V75: 24 | W75: 29 | X75: 6 | Y75: 41 | Z75: 26 | AA75: 20 | AB75: 28 | AC75: 11 | AD75: 8 | AE75: 3 | AF75: 0 | AG75: 0 | AH75: 0 | AI75: 0 | AJ75: 0 | AK75: 0 | AL75: 0 | AM75: 0 | AN75: 0 | AO75: 0 | AP75: 0 | AQ75: 0 | AR75: 0 | AS75: 0 | AT75: 0 | AU75: 0 | AV75: 0 | AW75: 0 | AX75: 0 | AY75: 0 | AZ75: 0 | BA75: 0 | BB75: 0 | BC75: 0 | BD75: 0 | BE75: 0 | BF75: 0 | BG75: 0 | BH75: 0 | BI75: 0 | BJ75: 0 | BK75: 0 | BL75: 0 | BM75: 0 | BN75: 0 | BO75: 0 | BP75: 0 | BQ75: 0 | BR75: 0 | BS75: 0 | BT75: 0 | BU75: 0 | BV75: 0 | BW75: 0 | BX75: 0 | BY75: 0 | BZ75: 0 | CA75: 0 | CB75: 0 | CC75: 0 | CD75: 0 | CE75: 0 | CF75: 0 | CG75: 0 | CH75: 0 | CI75: 0 | CJ75: 0 | CK75: 0 | CL75: 0
C76: Ground Outdoor / Indoor Chamber Mounted; ˂ 22 kV ; < = 60 kVA ; Single Phase
C77: Ground Outdoor / Indoor Chamber Mounted; ˂ 22 kV ; > 60 kVA and < = 600 kVA ; Single Phase
C78: Ground Outdoor / Indoor Chamber Mounted; ˂ 22 kV ; > 600 kVA ; Single Phase
C79: Ground Outdoor / Indoor Chamber Mounted; ˂ 22 kV ; < = 60 kVA ; Multiple Phase | D79: 45 | E79: 6.71 | F79: 0 | G79: 0 | H79: 0 | I79: 0 | J79: 0 | K79: 0 | L79: 0 | M79: 0 | N79: 0 | O79: 0 | P79: 0 | Q79: 0 | R79: 0 | S79: 0 | T79: 0 | U79: 0 | V79: 0 | W79: 0 | X79: 0 | Y79: 0 | Z79: 0 | AA79: 0 | AB79: 0 | AC79: 0 | AD79: 0 | AE79: 0 | AF79: 0 | AG79: 0 | AH79: 0 | AI79: 0 | AJ79: 0 | AK79: 0 | AL79: 0 | AM79: 0 | AN79: 0 | AO79: 0 | AP79: 0 | AQ79: 0 | AR79: 0 | AS79: 0 | AT79: 0 | AU79: 0 | AV79: 0 | AW79: 0 | AX79: 0 | AY79: 0 | AZ79: 0 | BA79: 0 | BB79: 0 | BC79: 0 | BD79: 1 | BE79: 0 | BF79: 0 | BG79: 0 | BH79: 0 | BI79: 0 | BJ79: 0 | BK79: 0 | BL79: 0 | BM79: 0 | BN79: 0 | BO79: 0 | BP79: 0 | BQ79: 0 | BR79: 0 | BS79: 0 | BT79: 0 | BU79: 0 | BV79: 0 | BW79: 0 | BX79: 0 | BY79: 0 | BZ79: 0 | CA79: 0 | CB79: 0 | CC79: 0 | CD79: 0 | CE79: 0 | CF79: 0 | CG79: 0 | CH79: 0 | CI79: 0 | CJ79: 0 | CK79: 0 | CL79: 0
C80: Ground Outdoor / Indoor Chamber Mounted; ˂ 22 kV ; > 60 kVA and < = 600 kVA ; Multiple Phase | D80: 44 | E80: 6.63 | F80: 2 | G80: 2 | H80: 7 | I80: 4 | J80: 16 | K80: 8 | L80: 9 | M80: 9 | N80: 13 | O80: 9 | P80: 4 | Q80: 26 | R80: 7 | S80: 7 | T80: 3 | U80: 8 | V80: 1 | W80: 16 | X80: 5 | Y80: 4 | Z80: 0 | AA80: 2 | AB80: 0 | AC80: 12 | AD80: 6 | AE80: 0 | AF80: 0 | AG80: 5 | AH80: 3 | AI80: 0 | AJ80: 34 | AK80: 26 | AL80: 3 | AM80: 8 | AN80: 57 | AO80: 4 | AP80: 40 | AQ80: 18 | AR80: 13 | AS80: 8 | AT80: 1 | AU80: 1 | AV80: 0 | AW80: 6 | AX80: 2 | AY80: 1 | AZ80: 20 | BA80: 6 | BB80: 23 | BC80: 0 | BD80: 18 | BE80: 30 | BF80: 12 | BG80: 10 | BH80: 13 | BI80: 8 | BJ80: 2 | BK80: 6 | BL80: 3 | BM80: 1 | BN80: 1 | BO80: 0 | BP80: 3 | BQ80: 0 | BR80: 1 | BS80: 11 | BT80: 7 | BU80: 0 | BV80: 7 | BW80: 8 | BX80: 6 | BY80: 0 | BZ80: 2 | CA80: 1 | CB80: 0 | CC80: 1 | CD80: 0 | CE80: 3 | CF80: 0 | CG80: 3 | CH80: 0 | CI80: 2 | CJ80: 0 | CK80: 0 | CL80: 0
C81: Ground Outdoor / Indoor Chamber Mounted; ˂ 22 kV ; > 600 kVA ; Multiple Phase | D81: 43 | E81: 6.557438524 | F81: 0 | G81: 20 | H81: 59 | I81: 79 | J81: 56 | K81: 56 | L81: 110 | M81: 92 | N81: 130 | O81: 244 | P81: 204 | Q81: 190 | R81: 116 | S81: 118 | T81: 70 | U81: 83 | V81: 57 | W81: 91 | X81: 42 | Y81: 93 | Z81: 11 | AA81: 49 | AB81: 59 | AC81: 57 | AD81: 36 | AE81: 12 | AF81: 25 | AG81: 9 | AH81: 65 | AI81: 27 | AJ81: 166 | AK81: 105 | AL81: 97 | AM81: 38 | AN81: 99 | AO81: 30 | AP81: 81 | AQ81: 48 | AR81: 51 | AS81: 19 | AT81: 7 | AU81: 8 | AV81: 23 | AW81: 9 | AX81: 0 | AY81: 11 | AZ81: 12 | BA81: 5 | BB81: 8 | BC81: 0 | BD81: 4 | BE81: 11 | BF81: 7 | BG81: 6 | BH81: 1 | BI81: 1 | BJ81: 5 | BK81: 0 | BL81: 2 | BM81: 1 | BN81: 0 | BO81: 2 | BP81: 1 | BQ81: 0 | BR81: 0 | BS81: 0 | BT81: 3 | BU81: 2 | BV81: 0 | BW81: 1 | BX81: 0 | BY81: 0 | BZ81: 0 | CA81: 0 | CB81: 1 | CC81: 0 | CD81: 0 | CE81: 0 | CF81: 0 | CG81: 0 | CH81: 0 | CI81: 0 | CJ81: 0 | CK81: 0 | CL81: 0
C82: Ground Outdoor / Indoor Chamber Mounted; > = 22 kV & < = 33 kV ; < = 15 MVA | D82: 52 | E82: 7.211102551 | F82: 0 | G82: 0 | H82: 0 | I82: 0 | J82: 3 | K82: 1 | L82: 2 | M82: 14 | N82: 10 | O82: 2 | P82: 2 | Q82: 4 | R82: 7 | S82: 13 | T82: 6 | U82: 15 | V82: 12 | W82: 10 | X82: 4 | Y82: 1 | Z82: 1 | AA82: 2 | AB82: 4 | AC82: 0 | AD82: 1 | AE82: 0 | AF82: 0 | AG82: 4 | AH82: 1 | AI82: 3 | AJ82: 0 | AK82: 2 | AL82: 0 | AM82: 1 | AN82: 3 | AO82: 2 | AP82: 5 | AQ82: 0 | AR82: 1 | AS82: 0 | AT82: 2 | AU82: 15 | AV82: 0 | AW82: 1 | AX82: 8 | AY82: 2 | AZ82: 6 | BA82: 5 | BB82: 1 | BC82: 0 | BD82: 12 | BE82: 5 | BF82: 6 | BG82: 5 | BH82: 2 | BI82: 6 | BJ82: 0 | BK82: 3 | BL82: 0 | BM82: 1 | BN82: 1 | BO82: 0 | BP82: 0 | BQ82: 1 | BR82: 0 | BS82: 0 | BT82: 0 | BU82: 0 | BV82: 5 | BW82: 0 | BX82: 4 | BY82: 0 | BZ82: 0 | CA82: 1 | CB82: 0 | CC82: 0 | CD82: 0 | CE82: 0 | CF82: 0 | CG82: 0 | CH82: 0 | CI82: 0 | CJ82: 0 | CK82: 0 | CL82: 0
C83: Ground Outdoor / Indoor Chamber Mounted; > = 22 kV & < = 33 kV ; > 15 MVA and < = 40 MVA | D83: 54 | E83: 7.348469228 | F83: 0 | G83: 0 | H83: 2 | I83: 4 | J83: 12 | K83: 10 | L83: 16 | M83: 24 | N83: 23 | O83: 16 | P83: 12 | Q83: 19 | R83: 36 | S83: 24 | T83: 2 | U83: 4 | V83: 1 | W83: 3 | X83: 6 | Y83: 0 | Z83: 2 | AA83: 0 | AB83: 4 | AC83: 2 | AD83: 0 | AE83: 0 | AF83: 2 | AG83: 0 | AH83: 0 | AI83: 0 | AJ83: 0 | AK83: 0 | AL83: 1 | AM83: 4 | AN83: 2 | AO83: 0 | AP83: 0 | AQ83: 0 | AR83: 0 | AS83: 1 | AT83: 7 | AU83: 0 | AV83: 0 | AW83: 4 | AX83: 0 | AY83: 0 | AZ83: 2 | BA83: 0 | BB83: 0 | BC83: 0 | BD83: 0 | BE83: 0 | BF83: 0 | BG83: 0 | BH83: 0 | BI83: 0 | BJ83: 0 | BK83: 0 | BL83: 0 | BM83: 0 | BN83: 0 | BO83: 0 | BP83: 0 | BQ83: 0 | BR83: 0 | BS83: 0 | BT83: 0 | BU83: 0 | BV83: 0 | BW83: 0 | BX83: 0 | BY83: 0 | BZ83: 0 | CA83: 0 | CB83: 0 | CC83: 0 | CD83: 0 | CE83: 0 | CF83: 0 | CG83: 0 | CH83: 0 | CI83: 0 | CJ83: 0 | CK83: 0 | CL83: 0
C84: Ground Outdoor / Indoor Chamber Mounted; > = 22 kV & < = 33 kV ; > 40 MVA
C85: Ground Outdoor / Indoor Chamber Mounted; > 33 kV & < = 66 kV ; < = 15 MVA
C86: Ground Outdoor / Indoor Chamber Mounted; > 33 kV & < = 66 kV ; > 15 MVA and < = 40 MVA | D86: 47 | E86: 6.8556546 | F86: 0 | G86: 0 | H86: 0 | I86: 0 | J86: 0 | K86: 0 | L86: 0 | M86: 0 | N86: 0 | O86: 0 | P86: 0 | Q86: 0 | R86: 0 | S86: 0 | T86: 1 | U86: 0 | V86: 0 | W86: 0 | X86: 0 | Y86: 0 | Z86: 0 | AA86: 0 | AB86: 0 | AC86: 0 | AD86: 0 | AE86: 0 | AF86: 0 | AG86: 0 | AH86: 0 | AI86: 0 | AJ86: 0 | AK86: 0 | AL86: 0 | AM86: 0 | AN86: 0 | AO86: 0 | AP86: 0 | AQ86: 0 | AR86: 0 | AS86: 0 | AT86: 0 | AU86: 0 | AV86: 0 | AW86: 0 | AX86: 0 | AY86: 0 | AZ86: 0 | BA86: 0 | BB86: 0 | BC86: 0 | BD86: 0 | BE86: 0 | BF86: 0 | BG86: 0 | BH86: 0 | BI86: 0 | BJ86: 0 | BK86: 0 | BL86: 0 | BM86: 0 | BN86: 0 | BO86: 0 | BP86: 0 | BQ86: 0 | BR86: 0 | BS86: 0 | BT86: 0 | BU86: 0 | BV86: 0 | BW86: 0 | BX86: 0 | BY86: 0 | BZ86: 0 | CA86: 0 | CB86: 0 | CC86: 0 | CD86: 0 | CE86: 0 | CF86: 0 | CG86: 0 | CH86: 0 | CI86: 0 | CJ86: 0 | CK86: 0 | CL86: 0
C87: Ground Outdoor / Indoor Chamber Mounted; > 33 kV & < = 66 kV ; > 40 MVA
C88: Ground Outdoor / Indoor Chamber Mounted; > 66 kV & < = 132 kV ; < = 100 MVA | D88: 56 | E88: 7.483314774 | F88: 0 | G88: 0 | H88: 0 | I88: 0 | J88: 0 | K88: 6 | L88: 12 | M88: 8 | N88: 6 | O88: 5 | P88: 6 | Q88: 16 | R88: 14 | S88: 6 | T88: 1 | U88: 8 | V88: 4 | W88: 1 | X88: 5 | Y88: 2 | Z88: 0 | AA88: 0 | AB88: 2 | AC88: 0 | AD88: 0 | AE88: 0 | AF88: 0 | AG88: 3 | AH88: 0 | AI88: 1 | AJ88: 0 | AK88: 3 | AL88: 0 | AM88: 6 | AN88: 3 | AO88: 0 | AP88: 7 | AQ88: 0 | AR88: 0 | AS88: 2 | AT88: 2 | AU88: 2 | AV88: 2 | AW88: 0 | AX88: 0 | AY88: 0 | AZ88: 2 | BA88: 0 | BB88: 0 | BC88: 0 | BD88: 0 | BE88: 0 | BF88: 0 | BG88: 0 | BH88: 0 | BI88: 1 | BJ88: 0 | BK88: 0 | BL88: 0 | BM88: 0 | BN88: 0 | BO88: 0 | BP88: 0 | BQ88: 0 | BR88: 0 | BS88: 0 | BT88: 0 | BU88: 0 | BV88: 0 | BW88: 0 | BX88: 0 | BY88: 0 | BZ88: 0 | CA88: 0 | CB88: 0 | CC88: 0 | CD88: 0 | CE88: 0 | CF88: 0 | CG88: 0 | CH88: 0 | CI88: 0 | CJ88: 0 | CK88: 0 | CL88: 0
C89: Ground Outdoor / Indoor Chamber Mounted; > 66 kV & < = 132 kV ; > 100 MVA | D89: 55 | E89: 7.416198487 | F89: 0 | G89: 0 | H89: 0 | I89: 0 | J89: 0 | K89: 1 | L89: 0 | M89: 0 | N89: 1 | O89: 2 | P89: 0 | Q89: 0 | R89: 0 | S89: 1 | T89: 0 | U89: 0 | V89: 0 | W89: 1 | X89: 1 | Y89: 0 | Z89: 0 | AA89: 0 | AB89: 0 | AC89: 0 | AD89: 0 | AE89: 0 | AF89: 0 | AG89: 0 | AH89: 0 | AI89: 0 | AJ89: 0 | AK89: 0 | AL89: 0 | AM89: 0 | AN89: 0 | AO89: 0 | AP89: 0 | AQ89: 0 | AR89: 0 | AS89: 0 | AT89: 0 | AU89: 0 | AV89: 0 | AW89: 0 | AX89: 0 | AY89: 0 | AZ89: 0 | BA89: 0 | BB89: 0 | BC89: 0 | BD89: 0 | BE89: 0 | BF89: 0 | BG89: 0 | BH89: 0 | BI89: 0 | BJ89: 0 | BK89: 0 | BL89: 0 | BM89: 0 | BN89: 0 | BO89: 0 | BP89: 0 | BQ89: 0 | BR89: 0 | BS89: 0 | BT89: 0 | BU89: 0 | BV89: 0 | BW89: 0 | BX89: 0 | BY89: 0 | BZ89: 0 | CA89: 0 | CB89: 0 | CC89: 0 | CD89: 0 | CE89: 0 | CF89: 0 | CG89: 0 | CH89: 0 | CI89: 0 | CJ89: 0 | CK89: 0 | CL89: 0
C90: Ground Outdoor / Indoor Chamber Mounted; > 132 kV ; < = 100 MVA
C91: Ground Outdoor / Indoor Chamber Mounted; > 132 kV ; > 100 MVA
C92: Other
B93: SWITCHGEAR BY: HIGHEST OPERATING VOLTAGE ; SWITCH FUNCTION | C93: ˂ = 11 kV ; Fuse
C94: ˂ = 11 kV ; Switch | D94: 40 | E94: 6.32455532 | F94: 10232 | G94: 15042 | H94: 17342 | I94: 13119 | J94: 13408 | K94: 10836 | L94: 10806 | M94: 9043 | N94: 9411 | O94: 10014 | P94: 9278 | Q94: 8473 | R94: 8894 | S94: 5047 | T94: 2853 | U94: 4725 | V94: 4037 | W94: 3497 | X94: 3062 | Y94: 3122 | Z94: 2611 | AA94: 2336 | AB94: 2843 | AC94: 3073 | AD94: 3156 | AE94: 2967 | AF94: 3884 | AG94: 4003 | AH94: 5340 | AI94: 2945 | AJ94: 2760 | AK94: 3628 | AL94: 2421 | AM94: 1641 | AN94: 1114 | AO94: 794 | AP94: 582 | AQ94: 660 | AR94: 366 | AS94: 239 | AT94: 196 | AU94: 135 | AV94: 144 | AW94: 84 | AX94: 149 | AY94: 181 | AZ94: 134 | BA94: 371 | BB94: 93 | BC94: 72 | BD94: 44 | BE94: 175 | BF94: 119 | BG94: 42 | BH94: 50 | BI94: 25 | BJ94: 8 | BK94: 0 | BL94: 0 | BM94: 0 | BN94: 1 | BO94: 0 | BP94: 1 | BQ94: 0 | BR94: 0 | BS94: 1 | BT94: 0 | BU94: 1 | BV94: 0 | BW94: 0 | BX94: 1
C95: ˂ = 11 kV ; Circuit Breaker | D95: 54 | E95: 7.348469228 | F95: 54 | G95: 73 | H95: 52 | I95: 192 | J95: 243 | K95: 389 | L95: 232 | M95: 195 | N95: 407 | O95: 263 | P95: 387 | Q95: 346 | R95: 373 | S95: 202 | T95: 66 | U95: 131 | V95: 83 | W95: 133 | X95: 75 | Y95: 23 | Z95: 45 | AA95: 45 | AB95: 40 | AC95: 31 | AD95: 33 | AE95: 33 | AF95: 30 | AG95: 46 | AH95: 65 | AI95: 73 | AJ95: 30 | AK95: 83 | AL95: 95 | AM95: 173 | AN95: 91 | AO95: 62 | AP95: 43 | AQ95: 26 | AR95: 16 | AS95: 61 | AT95: 25 | AU95: 34 | AV95: 59 | AW95: 18 | AX95: 26 | AY95: 15 | AZ95: 46 | BA95: 21 | BB95: 37 | BC95: 12 | BD95: 17 | BE95: 6 | BF95: 9 | BG95: 3 | BH95: 0 | BI95: 5 | BJ95: 3 | BK95: 0 | BL95: 0 | BM95: 0 | BN95: 0 | BO95: 1 | BP95: 0 | BQ95: 0 | BR95: 0 | BS95: 0 | BT95: 0 | BU95: 0 | BV95: 0 | BW95: 0 | BX95: 0
C96: > 11 kV & < = 22 kV ; Switch | D96: 40 | E96: 6.32455532 | F96: 0 | G96: 0 | H96: 0 | I96: 0 | J96: 0 | K96: 0 | L96: 0 | M96: 0 | N96: 1 | O96: 0 | P96: 0 | Q96: 0 | R96: 0 | S96: 0 | T96: 0 | U96: 0 | V96: 0 | W96: 0 | X96: 0 | Y96: 0 | Z96: 0 | AA96: 0 | AB96: 0 | AC96: 0 | AD96: 0 | AE96: 0 | AF96: 0 | AG96: 0 | AH96: 0 | AI96: 0 | AJ96: 0 | AK96: 0 | AL96: 0 | AM96: 0 | AN96: 0 | AO96: 0 | AP96: 0 | AQ96: 0 | AR96: 0 | AS96: 0 | AT96: 0 | AU96: 0 | AV96: 0 | AW96: 0 | AX96: 0 | AY96: 0 | AZ96: 0 | BA96: 0 | BB96: 0 | BC96: 0 | BD96: 0 | BE96: 0 | BF96: 0 | BG96: 0 | BH96: 0 | BI96: 0 | BJ96: 0 | BK96: 0 | BL96: 0 | BM96: 0 | BN96: 0 | BO96: 0 | BP96: 0 | BQ96: 0 | BR96: 0 | BS96: 0 | BT96: 0 | BU96: 0 | BV96: 0 | BW96: 0 | BX96: 0
C97: > 11 kV & < = 22 kV ; Circuit Breaker
C98: > 22 kV & < = 33 kV ; Switch | D98: 40 | E98: 6.32455532 | F98: 54 | G98: 67 | H98: 167 | I98: 146 | J98: 125 | K98: 186 | L98: 312 | M98: 123 | N98: 175 | O98: 175 | P98: 89 | Q98: 96 | R98: 104 | S98: 28 | T98: 35 | U98: 61 | V98: 64 | W98: 411 | X98: 16 | Y98: 1 | Z98: 1 | AA98: 12 | AB98: 10 | AC98: 21 | AD98: 0 | AE98: 14 | AF98: 1 | AG98: 20 | AH98: 16 | AI98: 17 | AJ98: 1 | AK98: 4 | AL98: 0 | AM98: 2 | AN98: 0 | AO98: 0 | AP98: 1 | AQ98: 5 | AR98: 0 | AS98: 315 | AT98: 0 | AU98: 3 | AV98: 0 | AW98: 0 | AX98: 0 | AY98: 0 | AZ98: 0 | BA98: 0 | BB98: 0 | BC98: 0 | BD98: 0 | BE98: 15 | BF98: 0 | BG98: 0 | BH98: 0 | BI98: 0 | BJ98: 0 | BK98: 0 | BL98: 0 | BM98: 1 | BN98: 5 | BO98: 0 | BP98: 0 | BQ98: 0 | BR98: 0 | BS98: 0 | BT98: 0 | BU98: 0 | BV98: 0 | BW98: 0 | BX98: 0
C99: > 22 kV & < = 33 kV ; Circuit Breaker | D99: 57 | E99: 7.549834435 | F99: 7 | G99: 12 | H99: 38 | I99: 25 | J99: 22 | K99: 46 | L99: 33 | M99: 91 | N99: 113 | O99: 174 | P99: 53 | Q99: 122 | R99: 169 | S99: 53 | T99: 26 | U99: 46 | V99: 45 | W99: 66 | X99: 38 | Y99: 4 | Z99: 11 | AA99: 5 | AB99: 16 | AC99: 9 | AD99: 16 | AE99: 10 | AF99: 2 | AG99: 1 | AH99: 33 | AI99: 4 | AJ99: 10 | AK99: 4 | AL99: 12 | AM99: 1 | AN99: 11 | AO99: 1 | AP99: 0 | AQ99: 2 | AR99: 3 | AS99: 8 | AT99: 27 | AU99: 7 | AV99: 15 | AW99: 7 | AX99: 26 | AY99: 1 | AZ99: 29 | BA99: 2 | BB99: 21 | BC99: 7 | BD99: 12 | BE99: 20 | BF99: 6 | BG99: 10 | BH99: 15 | BI99: 9 | BJ99: 4 | BK99: 3 | BL99: 14 | BM99: 8 | BN99: 1 | BO99: 0 | BP99: 0 | BQ99: 15 | BR99: 0 | BS99: 7 | BT99: 1 | BU99: 0 | BV99: 0 | BW99: 0 | BX99: 0
C100: > 33 kV & < = 66 kV ; Switch | D100: 40 | E100: 6.32455532 | F100: 0 | G100: 0 | H100: 0 | I100: 0 | J100: 0 | K100: 0 | L100: 0 | M100: 0 | N100: 0 | O100: 0 | P100: 0 | Q100: 0 | R100: 1 | S100: 0 | T100: 0 | U100: 0 | V100: 0 | W100: 0 | X100: 0 | Y100: 0 | Z100: 0 | AA100: 0 | AB100: 0 | AC100: 0 | AD100: 0 | AE100: 0 | AF100: 0 | AG100: 0 | AH100: 0 | AI100: 0 | AJ100: 0 | AK100: 0 | AL100: 0 | AM100: 0 | AN100: 0 | AO100: 0 | AP100: 0 | AQ100: 0 | AR100: 0 | AS100: 0 | AT100: 0 | AU100: 0 | AV100: 0 | AW100: 0 | AX100: 0 | AY100: 0 | AZ100: 0 | BA100: 0 | BB100: 0 | BC100: 0 | BD100: 0 | BE100: 0 | BF100: 0 | BG100: 0 | BH100: 0 | BI100: 0 | BJ100: 0 | BK100: 0 | BL100: 0 | BM100: 0 | BN100: 0 | BO100: 0 | BP100: 0 | BQ100: 0 | BR100: 0 | BS100: 0 | BT100: 0 | BU100: 0 | BV100: 0 | BW100: 0 | BX100: 0
C101: > 33 kV & < = 66 kV ; Circuit Breaker | D101: 48 | E101: 6.92820323 | F101: 0 | G101: 0 | H101: 0 | I101: 0 | J101: 0 | K101: 0 | L101: 0 | M101: 0 | N101: 0 | O101: 0 | P101: 0 | Q101: 0 | R101: 0 | S101: 0 | T101: 1 | U101: 0 | V101: 0 | W101: 0 | X101: 0 | Y101: 0 | Z101: 0 | AA101: 0 | AB101: 0 | AC101: 0 | AD101: 0 | AE101: 0 | AF101: 0 | AG101: 0 | AH101: 0 | AI101: 0 | AJ101: 0 | AK101: 0 | AL101: 0 | AM101: 0 | AN101: 0 | AO101: 0 | AP101: 0 | AQ101: 0 | AR101: 0 | AS101: 0 | AT101: 0 | AU101: 0 | AV101: 0 | AW101: 0 | AX101: 0 | AY101: 0 | AZ101: 0 | BA101: 0 | BB101: 0 | BC101: 0 | BD101: 0 | BE101: 0 | BF101: 0 | BG101: 0 | BH101: 0 | BI101: 0 | BJ101: 0 | BK101: 0 | BL101: 0 | BM101: 0 | BN101: 0 | BO101: 0 | BP101: 0 | BQ101: 0 | BR101: 0 | BS101: 0 | BT101: 0 | BU101: 0 | BV101: 0 | BW101: 0 | BX101: 0
C102: > 66 kV & < = 132 kV ; Switch | D102: 40 | E102: 6.32455532 | F102: 13 | G102: 29 | H102: 109 | I102: 98 | J102: 157 | K102: 55 | L102: 162 | M102: 118 | N102: 63 | O102: 54 | P102: 87 | Q102: 25 | R102: 42 | S102: 5 | T102: 79 | U102: 33 | V102: 84 | W102: 240 | X102: 7 | Y102: 22 | Z102: 4 | AA102: 0 | AB102: 0 | AC102: 0 | AD102: 0 | AE102: 0 | AF102: 0 | AG102: 0 | AH102: 7 | AI102: 14 | AJ102: 0 | AK102: 5 | AL102: 3 | AM102: 11 | AN102: 0 | AO102: 0 | AP102: 0 | AQ102: 0 | AR102: 0 | AS102: 18 | AT102: 0 | AU102: 0 | AV102: 0 | AW102: 0 | AX102: 0 | AY102: 0 | AZ102: 0 | BA102: 0 | BB102: 2 | BC102: 0 | BD102: 0 | BE102: 0 | BF102: 2 | BG102: 0 | BH102: 0 | BI102: 0 | BJ102: 0 | BK102: 0 | BL102: 0 | BM102: 0 | BN102: 0 | BO102: 0 | BP102: 0 | BQ102: 0 | BR102: 0 | BS102: 0 | BT102: 0 | BU102: 0 | BV102: 0 | BW102: 0 | BX102: 0
C103: > 66 kV & < = 132 kV ; Circuit Breaker | D103: 57 | E103: 7.549834435 | F103: 4 | G103: 4 | H103: 1 | I103: 8 | J103: 22 | K103: 14 | L103: 18 | M103: 44 | N103: 23 | O103: 38 | P103: 24 | Q103: 19 | R103: 23 | S103: 1 | T103: 16 | U103: 4 | V103: 6 | W103: 1 | X103: 8 | Y103: 2 | Z103: 0 | AA103: 0 | AB103: 0 | AC103: 0 | AD103: 0 | AE103: 0 | AF103: 0 | AG103: 6 | AH103: 1 | AI103: 1 | AJ103: 4 | AK103: 0 | AL103: 3 | AM103: 1 | AN103: 0 | AO103: 5 | AP103: 1 | AQ103: 0 | AR103: 0 | AS103: 1 | AT103: 0 | AU103: 0 | AV103: 4 | AW103: 0 | AX103: 0 | AY103: 0 | AZ103: 0 | BA103: 4 | BB103: 0 | BC103: 0 | BD103: 0 | BE103: 0 | BF103: 0 | BG103: 0 | BH103: 0 | BI103: 0 | BJ103: 0 | BK103: 0 | BL103: 0 | BM103: 0 | BN103: 0 | BO103: 0 | BP103: 0 | BQ103: 0 | BR103: 0 | BS103: 0 | BT103: 0 | BU103: 0 | BV103: 0 | BW103: 0 | BX103: 0
C104: > 132 kV ; Switch
C105: > 132 kV ; Circuit Breaker
C106: Other
B107: PUBLIC LIGHTING BY: ASSET TYPE ; LIGHTING OBLIGATION | C107: Luminaires ; Major Road | D107: 20 | E107: 4.472 | F107: 6973 | G107: 6987 | H107: 6393 | I107: 5942 | J107: 7012 | K107: 6065 | L107: 6103 | M107: 5091 | N107: 4786 | O107: 4283 | P107: 3715 | Q107: 3949 | R107: 3659 | S107: 3325 | T107: 3424 | U107: 2075 | V107: 2725 | W107: 3360 | X107: 2508 | Y107: 2430
C108: Luminaires ; Minor Road | D108: 20 | E108: 4.472 | F108: 16272 | G108: 22377 | H108: 23821 | I108: 26129 | J108: 17110 | K108: 11305 | L108: 12594 | M108: 11439 | N108: 12137 | O108: 10551 | P108: 10812 | Q108: 9677 | R108: 8320 | S108: 7015 | T108: 5587 | U108: 5227 | V108: 5417 | W108: 5825 | X108: 4856 | Y108: 4801
C109: Brackets ; Major Road | D109: 45 | E109: 6.71 | F109: 3364 | G109: 3142 | H109: 2685 | I109: 2588 | J109: 4187 | K109: 4341 | L109: 4021 | M109: 3602 | N109: 3882 | O109: 3615 | P109: 3265 | Q109: 3640 | R109: 3510 | S109: 3244 | T109: 3344 | U109: 2023 | V109: 2686 | W109: 3295 | X109: 2432 | Y109: 2364 | Z109: 3577 | AA109: 3751 | AB109: 3641 | AC109: 3325 | AD109: 2797 | AE109: 1703 | AF109: 2069 | AG109: 1462 | AH109: 892 | AI109: 659 | AJ109: 450 | AK109: 305 | AL109: 145 | AM109: 71 | AN109: 71 | AO109: 48 | AP109: 39 | AQ109: 57 | AR109: 76 | AS109: 65 | AT109: 26 | AU109: 89 | AV109: 66 | AW109: 14 | AX109: 6 | AY109: 17 | AZ109: 10 | BA109: 15 | BB109: 0 | BC109: 3 | BD109: 0 | BE109: 3 | BF109: 0 | BG109: 1 | BH109: 7 | BI109: 1 | BJ109: 0 | BK109: 0 | BL109: 0 | BM109: 0 | BN109: 1 | BO109: 0 | BP109: 0 | BQ109: 1 | BR109: 0 | BS109: 0
C110: Brackets ; Minor Road | D110: 45 | E110: 6.71 | F110: 9468 | G110: 12807 | H110: 14543 | I110: 18771 | J110: 9625 | K110: 5727 | L110: 6362 | M110: 6543 | N110: 8194 | O110: 7301 | P110: 7187 | Q110: 6812 | R110: 7315 | S110: 6400 | T110: 5207 | U110: 4854 | V110: 4873 | W110: 5602 | X110: 4658 | Y110: 4681 | Z110: 6607 | AA110: 9504 | AB110: 9227 | AC110: 7207 | AD110: 7436 | AE110: 5529 | AF110: 6180 | AG110: 4816 | AH110: 3885 | AI110: 3231 | AJ110: 3579 | AK110: 2849 | AL110: 982 | AM110: 601 | AN110: 363 | AO110: 367 | AP110: 541 | AQ110: 221 | AR110: 192 | AS110: 118 | AT110: 185 | AU110: 49 | AV110: 34 | AW110: 75 | AX110: 46 | AY110: 49 | AZ110: 35 | BA110: 41 | BB110: 41 | BC110: 15 | BD110: 18 | BE110: 16 | BF110: 19 | BG110: 6 | BH110: 5 | BI110: 2 | BJ110: 3 | BK110: 6 | BL110: 2 | BM110: 1 | BN110: 2 | BO110: 1 | BP110: 2 | BQ110: 0 | BR110: 2 | BS110: 4
C111: Lamps ; Major Road | D111: 5.705864005 | E111: 2.388695042 | F111: 25154 | G111: 24046 | H111: 21945 | I111: 19220 | J111: 440
C112: Lamps ; Minor Road | D112: 4.241895444 | E112: 2.059586231 | F112: 50126 | G112: 51255 | H112: 51338 | I112: 51941 | J112: 26653
C113: Poles / Columns ; Major Road | D113: 45 | E113: 6.71 | F113: 1774 | G113: 1930 | H113: 1562 | I113: 1248 | J113: 1994 | K113: 2146 | L113: 2037 | M113: 2005 | N113: 2008 | O113: 2226 | P113: 1991 | Q113: 1650 | R113: 1932 | S113: 1488 | T113: 1503 | U113: 1008 | V113: 1258 | W113: 1553 | X113: 1195 | Y113: 924 | Z113: 1075 | AA113: 817 | AB113: 844 | AC113: 1045 | AD113: 907 | AE113: 719 | AF113: 1003 | AG113: 793 | AH113: 482 | AI113: 680 | AJ113: 462 | AK113: 244 | AL113: 87 | AM113: 95 | AN113: 131 | AO113: 74 | AP113: 97 | AQ113: 109 | AR113: 32 | AS113: 20 | AT113: 63 | AU113: 38 | AV113: 8 | AW113: 25 | AX113: 17 | AY113: 40 | AZ113: 29 | BA113: 2
C114: Poles / Columns ; Minor Road | D114: 45 | E114: 6.71 | F114: 4694 | G114: 5851 | H114: 4176 | I114: 2878 | J114: 2623 | K114: 3195 | L114: 4003 | M114: 3785 | N114: 5122 | O114: 6131 | P114: 5940 | Q114: 4954 | R114: 5978 | S114: 5434 | T114: 3906 | U114: 4223 | V114: 3659 | W114: 3951 | X114: 3515 | Y114: 3207 | Z114: 2988 | AA114: 3089 | AB114: 5013 | AC114: 4126 | AD114: 4294 | AE114: 2972 | AF114: 2444 | AG114: 2350 | AH114: 1867 | AI114: 1255 | AJ114: 1590 | AK114: 1347 | AL114: 468 | AM114: 485 | AN114: 260 | AO114: 349 | AP114: 354 | AQ114: 150 | AR114: 140 | AS114: 115 | AT114: 108 | AU114: 21 | AV114: 27 | AW114: 1 | AX114: 0 | AY114: 2 | AZ114: 2 | BA114: 2
C115: Other
B116: SCADA, NETWORK CONTROL AND PROTECTION SYSTEMS BY: FUNCTION | C116: Field Devices | D116: 24.77705796 | E116: 4.97765587 | F116: 1932 | G116: 1323 | H116: 3035 | I116: 2810 | J116: 2334 | K116: 1324 | L116: 1414 | M116: 1463 | N116: 1580 | O116: 1065 | P116: 1132 | Q116: 1063 | R116: 807 | S116: 354 | T116: 386 | U116: 312 | V116: 317 | W116: 387 | X116: 88 | Y116: 123 | Z116: 108 | AA116: 107 | AB116: 70 | AC116: 86 | AD116: 119 | AE116: 103 | AF116: 187 | AG116: 183 | AH116: 215 | AI116: 256 | AJ116: 196 | AK116: 444 | AL116: 300 | AM116: 193 | AN116: 98 | AO116: 36 | AP116: 91 | AQ116: 58 | AR116: 187 | AS116: 99 | AT116: 118 | AU116: 132 | AV116: 66 | AW116: 86 | AX116: 101 | AY116: 78 | AZ116: 34 | BA116: 49 | BB116: 85 | BC116: 92 | BD116: 8 | BE116: 62 | BF116: 24 | BG116: 8 | BH116: 5 | BI116: 0 | BJ116: 4 | BK116: 0 | BL116: 0 | BM116: 5 | BN116: 0 | BO116: 4 | BP116: 0 | BQ116: 0 | BR116: 0 | BS116: 0 | BT116: 0 | BU116: 0 | BV116: 0 | BW116: 0 | BX116: 0 | BY116: 0 | BZ116: 0 | CA116: 0 | CB116: 0 | CC116: 0 | CD116: 0
C117: Local Network Wiring Assets | D117: 47.46666667 | E117: 6.889605697 | F117: 3087 | G117: 4536 | H117: 5281 | I117: 4068 | J117: 4189 | K117: 3459 | L117: 3469 | M117: 2908 | N117: 3080 | O117: 3247 | P117: 3037 | Q117: 2773 | R117: 2937 | S117: 1643 | T117: 967 | U117: 1514 | V117: 1322 | W117: 1317 | X117: 991 | Y117: 964 | Z117: 826 | AA117: 718 | AB117: 882 | AC117: 954 | AD117: 976 | AE117: 914 | AF117: 1170 | AG117: 1222 | AH117: 1633 | AI117: 930 | AJ117: 845 | AK117: 1169 | AL117: 795 | AM117: 575 | AN117: 379 | AO117: 306 | AP117: 197 | AQ117: 246 | AR117: 134 | AS117: 211 | AT117: 83 | AU117: 59 | AV117: 74 | AW117: 40 | AX117: 66 | AY117: 62 | AZ117: 66 | BA117: 131 | BB117: 50 | BC117: 37 | BD117: 22 | BE117: 75 | BF117: 54 | BG117: 24 | BH117: 26 | BI117: 16 | BJ117: 9 | BK117: 3 | BL117: 7 | BM117: 4 | BN117: 3 | BO117: 1 | BP117: 1 | BQ117: 6 | BR117: 0 | BS117: 3 | BT117: 4 | BU117: 3 | BV117: 1 | BW117: 4 | BX117: 3 | BY117: 3 | BZ117: 0 | CA117: 1 | CB117: 1 | CC117: 0 | CD117: 0 | CE117: 0 | CF117: 1 | CG117: 0 | CH117: 1 | CI117: 0 | CJ117: 1 | CK117: 0 | CL117: 0 | CM117: 0 | CN117: 0 | CO117: 0 | CP117: 0 | CQ117: 0 | CR117: 0 | CS117: 0 | CT117: 0 | CU117: 0 | CV117: 0 | CW117: 0 | CX117: 0 | CY117: 0 | CZ117: 0 | DA117: 0 | DB117: 0 | DC117: 0 | DD117: 0 | DE117: 0 | DF117: 0 | DG117: 0
C118: Communications Network Assets | D118: 11.74259204 | E118: 3.426746568 | F118: 143 | G118: 387 | H118: 414 | I118: 518 | J118: 724 | K118: 360 | L118: 197 | M118: 282 | N118: 54 | O118: 36 | P118: 36 | Q118: 27 | R118: 19 | S118: 16 | T118: 27 | U118: 9 | V118: 13 | W118: 27 | X118: 6 | Y118: 5 | Z118: 5 | AA118: 11 | AB118: 23 | AC118: 4 | AD118: 0 | AE118: 0 | AF118: 0 | AG118: 0 | AH118: 0 | AI118: 0 | AJ118: 0 | AK118: 0
C119: Master Station Assets | D119: 5 | E119: 2.236067977 | F119: 4 | G119: 4 | H119: 27 | I119: 6 | J119: 7 | K119: 58 | L119: 14 | M119: 0 | N119: 0 | O119: 0 | P119: 0 | Q119: 0
C120: Communications Site Infrastructure | D120: 21.01724138 | E120: 4.584456498 | F120: 9 | G120: 6 | H120: 17 | I120: 17 | J120: 21 | K120: 23 | L120: 23 | M120: 21 | N120: 25 | O120: 15 | P120: 13 | Q120: 13 | R120: 12 | S120: 10 | T120: 11 | U120: 14 | V120: 13 | W120: 11 | X120: 10 | Y120: 11 | Z120: 10 | AA120: 11 | AB120: 11 | AC120: 11 | AD120: 11 | AE120: 11 | AF120: 13 | AG120: 11 | AH120: 2 | AI120: 0 | AJ120: 0 | AK120: 0 | AL120: 0 | AM120: 4 | AN120: 5 | AO120: 5 | AP120: 3 | AQ120: 0 | AR120: 3 | AS120: 0 | AT120: 0 | AU120: 0 | AV120: 0
C121: Communications Linear Assets | D121: 34.31409098 | E121: 5.857823058 | F121: 131148.5065 | G121: 62999.87837 | H121: 93997.63823 | I121: 111721.3415 | J121: 194545.6811 | K121: 105369.565 | L121: 136585.7211 | M121: 393476.0976 | N121: 219679.6216 | O121: 129778.8482 | P121: 187197.8861 | Q121: 125394.9399 | R121: 89334.78158 | S121: 80390.19224 | T121: 151819.0224 | U121: 48594.11798 | V121: 65781.50444 | W121: 146299.7978 | X121: 28756.72133 | Y121: 25177.78427 | Z121: 32839.51887 | AA121: 56110.45483 | AB121: 118853.0838 | AC121: 30365.00119 | AD121: 17043.40803 | AE121: 5133.807053 | AF121: 13519.37165 | AG121: 26080.57121 | AH121: 223330.9991 | AI121: 22499.37706 | AJ121: 25222.34812 | AK121: 14871.41274 | AL121: 13977.3838 | AM121: 16128.8837 | AN121: 15955.33192 | AO121: 5775.013318 | AP121: 1454.925076 | AQ121: 32081.09792 | AR121: 74221.96351 | AS121: 18768.53348 | AT121: 22630.32032 | AU121: 22613.69261 | AV121: 7191.486803 | AW121: 13726.17886 | AX121: 10892.19266 | AY121: 35209.18683 | AZ121: 21941.30937 | BA121: 1891.402598 | BB121: 51787.01884 | BC121: 27080.31259 | BD121: 63216.49454 | BE121: 22247.88287 | BF121: 29709.57005 | BG121: 14671.88016 | BH121: 12189.15444 | BI121: 0 | BJ121: 5958.957417 | BK121: 3703.82355 | BL121: 400.1043958 | BM121: 3897.120739 | BN121: 2702.003712 | BO121: 0 | BP121: 2425.567948 | BQ121: 3273.58142 | BR121: 0 | BS121: 0 | BT121: 3429.46625 | BU121: 2494.157273 | BV121: 0 | BW121: 0 | BX121: 0
C122: AFLC | D122: 24.1 | E122: 4.909175083 | F122: 0 | G122: 0 | H122: 16 | I122: 15 | J122: 9 | K122: 11 | L122: 8 | M122: 12 | N122: 19 | O122: 10 | P122: 17 | Q122: 9 | R122: 31 | S122: 14 | T122: 9 | U122: 3 | V122: 17 | W122: 6 | X122: 5 | Y122: 0 | Z122: 2 | AA122: 4 | AB122: 3 | AC122: 1 | AD122: 0 | AE122: 0 | AF122: 2 | AG122: 7 | AH122: 0 | AI122: 1 | AJ122: 2 | AK122: 3 | AL122: 4 | AM122: 0 | AN122: 0 | AO122: 0 | AP122: 0 | AQ122: 1 | AR122: 0 | AS122: 0 | AT122: 0 | AU122: 2 | AV122: 1 | AW122: 3 | AX122: 4 | AY122: 0
C123: Other
B124: OTHER BY: DNSP DEFINED | C124: Pole Mounted ; > 22kV ; < = 60 kVA ; Multiple Phase | D124: 42 | E124: 6.480740698 | F124: 0 | G124: 0 | H124: 0 | I124: 0 | J124: 0 | K124: 0 | L124: 1 | M124: 0 | N124: 0 | O124: 0 | P124: 0 | Q124: 0 | R124: 0 | S124: 0 | T124: 0 | U124: 0 | V124: 0 | W124: 0 | X124: 0 | Y124: 0 | Z124: 0 | AA124: 0 | AB124: 0 | AC124: 0 | AD124: 0 | AE124: 0 | AF124: 0 | AG124: 0 | AH124: 0 | AI124: 0 | AJ124: 0 | AK124: 0 | AL124: 0 | AM124: 0 | AN124: 1 | AO124: 0 | AP124: 0 | AQ124: 0 | AR124: 0 | AS124: 10 | AT124: 0 | AU124: 15 | AV124: 0 | AW124: 0 | AX124: 6 | AY124: 1 | AZ124: 9 | BA124: 0 | BB124: 0 | BC124: 0 | BD124: 1 | BE124: 0 | BF124: 0 | BG124: 0 | BH124: 0 | BI124: 0 | BJ124: 1 | BK124: 0 | BL124: 0 | BM124: 0 | BN124: 0 | BO124: 0 | BP124: 0 | BQ124: 0 | BR124: 0 | BS124: 0 | BT124: 0 | BU124: 1 | BV124: 1 | BW124: 0 | BX124: 0 | BY124: 0 | BZ124: 0 | CA124: 0 | CB124: 0 | CC124: 0 | CD124: 0 | CE124: 0 | CF124: 0 | CG124: 0 | CH124: 1 | CI124: 0 | CJ124: 0 | CK124: 0 | CL124: 0
C125: Pole Mounted ; > 22kV ; > 60 kVA and < = 600 kVA ; Multiple Phase | D125: 38 | E125: 6.164414003 | F125: 0 | G125: 0 | H125: 0 | I125: 0 | J125: 0 | K125: 1 | L125: 1 | M125: 1 | N125: 0 | O125: 4 | P125: 1 | Q125: 1 | R125: 0 | S125: 0 | T125: 0 | U125: 1 | V125: 0 | W125: 0 | X125: 3 | Y125: 0 | Z125: 0 | AA125: 0 | AB125: 0 | AC125: 1 | AD125: 0 | AE125: 1 | AF125: 0 | AG125: 6 | AH125: 1 | AI125: 0 | AJ125: 9 | AK125: 0 | AL125: 0 | AM125: 0 | AN125: 2 | AO125: 0 | AP125: 0 | AQ125: 0 | AR125: 0 | AS125: 2 | AT125: 0 | AU125: 2 | AV125: 0 | AW125: 0 | AX125: 1 | AY125: 1 | AZ125: 0 | BA125: 1 | BB125: 0 | BC125: 0 | BD125: 2 | BE125: 0 | BF125: 0 | BG125: 0 | BH125: 0 | BI125: 0 | BJ125: 0 | BK125: 0 | BL125: 0 | BM125: 0 | BN125: 0 | BO125: 0 | BP125: 0 | BQ125: 0 | BR125: 0 | BS125: 0 | BT125: 0 | BU125: 0 | BV125: 0 | BW125: 0 | BX125: 0 | BY125: 0 | BZ125: 0 | CA125: 0 | CB125: 0 | CC125: 0 | CD125: 0 | CE125: 0 | CF125: 0 | CG125: 0 | CH125: 0 | CI125: 0 | CJ125: 0 | CK125: 1 | CL125: 0
C126: Regulator ; Distribution ; <= 11kV | D126: 42 | E126: 6.480740698 | F126: 0 | G126: 8 | H126: 8 | I126: 7 | J126: 9 | K126: 30 | L126: 20 | M126: 16 | N126: 17 | O126: 28 | P126: 23 | Q126: 16 | R126: 7 | S126: 9 | T126: 0 | U126: 2 | V126: 2 | W126: 11 | X126: 4 | Y126: 3 | Z126: 2 | AA126: 1 | AB126: 1 | AC126: 0 | AD126: 0 | AE126: 0 | AF126: 0 | AG126: 0 | AH126: 2 | AI126: 1 | AJ126: 0 | AK126: 0 | AL126: 0 | AM126: 0 | AN126: 0 | AO126: 0 | AP126: 0 | AQ126: 0 | AR126: 0 | AS126: 0 | AT126: 0 | AU126: 0 | AV126: 0 | AW126: 0
C127: Regulator ; Substationn ; <= 11kV | D127: 41 | E127: 6.403124237 | F127: 0 | G127: 0 | H127: 2 | I127: 0 | J127: 0 | K127: 0 | L127: 0 | M127: 0 | N127: 0 | O127: 0 | P127: 0 | Q127: 0 | R127: 0 | S127: 0 | T127: 0 | U127: 0 | V127: 0 | W127: 0 | X127: 0 | Y127: 0 | Z127: 0 | AA127: 0 | AB127: 0 | AC127: 0 | AD127: 0 | AE127: 0 | AF127: 0 | AG127: 0 | AH127: 0 | AI127: 0 | AJ127: 0 | AK127: 0 | AL127: 0 | AM127: 0 | AN127: 0 | AO127: 0 | AP127: 0 | AQ127: 0 | AR127: 0 | AS127: 0 | AT127: 0 | AU127: 0 | AV127: 0 | AW127: 0
C128: Regulator ; Substation ; > 11kV | D128: 58 | E128: 7.615773106 | F128: 0 | G128: 0 | H128: 0 | I128: 0 | J128: 0 | K128: 0 | L128: 0 | M128: 1 | N128: 0 | O128: 0 | P128: 0 | Q128: 0 | R128: 0 | S128: 0 | T128: 0 | U128: 0 | V128: 1 | W128: 0 | X128: 0 | Y128: 0 | Z128: 0 | AA128: 0 | AB128: 0 | AC128: 0 | AD128: 0 | AE128: 0 | AF128: 0 | AG128: 0 | AH128: 0 | AI128: 0 | AJ128: 0 | AK128: 0 | AL128: 0 | AM128: 2 | AN128: 0 | AO128: 0 | AP128: 0 | AQ128: 0 | AR128: 0 | AS128: 0 | AT128: 0 | AU128: 0 | AV128: 2 | AW128: 1
C129: Towers | D129: 80 | E129: 8.94 | F129: 0 | G129: 0 | H129: 0 | I129: 9 | J129: 49 | K129: 5 | L129: 31 | M129: 21 | N129: 2 | O129: 0 | P129: 1 | Q129: 5 | R129: 0 | S129: 0 | T129: 1 | U129: 15 | V129: 41 | W129: 3 | X129: 0 | Y129: 0 | Z129: 0 | AA129: 0 | AB129: 0 | AC129: 0 | AD129: 0 | AE129: 1 | AF129: 0 | AG129: 30 | AH129: 23 | AI129: 0 | AJ129: 0 | AK129: 22 | AL129: 1 | AM129: 31 | AN129: 9 | AO129: 4 | AP129: 2 | AQ129: 0 | AR129: 0 | AS129: 60 | AT129: 70 | AU129: 589 | AV129: 0 | AW129: 0 | AX129: 15 | AY129: 0 | AZ129: 15 | BA129: 29 | BB129: 0 | BC129: 31 | BD129: 42 | BE129: 0 | BF129: 4 | BG129: 0 | BH129: 0 | BI129: 0 | BJ129: 0 | BK129: 0 | BL129: 0 | BM129: 0 | BN129: 0 | BO129: 0 | BP129: 0 | BQ129: 0 | BR129: 0 | BS129: 0 | BT129: 0 | BU129: 0 | BV129: 0 | BW129: 0 | BX129: 0 | BY129: 0 | BZ129: 0 | CA129: 0 | CB129: 0 | CC129: 0 | CD129: 0 | CE129: 0 | CF129: 0 | CG129: 0 | CH129: 0 | CI129: 0 | CJ129: 0 | CK129: 0 | CL129: 0 | CM129: 0 | CN129: 0 | CO129: 0 | CP129: 0 | CQ129: 0 | CR129: 0 | CS129: 0 | CT129: 0 | CU129: 0 | CV129: 0 | CW129: 0 | CX129: 0 | CY129: 0 | CZ129: 0 | DA129: 0 | DB129: 0 | DC129: 0 | DD129: 0 | DE129: 0 | DF129: 0 | DG129: 0 | DH129: 0

Sheet 5.3 MD - Network level
B1: REGULATORY REPORTING STATEMENT
B2: =INDEX(dms_TradingNameFull_List,MATCH(dms_TradingName,dms_TradingName_List)) -> Energex
B3: =CONCATENATE((LOOKUP(dms_Model,dms_Model_List,dms_Worksheet_List))&" "&CRY) -> CATEGORY ANALYSIS 2016-17
B4: 5.3 MAXIMUM DEMAND AT NETWORK LEVEL
B7: 5.3.1 - RAW AND WEATHER CORRECTED COINCIDENT MD AT NETWORK LEVEL (Summed at transmission connection point)
C8: UNIT | D8: =CRY -> 2016-17
B9: Raw network coincident MD | C9: MW | D9: 4752.204381
B10: Date MD occurred | D10: 18/JAN/2017
B11: Half hour time period MD occurred | D11: 16:30:00
B12: Winter/summer peaking | D12: Summer
B13: Embedded generation | C13: MW | D13: 61.861948
B14: Weather corrected (10% POE) network coincident MD | C14: MW | D14: 5245.460927
B15: Weather corrected (50% POE) network coincident MD | C15: MW | D15: 4777.374228

Sheet 5.4 MD & utilisation-Spatial
B1: REGULATORY REPORTING STATEMENT
B2: =INDEX(dms_TradingNameFull_List,MATCH(dms_TradingName,dms_TradingName_List)) -> Energex
B3: =CONCATENATE((LOOKUP(dms_Model,dms_Model_List,dms_Worksheet_List))&" "&CRY) -> CATEGORY ANALYSIS 2016-17
B4: 5.4 MAXIMUM DEMAND AND UTILISATION AT SPATIAL LEVEL
B6: There is ONE table on this worksheet. It has two sub-tables based on the Network Level. Each sub-table has been grouped for ease of navigation. See the Instructions sheet on how to group or ungroup data.
B8: 5.4.1 NON-COINCIDENT & COINCIDENT MAXIMUM DEMAND
B9: NETWORK LEVEL | C9: SUBSTATION | D9: FORECASTING ELEMENTS | E9: UNIT | F9: MAX DEMAND | G9: =CRY -> 2016-17
B10: SUBTRANSMISSION SUBSTATION | C10: Abermain BS | D10: Substation Rating | E10: MVA | F10: Non-Coincident | G10: 263.5
F11: Coincident | G11: 263.5
D12: Raw Adjusted MD | E12: MW | F12: Non-Coincident | G12: 103.9827347
F13: Coincident | G13: 89.7579422
D14: Raw Adjusted MD | E14: MVA | F14: Non-Coincident | G14: 104.6443481
F15: Coincident | G15: 90.15371704
D16: Date MD occurred | F16: Non-Coincident | G16: 2017-01-14
F17: Coincident | G17: 2017-01-18
D18: Half hour time period MD occurred | F18: Non-Coincident | G18: 17:00
F19: Coincident | G19: 16:30
D20: Winter/Summer Peaking | F20: Non-Coincident | G20: SUMMER
F21: Coincident | G21: SUMMER
D22: Adjustments - Embedded generation | E22: MW | F22: Non-Coincident | G22: 2.414400101
F23: Coincident | G23: 2.280200005
D24: Weather Corrected MD 10% POE | E24: MW | F24: Non-Coincident | G24: 113.2985458
F25: Coincident | G25: 97.79935455
D26: Weather Corrected MD 10% POE | E26: MVA | F26: Non-Coincident | G26: 114.0194321
F27: Coincident | G27: 98.23058319
D28: Weather Corrected MD 50% POE | E28: MW | F28: Non-Coincident | G28: 96.83391571
F29: Coincident | G29: 83.58708191
D30: Weather Corrected MD 50% POE | E30: MVA | F30: Non-Coincident | G30: 97.45005035
F31: Coincident | G31: 83.95565033
C32: Algester BS | D32: Substation Rating | E32: MVA | F32: Non-Coincident | G32: 201.6999969
F33: Coincident | G33: 201.6999969
D34: Raw Adjusted MD | E34: MW | F34: Non-Coincident | G34: 69.80805969
F35: Coincident | G35: 62.13292694
D36: Raw Adjusted MD | E36: MVA | F36: Non-Coincident | G36: 71.62905884
F37: Coincident | G37: 63.57460403
D38: Date MD occurred | F38: Non-Coincident | G38: 2017-01-12
F39: Coincident | G39: 2017-01-18
D40: Half hour time period MD occurred | F40: Non-Coincident | G40: 16:00
F41: Coincident | G41: 16:30
D42: Winter/Summer Peaking | F42: Non-Coincident | G42: SUMMER
F43: Coincident | G43: SUMMER
D44: Adjustments - Embedded generation | E44: MW | F44: Non-Coincident | G44: 0.9215999842
F45: Coincident | G45: 1.720242023
D46: Weather Corrected MD 10% POE | E46: MW | F46: Non-Coincident | G46: 76.35604858
F47: Coincident | G47: 67.96099091
D48: Weather Corrected MD 10% POE | E48: MVA | F48: Non-Coincident | G48: 78.34786224
F49: Coincident | G49: 69.5378952
D50: Weather Corrected MD 50% POE | E50: MW | F50: Non-Coincident | G50: 65.82341003
F51: Coincident | G51: 58.58637619
D52: Weather Corrected MD 50% POE | E52: MVA | F52: Non-Coincident | G52: 67.54046631
F53: Coincident | G53: 59.94576263
C54: Archerfield BS | D54: Substation Rating | E54: MVA | F54: Non-Coincident | G54: 175.5
F55: Coincident | G55: 175.5
D56: Raw Adjusted MD | E56: MW | F56: Non-Coincident | G56: 71.0151062
F57: Coincident | G57: 55.29556274
D58: Raw Adjusted MD | E58: MVA | F58: Non-Coincident | G58: 73.95350647
F59: Coincident | G59: 56.2930603
D60: Date MD occurred | F60: Non-Coincident | G60: 2017-01-18
F61: Coincident | G61: 2017-01-18
D62: Half hour time period MD occurred | F62: Non-Coincident | G62: 13:30
F63: Coincident | G63: 16:30
D64: Winter/Summer Peaking | F64: Non-Coincident | G64: SUMMER
F65: Coincident | G65: SUMMER
D66: Adjustments - Embedded generation | E66: MW | F66: Non-Coincident | G66: 0
F67: Coincident | G67: 1.414378047
D68: Weather Corrected MD 10% POE | E68: MW | F68: Non-Coincident | G68: 75.20357513
F69: Coincident | G69: 58.55689621
D70: Weather Corrected MD 10% POE | E70: MVA | F70: Non-Coincident | G70: 78.31528473
F71: Coincident | G71: 59.61322403
D72: Weather Corrected MD 50% POE | E72: MW | F72: Non-Coincident | G72: 70.9341507
F73: Coincident | G73: 55.23252487
D74: Weather Corrected MD 50% POE | E74: MVA | F74: Non-Coincident | G74: 73.86920166
F75: Coincident | G75: 56.22888565
C76: Ashgrove West BS | D76: Substation Rating | E76: MVA | F76: Non-Coincident | G76: 168.1999969
F77: Coincident | G77: 168.1999969
D78: Raw Adjusted MD | E78: MW | F78: Non-Coincident | G78: 74.28066254
F79: Coincident | G79: 64.26821899
D80: Raw Adjusted MD | E80: MVA | F80: Non-Coincident | G80: 75.71208954
F81: Coincident | G81: 65.10176086
D82: Date MD occurred | F82: Non-Coincident | G82: 2017-02-12
F83: Coincident | G83: 2017-01-18
D84: Half hour time period MD occurred | F84: Non-Coincident | G84: 17:00
F85: Coincident | G85: 16:30
D86: Winter/Summer Peaking | F86: Non-Coincident | G86: SUMMER
F87: Coincident | G87: SUMMER
D88: Adjustments - Embedded generation | E88: MW | F88: Non-Coincident | G88: 0
F89: Coincident | G89: 0
D90: Weather Corrected MD 10% POE | E90: MW | F90: Non-Coincident | G90: 81.22218323
F91: Coincident | G91: 70.27407837
D92: Weather Corrected MD 10% POE | E92: MVA | F92: Non-Coincident | G92: 82.78738403
F93: Coincident | G93: 71.18551636
D94: Weather Corrected MD 50% POE | E94: MW | F94: Non-Coincident | G94: 66.64609528
F95: Coincident | G95: 57.66273117
D96: Weather Corrected MD 50% POE | E96: MVA | F96: Non-Coincident | G96: 67.93040466
F97: Coincident | G97: 58.41060257
C98: Beaudesert BS | D98: Substation Rating | E98: MVA | F98: Non-Coincident | G98: 145.1000061
F99: Coincident | G99: 145.1000061
D100: Raw Adjusted MD | E100: MW | F100: Non-Coincident | G100: 39.80500031
F101: Coincident | G101: 28.45149994
D102: Raw Adjusted MD | E102: MVA | F102: Non-Coincident | G102: 41.19603348
F103: Coincident | G103: 28.60969734
D104: Date MD occurred | F104: Non-Coincident | G104: 2016-12-06
F105: Coincident | G105: 2016-06-27
D106: Half hour time period MD occurred | F106: Non-Coincident | G106: 17:30
F107: Coincident | G107: 18:30
D108: Winter/Summer Peaking | F108: Non-Coincident | G108: SUMMER
F109: Coincident | G109: WINTER
D110: Adjustments - Embedded generation | E110: MW | F110: Non-Coincident | G110: 0
F111: Coincident | G111: 0
D112: Weather Corrected MD 10% POE | E112: MW | F112: Non-Coincident | G112: 44.01119232
F113: Coincident | G113: 30.5697155
D114: Weather Corrected MD 10% POE | E114: MVA | F114: Non-Coincident | G114: 45.54921722
F115: Coincident | G115: 30.73968887
D116: Weather Corrected MD 50% POE | E116: MW | F116: Non-Coincident | G116: 38.32863235
F117: Coincident | G117: 29.17473602
D118: Weather Corrected MD 50% POE | E118: MVA | F118: Non-Coincident | G118: 39.66807175
F119: Coincident | G119: 29.33695412
C120: Beenleigh BS | D120: Substation Rating | E120: MVA | F120: Non-Coincident | G120: 259.6000061
F121: Coincident | G121: 259.6000061
D122: Raw Adjusted MD | E122: MW | F122: Non-Coincident | G122: 120.0822754
F123: Coincident | G123: 118.0847168
D124: Raw Adjusted MD | E124: MVA | F124: Non-Coincident | G124: 120.3016739
F125: Coincident | G125: 118.3489685
D126: Date MD occurred | F126: Non-Coincident | G126: 2017-01-18
F127: Coincident | G127: 2017-01-18
D128: Half hour time period MD occurred | F128: Non-Coincident | G128: 17:00
F129: Coincident | G129: 16:30
D130: Winter/Summer Peaking | F130: Non-Coincident | G130: SUMMER
F131: Coincident | G131: SUMMER
D132: Adjustments - Embedded generation | E132: MW | F132: Non-Coincident | G132: 1.811352015
F133: Coincident | G133: 1.811561942
D134: Weather Corrected MD 10% POE | E134: MW | F134: Non-Coincident | G134: 137.796814
F135: Coincident | G135: 135.5045776
D136: Weather Corrected MD 10% POE | E136: MVA | F136: Non-Coincident | G136: 138.048584
F137: Coincident | G137: 135.8078156
D138: Weather Corrected MD 50% POE | E138: MW | F138: Non-Coincident | G138: 117.6373978
F139: Coincident | G139: 115.6805115
D140: Weather Corrected MD 50% POE | E140: MVA | F140: Non-Coincident | G140: 117.8523331
F141: Coincident | G141: 115.9393845
C142: Beerwah BS | D142: Substation Rating | E142: MVA | F142: Non-Coincident | G142: 143.5
F143: Coincident | G143: 143.5
D144: Raw Adjusted MD | E144: MW | F144: Non-Coincident | G144: 49.88697433
F145: Coincident | G145: 42.23662567
D146: Raw Adjusted MD | E146: MVA | F146: Non-Coincident | G146: 50.96074295
F147: Coincident | G147: 43.54991531
D148: Date MD occurred | F148: Non-Coincident | G148: 2017-02-12
F149: Coincident | G149: 2017-01-18
D150: Half hour time period MD occurred | F150: Non-Coincident | G150: 18:30
F151: Coincident | G151: 16:30
D152: Winter/Summer Peaking | F152: Non-Coincident | G152: SUMMER
F153: Coincident | G153: SUMMER
D154: Adjustments - Embedded generation | E154: MW | F154: Non-Coincident | G154: 0
F155: Coincident | G155: 0
D156: Weather Corrected MD 10% POE | E156: MW | F156: Non-Coincident | G156: 53.49729538
F157: Coincident | G157: 45.293293
D158: Weather Corrected MD 10% POE | E158: MVA | F158: Non-Coincident | G158: 54.64877319
F159: Coincident | G159: 46.70162582
D160: Weather Corrected MD 50% POE | E160: MW | F160: Non-Coincident | G160: 46.43729019
F161: Coincident | G161: 39.31596375
D162: Weather Corrected MD 50% POE | E162: MVA | F162: Non-Coincident | G162: 47.43680954
F163: Coincident | G163: 40.5384407
C164: Belmont BS | D164: Substation Rating | E164: MVA | F164: Non-Coincident | G164: 298.8999939
F165: Coincident | G165: 298.8999939
D166: Raw Adjusted MD | E166: MW | F166: Non-Coincident | G166: 123.3397217
F167: Coincident | G167: 119.120697
D168: Raw Adjusted MD | E168: MVA | F168: Non-Coincident | G168: 123.5514526
F169: Coincident | G169: 120.157608
D170: Date MD occurred | F170: Non-Coincident | G170: 2017-02-12
F171: Coincident | G171: 2017-01-18
D172: Half hour time period MD occurred | F172: Non-Coincident | G172: 16:30
F173: Coincident | G173: 16:30
D174: Winter/Summer Peaking | F174: Non-Coincident | G174: SUMMER
F175: Coincident | G175: SUMMER
D176: Adjustments - Embedded generation | E176: MW | F176: Non-Coincident | G176: 3.756599903
F177: Coincident | G177: 3.869839907
D178: Weather Corrected MD 10% POE | E178: MW | F178: Non-Coincident | G178: 142.5918274
F179: Coincident | G179: 137.7142487
D180: Weather Corrected MD 10% POE | E180: MVA | F180: Non-Coincident | G180: 142.8366089
F181: Coincident | G181: 138.9130096
D182: Weather Corrected MD 50% POE | E182: MW | F182: Non-Coincident | G182: 121.5500641
F183: Coincident | G183: 117.3922577
D184: Weather Corrected MD 50% POE | E184: MVA | F184: Non-Coincident | G184: 121.7587204
F185: Coincident | G185: 118.4141235
C186: Brendale BS | D186: Substation Rating | E186: MVA | F186: Non-Coincident | G186: 273.2000122
F187: Coincident | G187: 273.2000122
D188: Raw Adjusted MD | E188: MW | F188: Non-Coincident | G188: 192.3798676
F189: Coincident | G189: 167.8486481
D190: Raw Adjusted MD | E190: MVA | F190: Non-Coincident | G190: 192.7608795
F191: Coincident | G191: 168.198288
D192: Date MD occurred | F192: Non-Coincident | G192: 2017-02-12
F193: Coincident | G193: 2017-01-18
D194: Half hour time period MD occurred | F194: Non-Coincident | G194: 17:30
F195: Coincident | G195: 16:30
D196: Winter/Summer Peaking | F196: Non-Coincident | G196: SUMMER
F197: Coincident | G197: SUMMER
D198: Adjustments - Embedded generation | E198: MW | F198: Non-Coincident | G198: 0
F199: Coincident | G199: 0
D200: Weather Corrected MD 10% POE | E200: MW | F200: Non-Coincident | G200: 216.1772614
F201: Coincident | G201: 188.6115265
D202: Weather Corrected MD 10% POE | E202: MVA | F202: Non-Coincident | G202: 216.6054077
... 11226 more rows

Sheet 6.3 Sustained interruptionss
B1: REGULATORY REPORTING STATEMENT
B2: =INDEX(dms_TradingNameFull_List,MATCH(dms_TradingName,dms_TradingName_List)) -> Energex
B3: =CONCATENATE((LOOKUP(dms_Model,dms_Model_List,dms_Worksheet_List))&" "&CRY) -> CATEGORY ANALYSIS 2016-17
B4: 6.3 SUSTAINED INTERRUPTIONS TO SUPPLY
B6: 6.3.1 - SUSTAINED INTERRUPTIONS TO SUPPLY (for 2015-16)
B8: There is ONE table on this worksheet. It has been grouped into five subgroups of 10000 rows each for navigation purposes. See the Instructions sheet on how to group and ungroup data.
B10: Definitions:
B11: Feeder classification definitions (column E) | G11: Average duration of sustained customer interruption (column I) | I11: Effect on unplanned SAIDI (column J) | K11: Effect on unplanned SAIFI (column K)
B12: CBD feeder: a feeder supplying predominantly commercial, high-rise buildings, supplied by a predominantly underground distribution network containing significant interconnection and redundancy when compared to urban areas. Urban feeder: a feeder, that is not a CBD feeder, with actual maximum demand over the reporting period per total feeder route length greater than 0.3 MVA/km. Short rural feeder: a feeder that is not a CBD or urban feeder with a total feeder route length less than 200 km. Long rural feeder: a feeder that is not a CBD or urban feeder with a total feeder route length greater than 200 km. | G12: The average duration of an interruption experienced by an affected customer. | I12: The sum of the duration of each unplanned sustained customer interruption (in minutes) divided by the total number of distribution customers. Unplanned SAIDI excludes momentary interruptions (one minute or less). | K12: The total number of unplanned sustained customer interruptions divided by the total number of distribution customers. Unplanned SAIFI excludes momentary interruptions (one minute or less). SAIFI is expressed per 0.01 interruptions.
B14: Date of event (DD/MM/YYYY) | C14: Time of interruption (HH:MM) | D14: Asset ID (eg. feeder ID) | E14: Feeder classification (CBD, Urban, Short rural, Long rural) | F14: Reason for interruption (select from options in drop-down box) | G14: Detailed reason for interruption (select from options in column 'O' that correspond with reason in column 'F') | H14: Number of customers affected by the interruption | I14: Average duration of sustained customer interruption (minutes) | J14: Effect on unplanned SAIDI (by feeder classification) | K14: Effect on unplanned SAIFI (by feeder classification) | L14: MED
B15: 01/07/2016 | C15: 01:36:00 | D15: MMC33A | E15: Urban | F15: Asset failure | G15: LV | H15: 1 | I15: 1085 | J15: 0.001071479 | K15: 9.87888e-07 | L15: NO
B16: 2016-07-01 | C16: 02:55:00 | D16: BVL10A | E16: Urban | F16: Animal | G16: Animal impact | H16: 74 | I16: 160 | J16: 0.011696588 | K16: 7.31037e-05 | L16: NO
B17: 2016-07-01 | C17: 03:52:00 | D17: BVL10A | E17: Urban | F17: Asset failure | G17: HV | H17: 74 | I17: 18 | J17: 0.001315866 | K17: 7.31037e-05 | L17: NO
B18: 2016-07-01 | C18: 04:49:00 | D18: ENG17A | E18: Urban | F18: Animal | G18: Animal impact | H18: 87 | I18: 76 | J18: 0.006531912 | K18: 8.59462e-05 | L18: NO
B19: 2016-07-01 | C19: 06:24:00 | D19: ARG5A | E19: Urban | F19: Planned | H19: 1 | I19: 75 | J19: 7.40916e-05 | K19: 9.87888e-07 | L19: NO
B20: 2016-07-01 | C20: 06:33:00 | D20: CNB26A | E20: Short Rural | F20: Animal | G20: Animal nesting/burrowing, etc and other | H20: 3 | I20: 48 | J20: 0.00035257 | K20: 7.3452e-06 | L20: NO
B21: 2016-07-01 | C21: 07:34:00 | D21: BKD13A | E21: Urban | F21: Asset failure | G21: LV | H21: 1 | I21: 81.8 | J21: 8.07927e-05 | K21: 9.87888e-07 | L21: NO
B22: 2016-07-01 | C22: 07:42:00 | D22: PWC2 | E22: Short Rural | F22: Overloads | H22: 1 | I22: 137.6 | J22: 0.0003369 | K22: 2.4484e-06 | L22: NO
B23: 2016-07-01 | C23: 08:00:00 | D23: WMD13A | E23: Short Rural | F23: Planned | H23: 39 | I23: 144 | J23: 0.013750214 | K23: 9.54876e-05 | L23: NO
B24: 2016-07-01 | C24: 08:03:00 | D24: NRA1A | E24: Short Rural | F24: Unknown | G24: Unknown | H24: 13 | I24: 97 | J24: 0.003087432 | K24: 3.18292e-05 | L24: NO
B25: 2016-07-01 | C25: 08:06:00 | D25: BBH16A | E25: Urban | F25: Planned | H25: 12 | I25: 332 | J25: 0.003935744 | K25: 1.18547e-05 | L25: NO
B26: 2016-07-01 | C26: 08:06:00 | D26: KBR2A | E26: Short Rural | F26: Planned | H26: 2 | I26: 235 | J26: 0.001150748 | K26: 4.8968e-06 | L26: NO
B27: 2016-07-01 | C27: 08:07:00 | D27: GYN3A | E27: Short Rural | F27: Planned | H27: 5 | I27: 401 | J27: 0.004909042 | K27: 1.2242e-05 | L27: NO
B28: 2016-07-01 | C28: 08:08:00 | D28: KMR25A | E28: Short Rural | F28: Planned | H28: 43 | I28: 207 | J28: 0.021793208 | K28: 0.000105281 | L28: NO
B29: 2016-07-01 | C29: 08:16:00 | D29: MCN3 | E29: Urban | F29: Planned | H29: 1 | I29: 104 | J29: 0.00010274 | K29: 9.87888e-07 | L29: NO
B30: 2016-07-01 | C30: 08:16:00 | D30: GYN3A | E30: Short Rural | F30: Planned | H30: 2 | I30: 316 | J30: 0.001547389 | K30: 4.8968e-06 | L30: NO
B31: 2016-07-01 | C31: 08:20:00 | D31: CBT15A | E31: Short Rural | F31: Planned | H31: 1 | I31: 116 | J31: 0.000284014 | K31: 2.4484e-06 | L31: NO
B32: 2016-07-01 | C32: 08:29:00 | D32: NMK11A | E32: Urban | F32: Planned | H32: 12 | I32: 148 | J32: 0.001754488 | K32: 1.18547e-05 | L32: NO
B33: 2016-07-01 | C33: 08:29:00 | D33: RCF1A | E33: Urban | F33: Planned | H33: 15 | I33: 294 | J33: 0.004356584 | K33: 1.48183e-05 | L33: NO
B34: 2016-07-01 | C34: 08:30:00 | D34: LTA3A | E34: Short Rural | F34: Planned | H34: 19 | I34: 145 | J34: 0.006745342 | K34: 4.65196e-05 | L34: NO
B35: 2016-07-01 | C35: 08:34:00 | D35: SPD11A | E35: Urban | F35: Planned | H35: 13 | I35: 306 | J35: 0.003929817 | K35: 1.28425e-05 | L35: NO
B36: 2016-07-01 | C36: 08:34:00 | D36: TGP2A | E36: Urban | F36: Planned | H36: 10 | I36: 131 | J36: 0.001294133 | K36: 9.87888e-06 | L36: NO
B37: 2016-07-01 | C37: 08:34:00 | D37: NGI3A | E37: Short Rural | F37: Planned | H37: 16 | I37: 110 | J37: 0.004309184 | K37: 3.91744e-05 | L37: NO
B38: 2016-07-01 | C38: 08:36:00 | D38: CLD2 | E38: Urban | F38: Planned | H38: 13 | I38: 309 | J38: 0.003968344 | K38: 1.28425e-05 | L38: NO
B39: 2016-07-01 | C39: 08:36:00 | D39: LBH5A | E39: Short Rural | F39: Planned | H39: 19 | I39: 154 | J39: 0.007164018 | K39: 4.65196e-05 | L39: NO
B40: 2016-07-01 | C40: 08:42:00 | D40: NBR7A | E40: Short Rural | F40: Planned | H40: 23 | I40: 200 | J40: 0.01126264 | K40: 5.63132e-05 | L40: NO
B41: 2016-07-01 | C41: 08:43:00 | D41: COR22A | E41: Short Rural | F41: Planned | H41: 29 | I41: 119 | J41: 0.008449428 | K41: 7.10036e-05 | L41: NO
B42: 2016-07-01 | C42: 08:45:00 | D42: MAI11 | E42: Urban | F42: Planned | H42: 9 | I42: 145 | J42: 0.001289193 | K42: 8.89099e-06 | L42: NO
B43: 2016-07-01 | C43: 08:45:00 | D43: RCF1A | E43: Urban | F43: Planned | H43: 8 | I43: 225 | J43: 0.001778198 | K43: 7.9031e-06 | L43: NO
B44: 2016-07-01 | C44: 08:48:00 | D44: BLB5A | E44: Urban | F44: Planned | H44: 12 | I44: 133 | J44: 0.001576668 | K44: 1.18547e-05 | L44: NO
B45: 2016-07-01 | C45: 08:54:00 | D45: AGT33A | E45: Urban | F45: Planned | H45: 1 | I45: 311 | J45: 0.000307233 | K45: 9.87888e-07 | L45: NO
B46: 2016-07-01 | C46: 08:57:00 | D46: BHD23A | E46: Short Rural | F46: Planned | H46: 4 | I46: 183 | J46: 0.001792229 | K46: 9.7936e-06 | L46: NO
B47: 2016-07-01 | C47: 09:00:00 | D47: WNM2A | E47: Urban | F47: Planned | H47: 2 | I47: 387 | J47: 0.000764625 | K47: 1.97578e-06 | L47: NO
B48: 2016-07-01 | C48: 09:02:00 | D48: LWD1 | E48: Short Rural | F48: Planned | H48: 1 | I48: 42 | J48: 0.000102833 | K48: 2.4484e-06 | L48: NO
B49: 2016-07-01 | C49: 09:04:00 | D49: PRG2A | E49: Short Rural | F49: Planned | H49: 18 | I49: 123 | J49: 0.005420758 | K49: 4.40712e-05 | L49: NO
B50: 2016-07-01 | C50: 09:17:00 | D50: CRB25A | E50: Short Rural | F50: Planned | H50: 4 | I50: 163 | J50: 0.001596357 | K50: 9.7936e-06 | L50: NO
B51: 2016-07-01 | C51: 09:25:00 | D51: TWG17 | E51: Urban | F51: Planned | H51: 4 | I51: 89 | J51: 0.000351688 | K51: 3.95155e-06 | L51: NO
B52: 2016-07-01 | C52: 09:29:00 | D52: WHO9 | E52: Short Rural | F52: Planned | H52: 1 | I52: 325 | J52: 0.00079573 | K52: 2.4484e-06 | L52: NO
B53: 2016-07-01 | C53: 10:07:00 | D53: BDL5 | E53: Urban | F53: Third party | G53: Vehicle impact | H53: 107 | I53: 143 | J53: 0.015115667 | K53: 0.000105704 | L53: NO
B54: 2016-07-01 | C54: 10:07:00 | D54: CBW6 | E54: Short Rural | F54: Unknown | G54: Unknown | H54: 12 | I54: 88 | J54: 0.00258551 | K54: 2.93808e-05 | L54: NO
B55: 2016-07-01 | C55: 10:48:00 | D55: LWD1 | E55: Short Rural | F55: Planned | H55: 1 | I55: 32 | J55: 7.83488e-05 | K55: 2.4484e-06 | L55: NO
B56: 2016-07-01 | C56: 10:56:00 | D56: BHD23A | E56: Short Rural | F56: Asset failure | G56: LV | H56: 1 | I56: 125.9 | J56: 0.000308131 | K56: 2.4484e-06 | L56: NO
B57: 2016-07-01 | C57: 11:03:00 | D57: CBT12A | E57: Short Rural | F57: Planned | H57: 1 | I57: 69 | J57: 0.00016894 | K57: 2.4484e-06 | L57: NO
B58: 2016-07-01 | C58: 11:03:00 | D58: DRD13A | E58: Urban | F58: Overloads | H58: 1 | I58: 217.6 | J58: 0.000214931 | K58: 9.87888e-07 | L58: NO
B59: 2016-07-01 | C59: 11:07:00 | D59: JBB16A | E59: Short Rural | F59: Planned | H59: 12 | I59: 96 | J59: 0.002820557 | K59: 2.93808e-05 | L59: NO
B60: 2016-07-01 | C60: 11:09:00 | D60: WRD19A | E60: Urban | F60: Planned | H60: 10 | I60: 166 | J60: 0.001639893 | K60: 9.87888e-06 | L60: NO
B61: 2016-07-01 | C61: 11:11:00 | D61: COR22A | E61: Short Rural | F61: Planned | H61: 10 | I61: 49 | J61: 0.001199716 | K61: 2.4484e-05 | L61: NO
B62: 2016-07-01 | C62: 11:22:00 | D62: MFD8A | E62: Short Rural | F62: Asset failure | G62: LV | H62: 1 | I62: 55.3 | J62: 0.000135274 | K62: 2.4484e-06 | L62: NO
B63: 2016-07-01 | C63: 11:44:00 | D63: MFD8A | E63: Short Rural | F63: Asset failure | G63: LV | H63: 23 | I63: 65.2 | J63: 0.003673498 | K63: 5.63132e-05 | L63: NO
B64: 2016-07-01 | C64: 11:57:00 | D64: STT1B | E64: Short Rural | F64: Overloads | H64: 1 | I64: 192.3 | J64: 0.000470787 | K64: 2.4484e-06 | L64: NO
B65: 2016-07-01 | C65: 12:12:00 | D65: TSN5A | E65: Urban | F65: Planned | H65: 2 | I65: 82 | J65: 0.000162014 | K65: 1.97578e-06 | L65: NO
B66: 2016-07-01 | C66: 12:12:00 | D66: PRG2A | E66: Short Rural | F66: Planned | H66: 18 | I66: 106 | J66: 0.004671547 | K66: 4.40712e-05 | L66: NO
B67: 2016-07-01 | C67: 12:20:00 | D67: LRE8A | E67: Short Rural | F67: Planned | H67: 6 | I67: 25 | J67: 0.00036726 | K67: 1.46904e-05 | L67: NO
B68: 2016-07-01 | C68: 14:04:00 | D68: NIP4A | E68: Short Rural | F68: Asset failure | G68: LV | H68: 1 | I68: 101.7 | J68: 0.000248921 | K68: 2.4484e-06 | L68: NO
B69: 2016-07-01 | C69: 14:05:00 | D69: BDT4 | E69: Short Rural | F69: Planned | H69: 5 | I69: 83 | J69: 0.001016086 | K69: 1.2242e-05 | L69: NO
B70: 2016-07-01 | C70: 14:57:00 | D70: BDA12B | E70: Urban | F70: Asset failure | G70: LV | H70: 1 | I70: 97.1 | J70: 9.59403e-05 | K70: 9.87888e-07 | L70: NO
B71: 2016-07-01 | C71: 15:43:00 | D71: KSN14 | E71: Urban | F71: Asset failure | G71: LV | H71: 1 | I71: 89.5 | J71: 8.83995e-05 | K71: 9.87888e-07 | L71: NO
B72: 2016-07-01 | C72: 16:12:00 | D72: MBG2 | E72: Short Rural | F72: Third party | G72: Vehicle impact | H72: 12 | I72: 54.7 | J72: 0.003124158 | K72: 2.93808e-05 | L72: NO
B73: 2016-07-01 | C73: 17:15:00 | D73: PWC3 | E73: Short Rural | F73: Third party | G73: Unauthorised access | H73: 1 | I73: 235 | J73: 0.000575374 | K73: 2.4484e-06 | L73: NO
B74: 2016-07-01 | C74: 18:06:00 | D74: CCY13A | E74: Urban | F74: Asset failure | G74: LV | H74: 24 | I74: 39 | J74: 0.000924663 | K74: 2.37093e-05 | L74: NO
B75: 2016-07-01 | C75: 21:40:00 | D75: LLY5 | E75: Short Rural | F75: Overloads | H75: 1 | I75: 118 | J75: 0.000288952 | K75: 2.4484e-06 | L75: NO
B76: 2016-07-02 | C76: 00:57:00 | D76: WRG19A | E76: Urban | F76: Asset failure | G76: LV | H76: 1 | I76: 96.8 | J76: 9.56275e-05 | K76: 9.87888e-07 | L76: NO
B77: 2016-07-02 | C77: 06:08:00 | D77: WED15B | E77: Urban | F77: Planned | H77: 1 | I77: 6 | J77: 5.92733e-06 | K77: 9.87888e-07 | L77: NO
B78: 2016-07-02 | C78: 06:37:00 | D78: WED17B | E78: Urban | F78: Planned | H78: 1 | I78: 13 | J78: 1.28425e-05 | K78: 9.87888e-07 | L78: NO
B79: 2016-07-02 | C79: 07:00:00 | D79: YTA41A | E79: Short Rural | F79: Planned | H79: 2 | I79: 316 | J79: 0.001547389 | K79: 4.8968e-06 | L79: NO
B80: 2016-07-02 | C80: 07:18:00 | D80: MTG4B | E80: Urban | F80: Planned | H80: 1 | I80: 9 | J80: 8.89099e-06 | K80: 9.87888e-07 | L80: NO
B81: 2016-07-02 | C81: 08:21:00 | D81: BVL5A | E81: Urban | F81: Asset failure | G81: LV | H81: 1 | I81: 54.8 | J81: 5.40868e-05 | K81: 9.87888e-07 | L81: NO
B82: 2016-07-02 | C82: 08:51:00 | D82: MLY3 | E82: Short Rural | F82: Asset failure | G82: LV | H82: 1 | I82: 106 | J82: 0.000259449 | K82: 2.4484e-06 | L82: NO
B83: 2016-07-02 | C83: 09:10:00 | D83: TMH2A | E83: Short Rural | F83: Unknown | G83: Unknown | H83: 454 | I83: 122.7 | J83: 0.131982061 | K83: 0.001111574 | L83: NO
B84: 2016-07-02 | C84: 11:33:00 | D84: TCB3 | E84: Short Rural | F84: Asset failure | G84: LV | H84: 1 | I84: 342.1 | J84: 0.000837638 | K84: 2.4484e-06 | L84: NO
B85: 2016-07-02 | C85: 14:53:00 | D85: NSW3A | E85: Urban | F85: Asset failure | G85: LV | H85: 1 | I85: 179.8 | J85: 0.000177606 | K85: 9.87888e-07 | L85: NO
B86: 2016-07-02 | C86: 16:26:00 | D86: BTY7A | E86: Urban | F86: Overloads | H86: 1 | I86: 121.7 | J86: 0.000120226 | K86: 9.87888e-07 | L86: NO
B87: 2016-07-02 | C87: 16:59:00 | D87: JBB2A | E87: Short Rural | F87: Asset failure | G87: LV | H87: 8 | I87: 50.4 | J87: 0.000986542 | K87: 1.95872e-05 | L87: NO
B88: 2016-07-02 | C88: 18:26:00 | D88: NBR13A | E88: Urban | F88: Asset failure | G88: LV | H88: 1 | I88: 143.3 | J88: 0.000141597 | K88: 9.87888e-07 | L88: NO
B89: 2016-07-02 | C89: 21:19:00 | D89: BPN4 | E89: Urban | F89: Overloads | H89: 1 | I89: 89 | J89: 8.78726e-05 | K89: 9.87888e-07 | L89: NO
B90: 2016-07-03 | C90: 00:03:00 | D90: COR26A | E90: Short Rural | F90: Overloads | H90: 1 | I90: 135.9 | J90: 0.000332615 | K90: 2.4484e-06 | L90: NO
B91: 2016-07-03 | C91: 07:35:00 | D91: TAB3 | E91: Urban | F91: Planned | H91: 1 | I91: 371 | J91: 0.000366506 | K91: 9.87888e-07 | L91: NO
B92: 2016-07-03 | C92: 07:54:00 | D92: SPO8A | E92: Urban | F92: Planned | H92: 2 | I92: 344 | J92: 0.000679667 | K92: 1.97578e-06 | L92: NO
B93: 2016-07-03 | C93: 08:03:00 | D93: AHD7 | E93: Urban | F93: Planned | H93: 36 | I93: 97 | J93: 0.003449703 | K93: 3.5564e-05 | L93: NO
B94: 2016-07-03 | C94: 08:05:00 | D94: KRN10 | E94: Urban | F94: Planned | H94: 34 | I94: 286 | J94: 0.009606218 | K94: 3.35882e-05 | L94: NO
B95: 2016-07-03 | C95: 08:05:00 | D95: SFD6B | E95: Urban | F95: Planned | H95: 1 | I95: 286 | J95: 0.000282536 | K95: 9.87888e-07 | L95: NO
B96: 2016-07-03 | C96: 08:09:00 | D96: AMR3 | E96: Short Rural | F96: Planned | H96: 1 | I96: 197 | J96: 0.000482335 | K96: 2.4484e-06 | L96: NO
B97: 2016-07-03 | C97: 08:13:00 | D97: KWA10A | E97: Urban | F97: Planned | H97: 37 | I97: 438 | J97: 0.016009705 | K97: 3.65518e-05 | L97: NO
B98: 2016-07-03 | C98: 08:15:00 | D98: NBR16A | E98: Urban | F98: Planned | H98: 137 | I98: 342 | J98: 0.046286481 | K98: 0.000135341 | L98: NO
B99: 2016-07-03 | C99: 08:25:00 | D99: CPR17A | E99: Urban | F99: Asset failure | G99: LV | H99: 1 | I99: 87.2 | J99: 8.60944e-05 | K99: 9.87888e-07 | L99: NO
B100: 2016-07-03 | C100: 08:27:00 | D100: TAB3 | E100: Urban | F100: Planned | H100: 1 | I100: 425 | J100: 0.000419852 | K100: 9.87888e-07 | L100: NO
B101: 2016-07-03 | C101: 08:38:00 | D101: JBB2A | E101: Short Rural | F101: Overloads | H101: 8 | I101: 81.3 | J101: 0.001591786 | K101: 1.95872e-05 | L101: NO
B102: 2016-07-03 | C102: 08:39:00 | D102: SHW6B | E102: Urban | F102: Asset failure | G102: LV | H102: 1 | I102: 111.2 | J102: 0.00010982 | K102: 9.87888e-07 | L102: NO
B103: 2016-07-03 | C103: 08:40:00 | D103: SMR9A | E103: Urban | F103: Planned | H103: 5 | I103: 302 | J103: 0.00149171 | K103: 4.93944e-06 | L103: NO
B104: 2016-07-03 | C104: 08:40:00 | D104: KWA10A | E104: Urban | F104: Planned | H104: 55 | I104: 461 | J104: 0.025047888 | K104: 5.43338e-05 | L104: NO
B105: 2016-07-03 | C105: 08:58:00 | D105: HDA13A | E105: Urban | F105: Overloads | H105: 1 | I105: 78.9 | J105: 7.79608e-05 | K105: 9.87888e-07 | L105: NO
B106: 2016-07-03 | C106: 09:44:00 | D106: MRE1 | E106: Urban | F106: Asset failure | G106: LV | H106: 9 | I106: 80 | J106: 0.000711279 | K106: 8.89099e-06 | L106: NO
B107: 2016-07-03 | C107: 09:44:00 | D107: EMD3 | E107: Short Rural | F107: Asset failure | G107: LV | H107: 10 | I107: 80 | J107: 0.001959128 | K107: 2.4484e-05 | L107: NO
B108: 2016-07-03 | C108: 09:53:00 | D108: SMR15A | E108: Urban | F108: Overloads | H108: 1 | I108: 54.1 | J108: 5.34118e-05 | K108: 9.87888e-07 | L108: NO
B109: 2016-07-03 | C109: 10:13:00 | D109: JBB1B | E109: Short Rural | F109: Planned | H109: 14 | I109: 197 | J109: 0.006752687 | K109: 3.42776e-05 | L109: NO
B110: 2016-07-03 | C110: 11:14:00 | D110: WMD8B | E110: Short Rural | F110: Planned | H110: 33 | I110: 86 | J110: 0.006948559 | K110: 8.07972e-05 | L110: NO
B111: 2016-07-03 | C111: 11:17:00 | D111: WMD1A | E111: Urban | F111: Planned | H111: 15 | I111: 74 | J111: 0.001096555 | K111: 1.48183e-05 | L111: NO
B112: 2016-07-03 | C112: 11:30:00 | D112: CCY26A | E112: Short Rural | F112: Overloads | H112: 1 | I112: 147.3 | J112: 0.000360649 | K112: 2.4484e-06 | L112: NO
B113: 2016-07-03 | C113: 12:18:00 | D113: TGW1 | E113: Short Rural | F113: Overloads | H113: 1 | I113: 154.2 | J113: 0.000377502 | K113: 2.4484e-06 | L113: NO
B114: 2016-07-03 | C114: 12:23:00 | D114: MFD12A | E114: Short Rural | F114: Asset failure | G114: LV | H114: 1 | I114: 74 | J114: 0.000181182 | K114: 2.4484e-06 | L114: NO
B115: 2016-07-03 | C115: 13:32:00 | D115: TMH15A | E115: Urban | F115: Overloads | H115: 1 | I115: 84.8 | J115: 8.37399e-05 | K115: 9.87888e-07 | L115: NO
B116: 2016-07-03 | C116: 13:35:00 | D116: RIS2 | E116: Short Rural | F116: Asset failure | G116: LV | H116: 1 | I116: 180.6 | J116: 0.00044214 | K116: 2.4484e-06 | L116: NO
B117: 2016-07-03 | C117: 13:59:00 | D117: BBSRDL12 | E117: Short Rural | F117: Asset failure | G117: LV | H117: 1 | I117: 147.5 | J117: 0.000361057 | K117: 2.4484e-06 | L117: NO
B118: 2016-07-03 | C118: 14:12:00 | D118: IPL1 | E118: Short Rural | F118: Asset failure | G118: LV | H118: 1 | I118: 80.5 | J118: 0.000197096 | K118: 2.4484e-06 | L118: NO
B119: 2016-07-03 | C119: 16:11:00 | D119: BVL15A | E119: Urban | F119: Asset failure | G119: Distribution substation | H119: 49 | I119: 98 | J119: 0.004744643 | K119: 4.84065e-05 | L119: NO
B120: 2016-07-03 | C120: 18:15:00 | D120: GTN13A | E120: Short Rural | F120: Overloads | H120: 1 | I120: 128 | J120: 0.000313273 | K120: 2.4484e-06 | L120: NO
B121: 2016-07-03 | C121: 18:42:00 | D121: TWT15A | E121: Short Rural | F121: Overloads | H121: 1 | I121: 123 | J121: 0.000301194 | K121: 2.4484e-06 | L121: NO
B122: 2016-07-03 | C122: 18:55:00 | D122: GYS5A | E122: Short Rural | F122: Overloads | H122: 1 | I122: 81.3 | J122: 0.000198973 | K122: 2.4484e-06 | L122: NO
B123: 2016-07-03 | C123: 20:15:00 | D123: AHD5 | E123: Urban | F123: Asset failure | G123: LV | H123: 1 | I123: 129.3 | J123: 0.000127734 | K123: 9.87888e-07 | L123: NO
B124: 2016-07-03 | C124: 20:41:00 | D124: YTA22B | E124: Short Rural | F124: Unknown | G124: Unknown | H124: 1145 | I124: 105.8 | J124: 0.3402752 | K124: 0.002803418 | L124: NO
B125: 2016-07-03 | C125: 20:46:00 | D125: SBH4 | E125: Urban | F125: Asset failure | G125: LV | H125: 1 | I125: 113.4 | J125: 0.00011201 | K125: 9.87888e-07 | L125: NO
B126: 2016-07-03 | C126: 22:28:00 | D126: SBH11 | E126: Urban | F126: Asset failure | G126: LV | H126: 1 | I126: 29.2 | J126: 2.88299e-05 | K126: 9.87888e-07 | L126: NO
B127: 2016-07-04 | C127: 07:00:00 | D127: MLS26B | E127: Urban | F127: Asset failure | G127: LV | H127: 1 | I127: 84.8 | J127: 8.37235e-05 | K127: 9.87888e-07 | L127: NO
B128: 2016-07-04 | C128: 08:00:00 | D128: CBW6 | E128: Short Rural | F128: Planned | H128: 5 | I128: 165 | J128: 0.00201993 | K128: 1.2242e-05 | L128: NO
B129: 2016-07-04 | C129: 08:01:00 | D129: BMT5 | E129: Short Rural | F129: Planned | H129: 58 | I129: 259 | J129: 0.036779864 | K129: 0.000142007 | L129: NO
B130: 2016-07-04 | C130: 08:06:00 | D130: AMR2 | E130: Short Rural | F130: Planned | H130: 5 | I130: 176 | J130: 0.002154592 | K130: 1.2242e-05 | L130: NO
B131: 2016-07-04 | C131: 08:12:00 | D131: MGP1 | E131: Short Rural | F131: Planned | H131: 9 | I131: 190 | J131: 0.004186764 | K131: 2.20356e-05 | L131: NO
B132: 2016-07-04 | C132: 08:15:00 | D132: RBY3 | E132: Urban | F132: Planned | H132: 14 | I132: 315 | J132: 0.004356584 | K132: 1.38304e-05 | L132: NO
B133: 2016-07-04 | C133: 08:18:00 | D133: ESK3A | E133: Short Rural | F133: Planned | H133: 9 | I133: 247 | J133: 0.005442793 | K133: 2.20356e-05 | L133: NO
B134: 2016-07-04 | C134: 08:19:00 | D134: AHD8 | E134: Urban | F134: Planned | H134: 15 | I134: 293 | J134: 0.004341766 | K134: 1.48183e-05 | L134: NO
B135: 2016-07-04 | C135: 08:20:00 | D135: LTN6 | E135: Urban | F135: Planned | H135: 29 | I135: 240 | J135: 0.006875697 | K135: 2.86487e-05 | L135: NO
B136: 2016-07-04 | C136: 08:27:00 | D136: SPO5A | E136: Urban | F136: Planned | H136: 8 | I136: 267 | J136: 0.002110128 | K136: 7.9031e-06 | L136: NO
B137: 2016-07-04 | C137: 08:30:00 | D137: MHL25A | E137: Urban | F137: Planned | H137: 2 | I137: 350 | J137: 0.000691521 | K137: 1.97578e-06 | L137: NO
B138: 2016-07-04 | C138: 08:31:00 | D138: NGI1B | E138: Short Rural | F138: Planned | H138: 37 | I138: 211 | J138: 0.019114659 | K138: 9.05908e-05 | L138: NO
B139: 2016-07-04 | C139: 08:34:00 | D139: EMP21A | E139: Short Rural | F139: Asset failure | G139: LV | H139: 1 | I139: 81.7 | J139: 0.000200075 | K139: 2.4484e-06 | L139: NO
B140: 2016-07-04 | C140: 08:35:00 | D140: IPL1 | E140: Short Rural | F140: Planned | H140: 5 | I140: 337 | J140: 0.004125554 | K140: 1.2242e-05 | L140: NO
B141: 2016-07-04 | C141: 08:36:00 | D141: GYN3A | E141: Short Rural | F141: Planned | H141: 145 | I141: 137 | J141: 0.048637465 | K141: 0.000355018 | L141: NO
B142: 2016-07-04 | C142: 08:41:00 | D142: MAI11 | E142: Urban | F142: Planned | H142: 30 | I142: 231 | J142: 0.00684606 | K142: 2.96366e-05 | L142: NO
B143: 2016-07-04 | C143: 08:50:00 | D143: HDA4A | E143: Urban | F143: Planned | H143: 12 | I143: 190 | J143: 0.002252384 | K143: 1.18547e-05 | L143: NO
B144: 2016-07-04 | C144: 08:56:00 | D144: BLB8B | E144: Urban | F144: Planned | H144: 12 | I144: 265 | J144: 0.003141482 | K144: 1.18547e-05 | L144: NO
B145: 2016-07-04 | C145: 08:56:00 | D145: BLB9A | E145: Urban | F145: Planned | H145: 8 | I145: 265 | J145: 0.002094322 | K145: 7.9031e-06 | L145: NO
B146: 2016-07-04 | C146: 09:00:00 | D146: NVL9 | E146: Short Rural | F146: Planned | H146: 11 | I146: 173 | J146: 0.004659305 | K146: 2.69324e-05 | L146: NO
B147: 2016-07-04 | C147: 09:00:00 | D147: WFD1B | E147: Short Rural | F147: Planned | H147: 2 | I147: 322 | J147: 0.00157677 | K147: 4.8968e-06 | L147: NO
B148: 2016-07-04 | C148: 09:03:00 | D148: NVL19A | E148: Urban | F148: Overloads | H148: 1 | I148: 223.5 | J148: 0.000220793 | K148: 9.87888e-07 | L148: NO
B149: 2016-07-04 | C149: 09:15:00 | D149: SBK11A | E149: Urban | F149: Planned | H149: 1 | I149: 53 | J149: 5.2358e-05 | K149: 9.87888e-07 | L149: NO
B150: 2016-07-04 | C150: 09:15:00 | D150: LLY3 | E150: Short Rural | F150: Asset failure | G150: HV | H150: 15 | I150: 15 | J150: 0.00055089 | K150: 3.6726e-05 | L150: NO
B151: 2016-07-04 | C151: 11:07:00 | D151: PBH2B | E151: Urban | F151: Asset failure | G151: LV | H151: 1 | I151: 136.6 | J151: 0.000134962 | K151: 9.87888e-07 | L151: NO
B152: 2016-07-04 | C152: 11:31:00 | D152: CBT12A | E152: Short Rural | F152: Planned | H152: 2 | I152: 33 | J152: 0.000161594 | K152: 4.8968e-06 | L152: NO
B153: 2016-07-04 | C153: 12:05:00 | D153: SBK11A | E153: Urban | F153: Planned | H153: 1 | I153: 25 | J153: 2.46972e-05 | K153: 9.87888e-07 | L153: NO
B154: 2016-07-04 | C154: 12:10:00 | D154: AMR2 | E154: Short Rural | F154: Planned | H154: 3 | I154: 48 | J154: 0.00035257 | K154: 7.3452e-06 | L154: NO
B155: 2016-07-04 | C155: 15:08:00 | D155: WRD21A | E155: Urban | F155: Asset failure | G155: LV | H155: 1 | I155: 68.8 | J155: 6.79996e-05 | K155: 9.87888e-07 | L155: NO
B156: 2016-07-04 | C156: 15:30:00 | D156: CVL5A | E156: Short Rural | F156: Asset failure | G156: LV | H156: 1 | I156: 123.5 | J156: 0.000302296 | K156: 2.4484e-06 | L156: NO
B157: 2016-07-04 | C157: 15:36:00 | D157: MFD12A | E157: Short Rural | F157: Asset failure | G157: HV | H157: 1636 | I157: 68 | J157: 0.190333635 | K157: 0.004005582 | L157: NO
B158: 2016-07-04 | C158: 17:04:00 | D158: RLB11B | E158: Urban | F158: Asset failure | G158: LV | H158: 1 | I158: 63.9 | J158: 6.30931e-05 | K158: 9.87888e-07 | L158: NO
B159: 2016-07-04 | C159: 18:11:00 | D159: BTN3 | E159: Short Rural | F159: Asset failure | G159: LV | H159: 1 | I159: 102.8 | J159: 0.000251736 | K159: 2.4484e-06 | L159: NO
B160: 2016-07-04 | C160: 18:35:00 | D160: CLM3 | E160: Short Rural | F160: Asset failure | G160: LV | H160: 119 | I160: 45.3 | J160: 0.013188878 | K160: 0.00029136 | L160: NO
B161: 2016-07-05 | C161: 00:35:00 | D161: LBS5A | E161: Short Rural | F161: Animal | G161: Animal impact | H161: 70 | I161: 125 | J161: 0.0214235 | K161: 0.000171388 | L161: NO
B162: 2016-07-05 | C162: 02:46:00 | D162: NBR11A | E162: Short Rural | F162: Unknown | G162: Unknown | H162: 1424 | I162: 53.4 | J162: 0.325911743 | K162: 0.003486522 | L162: NO
B163: 2016-07-05 | C163: 04:04:00 | D163: KRA4 | E163: Urban | F163: Planned | H163: 1 | I163: 8 | J163: 7.9031e-06 | K163: 9.87888e-07 | L163: NO
B164: 2016-07-05 | C164: 06:38:00 | D164: RBY9A | E164: Urban | F164: Asset failure | G164: LV | H164: 1 | I164: 107 | J164: 0.00010572 | K164: 9.87888e-07 | L164: NO
B165: 2016-07-05 | C165: 07:09:00 | D165: CCY6A | E165: Urban | F165: Animal | G165: Animal nesting/burrowing, etc and other | H165: 92 | I165: 141 | J165: 0.012814877 | K165: 9.08857e-05 | L165: NO
B166: 2016-07-05 | C166: 08:03:00 | D166: BWH7A | E166: Short Rural | F166: Planned | H166: 4 | I166: 346 | J166: 0.003388586 | K166: 9.7936e-06 | L166: NO
B167: 2016-07-05 | C167: 08:08:00 | D167: ARL12A | E167: Urban | F167: Planned | H167: 19 | I167: 397 | J167: 0.007451635 | K167: 1.87699e-05 | L167: NO
B168: 2016-07-05 | C168: 08:08:00 | D168: ARL3A | E168: Urban | F168: Planned | H168: 2 | I168: 397 | J168: 0.000784383 | K168: 1.97578e-06 | L168: NO
B169: 2016-07-05 | C169: 08:10:00 | D169: KVG40A | E169: Urban | F169: Asset failure | G169: LV | H169: 1 | I169: 55.9 | J169: 5.52229e-05 | K169: 9.87888e-07 | L169: NO
B170: 2016-07-05 | C170: 08:14:00 | D170: BHD5A | E170: Urban | F170: Planned | H170: 19 | I170: 226 | J170: 0.004241989 | K170: 1.87699e-05 | L170: NO
B171: 2016-07-05 | C171: 08:15:00 | D171: CNB21B | E171: Urban | F171: Planned | H171: 54 | I171: 157 | J171: 0.011834892 | K171: 5.33459e-05 | L171: NO
B172: 2016-07-05 | C172: 08:15:00 | D172: NDH9 | E172: Urban | F172: Planned | H172: 1 | I172: 290 | J172: 0.000286487 | K172: 9.87888e-07 | L172: NO
B173: 2016-07-05 | C173: 08:15:00 | D173: BMT1 | E173: Short Rural | F173: Planned | H173: 8 | I173: 159 | J173: 0.003114365 | K173: 1.95872e-05 | L173: NO
B174: 2016-07-05 | C174: 08:16:00 | D174: PRG2A | E174: Short Rural | F174: Planned | H174: 5 | I174: 162 | J174: 0.001983204 | K174: 1.2242e-05 | L174: NO
B175: 2016-07-05 | C175: 08:25:00 | D175: AHD15B | E175: Urban | F175: Planned | H175: 35 | I175: 221 | J175: 0.00764131 | K175: 3.45761e-05 | L175: NO
B176: 2016-07-05 | C176: 08:25:00 | D176: AHD7 | E176: Urban | F176: Planned | H176: 2 | I176: 221 | J176: 0.000436646 | K176: 1.97578e-06 | L176: NO
B177: 2016-07-05 | C177: 08:28:00 | D177: GYN3A | E177: Short Rural | F177: Planned | H177: 8 | I177: 331.9 | J177: 0.006302916 | K177: 1.95872e-05 | L177: NO
B178: 2016-07-05 | C178: 08:28:00 | D178: BWH7A | E178: Short Rural | F178: Planned | H178: 56 | I178: 322 | J178: 0.044149548 | K178: 0.00013711 | L178: NO
B179: 2016-07-05 | C179: 08:30:00 | D179: WRD21A | E179: Urban | F179: Planned | H179: 25 | I179: 346 | J179: 0.008545227 | K179: 2.46972e-05 | L179: NO
B180: 2016-07-05 | C180: 08:32:00 | D180: SFD6B | E180: Urban | F180: Planned | H180: 28 | I180: 278 | J180: 0.007689716 | K180: 2.76609e-05 | L180: NO
B181: 2016-07-05 | C181: 08:38:00 | D181: HTN2A | E181: Urban | F181: Planned | H181: 7 | I181: 272 | J181: 0.001880938 | K181: 6.91521e-06 | L181: NO
B182: 2016-07-05 | C182: 08:39:00 | D182: NGE12 | E182: Urban | F182: Planned | H182: 80 | I182: 348 | J182: 0.027502788 | K182: 7.9031e-05 | L182: NO
B183: 2016-07-05 | C183: 08:39:00 | D183: NGE7 | E183: Urban | F183: Planned | H183: 15 | I183: 348 | J183: 0.005156773 | K183: 1.48183e-05 | L183: NO
B184: 2016-07-05 | C184: 08:45:00 | D184: GNA7A | E184: Urban | F184: Planned | H184: 2 | I184: 380 | J184: 0.000750795 | K184: 1.97578e-06 | L184: NO
B185: 2016-07-05 | C185: 08:45:00 | D185: RPN3A | E185: Urban | F185: Planned | H185: 55 | I185: 380 | J185: 0.020646849 | K185: 5.43338e-05 | L185: NO
B186: 2016-07-05 | C186: 08:48:00 | D186: SDM1 | E186: Short Rural | F186: Planned | H186: 1 | I186: 205 | J186: 0.000501922 | K186: 2.4484e-06 | L186: NO
B187: 2016-07-05 | C187: 08:49:00 | D187: MAI11 | E187: Urban | F187: Planned | H187: 15 | I187: 426 | J187: 0.006312601 | K187: 1.48183e-05 | L187: NO
B188: 2016-07-05 | C188: 08:49:00 | D188: RCF9A | E188: Urban | F188: Planned | H188: 32 | I188: 302 | J188: 0.009546945 | K188: 3.16124e-05 | L188: NO
B189: 2016-07-05 | C189: 08:50:00 | D189: UPC1 | E189: Short Rural | F189: Planned | H189: 7 | I189: 167 | J189: 0.00286218 | K189: 1.71388e-05 | L189: NO
B190: 2016-07-05 | C190: 08:55:00 | D190: NRG10 | E190: Urban | F190: Planned | H190: 32 | I190: 272 | J190: 0.008598573 | K190: 3.16124e-05 | L190: NO
B191: 2016-07-05 | C191: 08:56:00 | D191: KRNQNP7 | E191: Urban | F191: Planned | H191: 73 | I191: 180 | J191: 0.012980842 | K191: 7.21158e-05 | L191: NO
B192: 2016-07-05 | C192: 09:01:00 | D192: CBT12A | E192: Short Rural | F192: Planned | H192: 1 | I192: 71 | J192: 0.000173836 | K192: 2.4484e-06 | L192: NO
B193: 2016-07-05 | C193: 09:12:00 | D193: MFN12A | E193: Short Rural | F193: Planned | H193: 1 | I193: 123 | J193: 0.000301153 | K193: 2.4484e-06 | L193: NO
B194: 2016-07-05 | C194: 09:15:00 | D194: IPS15B | E194: Urban | F194: Planned | H194: 31 | I194: 225 | J194: 0.006890515 | K194: 3.06245e-05 | L194: NO
B195: 2016-07-05 | C195: 09:29:00 | D195: RCN10A | E195: Urban | F195: Planned | H195: 1 | I195: 86 | J195: 8.49583e-05 | K195: 9.87888e-07 | L195: NO
B196: 2016-07-05 | C196: 09:30:00 | D196: RBY16 | E196: Urban | F196: Asset failure | G196: LV | H196: 1 | I196: 81 | J196: 8.00189e-05 | K196: 9.87888e-07 | L196: NO
B197: 2016-07-05 | C197: 09:31:00 | D197: SIS1 | E197: Short Rural | F197: Overloads | H197: 1 | I197: 227.3 | J197: 0.000556562 | K197: 2.4484e-06 | L197: NO
B198: 2016-07-05 | C198: 09:34:00 | D198: INA1A | E198: Urban | F198: Planned | H198: 42 | I198: 328 | J198: 0.013609138 | K198: 4.14913e-05 | L198: NO
B199: 2016-07-05 | C199: 09:42:00 | D199: MTG13A | E199: Urban | F199: Planned | H199: 7 | I199: 328 | J199: 0.00226819 | K199: 6.91521e-06 | L199: NO
B200: 2016-07-05 | C200: 10:04:00 | D200: COR22A | E200: Short Rural | F200: Planned | H200: 4 | I200: 68 | J200: 0.000665965 | K200: 9.7936e-06 | L200: NO
B201: 2016-07-05 | C201: 10:20:00 | D201: NGE12 | E201: Urban | F201: Planned | H201: 21 | I201: 190 | J201: 0.003941671 | K201: 2.07456e-05 | L201: NO
B202: 2016-07-05 | C202: 11:01:00 | D202: YTA35A | E202: Urban | F202: Network business | G202: Network error | H202: 1 | I202: 14 | J202: 1.38304e-05 | K202: 9.87888e-07 | L202: NO
B203: 2016-07-05 | C203: 11:06:00 | D203: BMT1 | E203: Short Rural | F203: Planned | H203: 2 | I203: 82 | J203: 0.000401538 | K203: 4.8968e-06 | L203: NO
B204: 2016-07-05 | C204: 11:15:00 | D204: BHD23A | E204: Short Rural | F204: Vegetation | G204: Blow-in/Fall-in - NSP responsibility | H204: 27 | I204: 23 | J204: 0.001520456 | K204: 6.61068e-05 | L204: NO
... 2458 more rows

Sheet Amendments
B1: This sheet may be used to identify amendments made to data resubmitted to the AER.
B2: NSP data amendments
B3: Worksheet | C3: Table | D3: Comments
